Workbook

Sheet 地市透视表
A1: 地市 | B1: 资产条数 | C1: 资产原值（元） | D1: 资产净值（元） | E1: 净值/原值 | F1: 评估价（元）
A2: 金华 | B2: 241 | C2: 599145.02 | D2: 51978.53 | E2: =D2/C2 -> 8.68% | F2: 60254.22
A3: 宁波 | B3: 164 | C3: 565556.56 | D3: 27638.52 | E3: 4.89% | F3: 51372.41
A4: 衢州 | B4: 23 | C4: 109978.61 | D4: 3299.34 | E4: 3.00% | F4: 1501.00
A5: 湖州 | B5: 62 | C5: 274868.55 | D5: 41004.08 | E5: 14.92% | F5: 27098.03
A6: 温州 | B6: 183 | C6: 151892.73 | D6: 8868.52 | E6: 5.84% | F6: 3261.72
A7: 合计 | B7: =SUM(B2:B6) -> 673 | C7: =SUM(C2:C6) -> 1701441.47 | D7: =SUM(D2:D6) -> 132788.99 | E7: 7.80% | F7: =SUM(F2:F6) -> 143487.38

Sheet 汇总
A1: 地市 | B1: 拍卖批次 | C1: 资产类别名称（大类相同完整度不同的分行填报） | D1: 对应估值清单的分类描述 | E1: 计量单位 | F1: 资产数量 | G1: 总重量（kg） | H1: 完整度/出铜（铝）率（%） | I1: 最低转让单价（含税） | J1: 最低转让总价（含税） | K1: 备注 （主要配件缺失的需要注明）
A2: 金华 | B2: 第二十七批 | C2: 3P空调 | D2: 3匹室内外成套 | E2: 套 | F2: 29 | G2: / | H2: / | I2: 936 | J2: =I2*F2 -> 27144.00 | K2: 铜管
A3: 金华 | B3: 第二十七批 | C3: 壁挂空调 | D3: 2P及2P以下成套空调 | E3: 套 | F3: 10 | G3: / | H3: / | I3: 520 | J3: =I3*F3 -> 5200.00 | K3: 铜管
A4: 金华 | B4: 第二十七批 | C4: 壁挂式开关电源 | D4: 其他各类铁质为主的报废物资 | E4: 个 | F4: 2 | G4: 40 | H4: / | I4: 2270元/吨 | J4: =2270/1000*G4 -> 90.8 | K4: 模块
A5: 金华 | B5: 第二十七批 | C5: 电表箱 | D5: 配电箱类 | E5: 个 | F5: 1 | G5: 0.5 | H5: / | I5: 107 | J5: 107.00
A6: 金华 | B6: 第二十七批 | C6: 电线电缆 | D6: 铝缆类 | E6: 根 | F6: 74 | G6: 29.5 | H6: 50% | I6: 17090元/吨×出铝率 | J6: =17090/1000*H6*G6 -> 252.08
A7: 金华 | B7: 第二十七批 | C7: 电线电缆 | D7: 铜缆类 | G7: 231 | H7: 50% | I7: 70510元/吨×出铜率 | J7: =70510/1000*H7*G7 -> 8143.91
A8: 金华 | B8: 第二十七批 | C8: 动环监控 | D8: 动环监控 | E8: 个 | F8: 20 | G8: 70 | H8: / | I8: 16 | J8: 320.00
A9: 金华 | B9: 第二十七批 | C9: 霍尔传感器 | D9: 其他各类铁质为主的报废物资 | E9: 个 | F9: 1 | G9: 0.3 | H9: / | I9: 2270元/吨 | J9: =2270/1000*G9 -> 0.681
A10: 金华 | B10: 第二十七批 | C10: 交流配电箱 | D10: 配电箱类 | E10: 个 | F10: 2 | G10: 40 | H10: / | I10: 107 | J10: =I10*F10 -> 214.00
A11: 金华 | B11: 第二十七批 | C11: 接地汇流牌 | D11: 其他各类铁质为主的报废物资 | E11: 个 | F11: 30 | G11: 53 | H11: / | I11: 2270元/吨 | J11: 120.31
A12: 金华 | B12: 第二十七批 | C12: 接地汇流条 | D12: 其他各类铁质为主的报废物资 | E12: 根 | F12: 14 | G12: 36.5 | H12: / | I12: 2270元/吨 | J12: 82.855
A13: 金华 | B13: 第二十七批 | C13: 空调控制器 | D13: 其他各类铁质为主的报废物资 | E13: 个 | F13: 2 | G13: 2 | H13: / | I13: 2270元/吨 | J13: 4.54
A14: 金华 | B14: 第二十七批 | C14: 馈线 | D14: 铜缆类 | E14: 米 | F14: 21 | G14: 4.5 | H14: 20% | I14: 70510元/吨×出铜率 | J14: =70510/1000*H14*G14 -> 63.46
A15: 金华 | B15: 第二十七批 | C15: 门禁 | D15: 其他各类铁质为主的报废物资 | E15: 个 | F15: 1 | G15: 0.25 | H15: / | I15: 2270元/吨 | J15: =2270/1000*G15 -> 0.5675
A16: 金华 | B16: 第二十七批 | C16: 模块 | D16: 其他各类铁质为主的报废物资 | E16: 个 | F16: 13 | G16: 19.5 | H16: / | I16: 2270元/吨 | J16: 44.265
A17: 金华 | B17: 第二十七批 | C17: 嵌入式开关电源 | D17: 其他各类铁质为主的报废物资 | E17: 个 | F17: 22 | G17: 517 | H17: / | I17: 2270元/吨 | J17: 1173.59 | K17: 模块
A18: 金华 | B18: 第二十七批 | C18: 熔断器 | D18: 其他各类铁质为主的报废物资 | E18: 个 | F18: 2 | G18: 0.8 | H18: / | I18: 2270元/吨 | J18: 1.816
A19: 金华 | B19: 第二十七批 | C19: 熔丝 | D19: 其他各类铁质为主的报废物资 | E19: 个 | F19: 2 | G19: 0.4 | H19: / | I19: 2270元/吨 | J19: 0.908
A20: 金华 | B20: 第二十七批 | C20: 油机转换箱 | D20: 配电箱类 | E20: 个 | F20: 1 | G20: 2.5 | H20: / | I20: 107 | J20: =I20*F20 -> 107.00
A21: 金华 | B21: 第二十七批 | C21: 走线架 | D21: 其他各类铁质为主的报废物资 | E21: 个 | F21: 10 | G21: 100 | H21: / | I21: 2270元/吨 | J21: =2270/1000*G21 -> 227
A22: 金华 | B22: 第二十七批 | C22: 组合式开关电源 | D22: 组合开关电源柜 | E22: 个 | F22: 31 | G22: / | H22: 35% | I22: 997×完整度+198 | J22: =(997*H22+198)*F22 -> 16955.45 | K22: 模块
A23: 宁波 | B23: 第二十七批 | C23: 3P空调 | D23: 3匹室内外成套 | E23: 台 | F23: 1 | H23: 0% | I23: 936 | J23: =I23*F23 -> 936 | K23: 无铜管
A24: 宁波 | B24: 第二十七批 | C24: 整流模块 | D24: 其他各类铁质为主的报废物资 | E24: 个 | F24: 1 | G24: 160 | I24: 2270元/吨 | J24: =2270/1000*G24 -> 363.2 | K24: 无配件
A25: 宁波 | B25: 第二十七批 | C25: 壁挂式开关电源 | D25: 其他各类铁质为主的报废物资 | E25: 架 | F25: 1 | I25: 2270元/吨 | K25: 无配件
A26: 宁波 | B26: 第二十七批 | C26: 嵌入式开关电源 | D26: 其他各类铁质为主的报废物资 | E26: 架 | F26: 7 | I26: 2270元/吨 | K26: 无配件
A27: 宁波 | B27: 第二十七批 | C27: 组合式开关电源 | D27: 组合式开关电源 | E27: 架 | F27: 2 | H27: 0% | I27: 997×完整度+198 | J27: =(997*H27+198)*F27 -> 396.00 | K27: 无配件
A28: 宁波 | B28: 第二十七批 | C28: 1P空调 | D28: 2P及2P以下成套空调 | E28: 台 | F28: 1 | G28: 40 | H28: 0% | I28: 520 | J28: =I28*F28 -> 520 | K28: 无铜管
A29: 宁波 | B29: 第二十七批 | C29: 2P空调 | D29: 2P及2P以下成套空调 | E29: 台 | F29: 5 | G29: 225 | H29: 0% | I29: 520 | J29: 2600 | K29: 无铜管
A30: 宁波 | B30: 第二十七批 | C30: 3P空调 | D30: 3匹室内外成套 | E30: 台 | F30: 36 | G30: 3240 | H30: 0% | I30: 936 | J30: 33696 | K30: 无铜管
A31: 宁波 | B31: 第二十七批 | C31: 3P空调（仅内机） | D31: 3匹仅有室内机 | E31: 台 | F31: 7 | G31: 420 | H31: 0% | I31: 291 | J31: 2037 | K31: 无铜管
A32: 宁波 | B32: 第二十七批 | C32: 3P空调（仅外机） | D32: 3匹仅有室外机 | E32: 台 | F32: 3 | G32: 90 | H32: 0% | I32: 482 | J32: 1446 | K32: 无铜管
A33: 宁波 | B33: 第二十七批 | C33: 动环监控 | D33: 动环监控 | E33: 个 | F33: 12 | I33: 16 | J33: 192 | K33: 无配件
A34: 宁波 | B34: 第二十七批 | C34: 配电箱 | D34: 配电箱类 | E34: 个 | F34: 8 | I34: 107 | J34: 856 | K34: 无配件
A35: 宁波 | B35: 第二十七批 | C35: 油机转换箱 | D35: 配电箱类 | E35: 个 | F35: 1 | I35: 107 | J35: 107 | K35: 无配件
A36: 宁波 | B36: 第二十七批 | C36: 电表箱 | D36: 配电箱类 | E36: 个 | F36: 1 | I36: 107 | J36: 107 | K36: 250mmx400mmx140mm
A37: 宁波 | B37: 第二十七批 | C37: 供电计量设备 | D37: 配电箱类 | E37: 个 | F37: 1 | I37: 107 | J37: 107 | K37: 无配件
A38: 宁波 | B38: 第二十七批 | C38: 供电计量设备（电表） | D38: 配电箱类 | E38: 个 | F38: 1 | I38: 107 | J38: 107 | K38: 无配件
A39: 宁波 | B39: 第二十七批 | C39: 电控锁 | D39: 其他各类铁质为主的报废物资 | E39: 个 | F39: 1 | G39: 310 | I39: 2270元/吨 | J39: =2270/1000*G39 -> 703.7 | K39: 无配件
A40: 宁波 | B40: 第二十七批 | C40: 断路器 | D40: 其他各类铁质为主的报废物资 | E40: 个 | F40: 2 | I40: 2270元/吨 | K40: 无配件
A41: 宁波 | B41: 第二十七批 | C41: 霍尔传感器 | D41: 其他各类铁质为主的报废物资 | E41: 个 | F41: 2 | I41: 2270元/吨 | K41: 无配件
A42: 宁波 | B42: 第二十七批 | C42: 机架（RRU架） | D42: 其他各类铁质为主的报废物资 | E42: 个 | F42: 2 | I42: 2270元/吨 | K42: RRU架
A43: 宁波 | B43: 第二十七批 | C43: 机架（综合柜） | D43: 其他各类铁质为主的报废物资 | E43: 个 | F43: 1 | I43: 2270元/吨 | K43: 综合柜（2000x600x600mm）
A44: 宁波 | B44: 第二十七批 | C44: 空调节能设备（空调铜管） | D44: 其他各类铁质为主的报废物资 | E44: 米 | F44: 1 | I44: 2270元/吨 | K44: 实物为空调铜管
A45: 宁波 | B45: 第二十七批 | C45: 空调控制器 | D45: 其他各类铁质为主的报废物资 | E45: 个 | F45: 9 | I45: 2270元/吨 | K45: 无配件
A46: 宁波 | B46: 第二十七批 | C46: 浪涌抑制器 | D46: 其他各类铁质为主的报废物资 | E46: 个 | F46: 1 | I46: 2270元/吨 | K46: 无配件
A47: 宁波 | B47: 第二十七批 | C47: 模块 | D47: 其他各类铁质为主的报废物资 | E47: 个 | F47: 3 | I47: 2270元/吨 | K47: 无配件
A48: 宁波 | B48: 第二十七批 | C48: 直流电能计量终端 | D48: 其他各类铁质为主的报废物资 | E48: 个 | F48: 4 | I48: 2270元/吨 | K48: 无配件
A49: 宁波 | B49: 第二十七批 | C49: 直流远供 | D49: 其他各类铁质为主的报废物资 | E49: 个 | F49: 1 | I49: 2270元/吨 | K49: 无配件
A50: 宁波 | B50: 第二十七批 | C50: 嵌入式开关电源 | D50: 其他各类铁质为主的报废物资 | E50: 个 | F50: 9 | I50: 2270元/吨 | K50: 无配件
A51: 宁波 | B51: 第二十七批 | C51: 壁挂式开关电源 | D51: 其他各类铁质为主的报废物资 | E51: 个 | F51: 2 | I51: 2270元/吨 | K51: 无配件
A52: 宁波 | B52: 第二十七批 | C52: 组合开关电源 | D52: 组合开关电源柜 | E52: 个 | F52: 36 | G52: 1620 | H52: 0% | I52: 997×完整度+198 | J52: =(997*H52+198)*F52 -> 7128.00 | K52: 无配件
A53: 宁波 | B53: 第二十七批 | C53: 铜芯电缆 | D53: 铜缆类 | E53: 米 | F53: 2 | G53: 2 | H53: 50% | I53: 70510元/吨×出铜率 | J53: =70510/1000*H53*G53 -> 70.51 | K53: 1x95mm
A54: 衢州 | B54: 第二十七批 | C54: 投影仪 | D54: 投影仪 | E54: 台 | F54: 3 | I54: 34 | J54: =I54*F54 -> 102
A55: 衢州 | B55: 第二十七批 | C55: 办公设备电脑 | D55: 台式电脑 | E55: 台 | F55: 14 | I55: 81 | J55: 1134
A56: 衢州 | B56: 第二十七批 | C56: 办公设备电脑 | D56: 笔记本电脑 | E56: 台 | F56: 1 | I56: 80 | J56: 80
A57: 衢州 | B57: 第二十七批 | C57: 打印机设备 | D57: 打印机 | E57: 台 | F57: 4 | I57: 26 | J57: 104
A58: 衢州 | B58: 第二十七批 | C58: 多功能一体化机 | D58: 多功能一体化机 | E58: 台 | F58: 1 | I58: 81 | J58: 81
A59: 湖州 | B59: 第二十七批 | C59: 3匹室内外成套 | D59: 3匹室内外成套 | E59: 个 | F59: 18 | I59: 936 | J59: =F59*I59 -> 16848 | K59: 其中9个无冷凝管
A60: 湖州 | B60: 第二十七批 | C60: 2P及2P以下成套空调 | D60: 2P及2P以下成套空调 | E60: 个 | F60: 2 | I60: 520 | J60: 1040 | K60: 无冷凝管
A61: 湖州 | B61: 第二十七批 | C61: 交流配电箱 | D61: 配电箱类 | F61: 5 | I61: 107 | J61: 535
A62: 湖州 | B62: 第二十七批 | C62: 铝芯电缆 | D62: 铝缆类 | E62: 米 | F62: 380 | G62: 285 | H62: 40% | I62: 17090元/吨×出铝率 | J62: =17090/1000*H62*G62 -> 1948.26 | K62: 4*35
A63: 湖州 | B63: 第二十七批 | C63: 动环监控 | D63: 动环监控 | E63: 个 | F63: 14 | I63: 16 | J63: =F63*I63 -> 224
A64: 湖州 | B64: 第二十七批 | C64: 机柜空调 | D64: 机柜空调 | E64: 个 | F64: 2 | G64: 60 | I64: 10020元/吨 | J64: =10020/1000*G64 -> 601.2
A65: 湖州 | B65: 第二十七批 | C65: 嵌入式开关电源 | D65: 其他各类铁质为主的报废物资 | E65: 个 | F65: 2 | G65: 36 | I65: 2270元/吨 | J65: =2270/1000*G65 -> 81.72
A66: 湖州 | B66: 第二十七批 | C66: 组合开关电源柜 | D66: 组合开关电源柜 | E66: 个 | F66: 9 | H66: 45% | I66: 997×完整度+198 | J66: =(997*H66+198)*F66 -> 5819.85
A67: 温州 | B67: 第二十七批 | C67: FSU | D67: 动环监控 | E67: 个 | F67: 10 | G67: - | I67: 16 | J67: =I67*F67 -> 160.00 | K67: 主机
A68: 温州 | B68: 第二十七批 | C68: 交流配电箱 | D68: 配电箱类 | E68: 个 | F68: 2 | G68: - | I68: 107 | J68: 214.00
A69: 温州 | B69: 第二十七批 | C69: 组合式开关电源 | D69: 组合开关电源柜 | E69: 架 | F69: 3 | G69: - | H69: 10% | I69: 997×完整度+198 | J69: =(997*H69+198)*F69 -> 893.10
A70: 温州 | B70: 第二十七批 | C70: 一体化机柜(风扇型） | D70: 一体化机柜(风扇型） | E70: 个 | F70: 2 | G70: - | I70: 170 | J70: 340.00
A71: 温州 | B71: 第二十七批 | C71: 机柜散件 | D71: 其他铁质为主的报废物资 | E71: 个 | F71: 1 | G71: 50 | I71: 2270元/吨 | J71: =2270/1000*G71 -> 113.50
A72: 温州 | B72: 第二十七批 | C72: 监控模块 | D72: 其他铁质为主的报废物资 | E72: 个 | F72: 33 | G72: 16.5 | I72: 2270元/吨 | J72: 37.46
A73: 温州 | B73: 第二十七批 | C73: 铝线 | D73: 铝缆类 | E73: 根 | F73: 35 | G73: 70 | H73: 23% | I73: 17090元/吨×出铝率 | J73: =17090/1000*H73*G73 -> 275.15
A74: 温州 | B74: 第二十七批 | C74: 铝线 | D74: 铝缆类 | E74: 千克 | F74: 35 | G74: 35 | H74: 23% | I74: 17090元/吨×出铝率 | J74: 137.57
A75: 温州 | B75: 第二十七批 | C75: 嵌入式开关电源 | D75: 其他铁质为主的报废物资 | E75: 架 | F75: 13 | G75: 130 | I75: 2270元/吨 | J75: 295.10
A76: 温州 | B76: 第二十七批 | C76: 铜线 | D76: 铜缆类 | E76: 米 | F76: 10.5 | G76: 3 | H76: 50% | I76: 70510元/吨×出铜率 | J76: =70510/1000*H76*G76 -> 105.77
A77: 温州 | B77: 第二十七批 | C77: 整流模块 | D77: 其他铁质为主的报废物资 | E77: 个 | F77: 93 | G77: 229 | I77: 2270元/吨 | J77: =2270/1000*G77 -> 519.83
A78: 温州 | B78: 第二十七批 | C78: 走线架 | D78: 其他铁质为主的报废物资 | E78: 个 | F78: 16 | G78: 75 | I78: 2270元/吨 | J78: =2270/1000*G78 -> 170.25

Sheet 金华
A1: 序号 | B1: 报废批复文号 | C1: 资产编号 | D1: 资产名称 | E1: 资产类别名称 | F1: 资产原值 （元，不含税） | G1: 资产净值 （元，不含税） | H1: 累计折旧 | I1: 资产数量 | J1: 计量单位 （个/吨/米等） | K1: 单节电池电压（2V/12V） | L1: 规格型号 | M1: 生产厂家 | N1: 站点名称 | O1: 站点编码 | P1: 县市 | Q1: 年份 | R1: 报废批次
A2: 1 | B2: 2023年金华分公司第11次党委会会议纪要(金华铁塔党委会纪要〔2023〕第13期) | C2: 330700318970 | D2: =VLOOKUP(C:C,'[1]2024B1-B5清单'!$A:$D,4,0) -> 动环监控设备 | E2: 动环监控 | F2: 3835.9 | G2: 115.08 | H2: 3720.82 | I2: 1 | J2: 个 | L2: 监控 | N2: 武义下杨二村 | O2: 33072300000203 | P2: 武义 | Q2: 2024 | R2: 2024B3
A3: 2 | B3: 2024年8月19日总经理专题办公会议纪要 | C3: 330700451730 | D3: =VLOOKUP(C:C,'[1]2024B1-B5清单'!$A:$D,4,0) -> 外市电引入 | E3: 电线电缆 | F3: 4811 | G3: 3880.7 | H3: 930.3 | I3: 1 | J3: 根 | L3: 4x35方10米铝/根 | N3: 义乌商贸城医院 | O3: 33078200000156 | P3: 义乌 | Q3: 2024 | R3: 2024B6
A4: 3 | B4: 2024 年金华分公司第24次党委会会议纪要（金华铁塔党委会纪要〔2024〕第26期） | C4: 330700356199 | D4: =VLOOKUP(C:C,'[1]2024B1-B5清单'!$A:$D,4,0) -> 机房配套扩容资产 | E4: 门禁 | F4: 288 | G4: 16.4 | H4: 271.6 | I4: 1 | J4: 个 | L4: 门禁配套物资电源转换模块 | N4: 义乌商贸城医院 | O4: 33078200000156 | P4: 义乌 | Q4: 2024 | R4: 2024B5
A5: 4 | B5: 2024 年金华分公司第24次党委会会议纪要（金华铁塔党委会纪要〔2024〕第26期） | C5: 330700413086 | D5: =VLOOKUP(C:C,'[1]2024B1-B5清单'!$A:$D,4,0) -> 基站机房扩容资产 | E5: 接地汇流牌 | F5: 205.38 | G5: 177.65 | H5: 27.73 | I5: 1 | J5: 段 | L5: 室外接地汇流排20孔 | N5: 义乌商贸城医院 | O5: 33078200000156 | P5: 义乌 | Q5: 2024 | R5: 2024B5
A6: 5 | B6: 2024年8月19日总经理专题办公会议纪要 | C6: 330700494410 | D6: =VLOOKUP(C:C,'[1]2024B1-B5清单'!$A:$D,4,0) -> 基站机房扩容资产 | E6: 熔丝 | F6: 125.82 | G6: 117.19 | H6: 8.63 | I6: 1 | J6: 个 | L6: 熔丝 | N6: 义乌商贸城医院 | O6: 33078200000156 | P6: 义乌 | Q6: 2024 | R6: 2024B6
A7: 6 | B7: 2024年8月19日总经理专题办公会议纪要 | C7: 330700339694 | D7: =VLOOKUP(C:C,'[1]2024B1-B5清单'!$A:$D,4,0) -> 动力及环境监控单元 | E7: 动环监控 | F7: 2811.79 | G7: 84.35 | H7: 2727.44 | I7: 1 | J7: 个 | L7: 监控 | N7: 东阳水口村 | O7: 330783908000001421 | P7: 东阳 | Q7: 2024 | R7: 2024B6
A8: 7 | B8: 2024年8月19日总经理专题办公会议纪要 | C8: 330700427407 | D8: =VLOOKUP(C:C,'[1]2024B1-B5清单'!$A:$D,4,0) -> 基站机房扩容资产 | E8: 电线电缆 | F8: 175.12 | G8: 152.24 | H8: 22.88 | I8: 1 | J8: 根 | L8: 25方1米/根 | N8: 永康城西工业区楼塘 | O8: 330784908000001391 | P8: 永康 | Q8: 2024 | R8: 2024B6
A9: 8 | B9: 2024年8月19日总经理专题办公会议纪要 | C9: 330700393943 | D9: =VLOOKUP(C:C,'[1]2024B1-B5清单'!$A:$D,4,0) -> 基站机房扩容资产 | E9: 电线电缆 | F9: 518.63 | G9: 438 | H9: 80.63 | I9: 1 | J9: 根 | L9: 50方0.5米/根 | N9: 永康城西工业区楼塘 | O9: 330784908000001391 | P9: 永康 | Q9: 2024 | R9: 2024B6
A10: 9 | B10: 2024年8月19日总经理专题办公会议纪要 | C10: 330700155235 | D10: =VLOOKUP(C:C,'[1]2024B1-B5清单'!$A:$D,4,0) -> 交流配电箱 | E10: 交流配电箱 | F10: 2273.43 | G10: 68.2 | H10: 2205.23 | I10: 1 | J10: 个 | L10: 交流配电箱 | N10: 永康城西工业区楼塘 | O10: 330784908000001391 | P10: 永康 | Q10: 2024 | R10: 2024B6
A11: 10 | B11: 2024年8月19日总经理专题办公会议纪要 | C11: 330700155822 | D11: =VLOOKUP(C:C,'[1]2024B1-B5清单'!$A:$D,4,0) -> 油机转换箱 | E11: 油机转换箱 | F11: 753.25 | G11: 22.6 | H11: 730.65 | I11: 1 | J11: 个 | L11: 油机转换箱 | N11: 永康城西工业区楼塘 | O11: 330784908000001391 | P11: 永康 | Q11: 2024 | R11: 2024B6
A12: 11 | B12: 2024年8月19日总经理专题办公会议纪要 | C12: 330700362920 | D12: =VLOOKUP(C:C,'[1]2024B1-B5清单'!$A:$D,4,0) -> 电源扩容资产 | E12: 电表箱 | F12: 628.97 | G12: 69.72 | H12: 559.25 | I12: 1 | J12: 个 | L12: 通用配件电表箱 | N12: 永康城西工业区楼塘 | O12: 330784908000001391 | P12: 永康 | Q12: 2024 | R12: 2024B6
A13: 12 | B13: 2024年8月19日总经理专题办公会议纪要 | C13: 330700362412 | D13: =VLOOKUP(C:C,'[1]2024B1-B5清单'!$A:$D,4,0) -> 机房配套扩容资产 | E13: 空调控制器 | F13: 321.56 | G13: 35.66 | H13: 285.9 | I13: 1 | J13: 个 | L13: 智能空调控制器 | N13: 永康城西工业区楼塘 | O13: 330784908000001391 | P13: 永康 | Q13: 2024 | R13: 2024B6
A14: 13 | B14: 2024年8月19日总经理专题办公会议纪要 | C14: 330700370042 | D14: =VLOOKUP(C:C,'[1]2024B1-B5清单'!$A:$D,4,0) -> 机房配套扩容资产 | E14: 空调控制器 | F14: 324.29 | G14: 57.74 | H14: 266.55 | I14: 1 | J14: 个 | L14: 智能空调控制器 | N14: 永康城西工业区楼塘 | O14: 330784908000001391 | P14: 永康 | Q14: 2024 | R14: 2024B6
A15: 14 | B15: 2024年8月19日总经理专题办公会议纪要 | C15: 330700364538 | D15: =VLOOKUP(C:C,'[1]2024B1-B5清单'!$A:$D,4,0) -> 电力引入扩容资产 | E15: 霍尔传感器 | F15: 379.13 | G15: 176.88 | H15: 202.25 | I15: 1 | J15: 个 | L15: 霍尔传感器电流型输入100A | N15: 永康城西工业区楼塘 | O15: 330784908000001391 | P15: 永康 | Q15: 2024 | R15: 2024B6
A16: 15 | B16: 2023年金华分公司第11次党委会会议纪要(金华铁塔党委会纪要〔2023〕第13期) | C16: 330700404346 | D16: =VLOOKUP(C:C,'[1]2024B1-B5清单'!$A:$D,4,0) -> 外市电引入 | E16: 电线电缆 | F16: 33985.92 | G16: 25502.85 | H16: 8483.07 | I16: 1 | J16: 根 | L16: 4x25方4米/根 | N16: 义乌渡馨北路搬迁 | O16: 330782500000002126 | P16: 义乌 | Q16: 2024 | R16: 2023B3
A17: 16 | B17: 2024年8月19日总经理专题办公会议纪要 | C17: 330700141889 | D17: =VLOOKUP(C:C,'[1]2024B1-B5清单'!$A:$D,4,0) -> 1KV以下电力电缆 | E17: 电线电缆 | F17: 675.25 | G17: 96.63 | H17: 578.62 | I17: 1 | J17: 根 | L17: 2x6方8米/根 | N17: 武义西联/马口 | O17: 330723908000000089 | P17: 武义 | Q17: 2024 | R17: 2024B6
A18: 17 | B18: 2024年8月19日总经理专题办公会议纪要 | C18: 330700301039 | D18: =VLOOKUP(C:C,'[1]2024B1-B5清单'!$A:$D,4,0) -> 交流配电箱 | E18: 交流配电箱 | F18: 5005.84 | G18: 150.18 | H18: 4855.66 | I18: 1 | J18: 个 | L18: 交流配电箱 | N18: 武义西联/马口 | O18: 330723908000000089 | P18: 武义 | Q18: 2024 | R18: 2024B6
A19: 18 | B19: 2024年8月19日总经理专题办公会议纪要 | C19: 330700103095 | D19: =VLOOKUP(C:C,'[1]2024B1-B5清单'!$A:$D,4,0) -> 开关电源 | E19: 组合式开关电源 | F19: 3685.46 | G19: 110.56 | H19: 3574.9 | I19: 1 | J19: 架 | L19: 组合式 | N19: 武义西联/马口 | O19: 330723908000000089 | P19: 武义 | Q19: 2024 | R19: 2024B6
A20: 19 | B20: 2024年8月19日总经理专题办公会议纪要 | C20: 330700448643 | D20: =VLOOKUP(C:C,'[1]2024B1-B5清单'!$A:$D,4,0) -> 电源扩容资产 | E20: 熔丝 | F20: 289.06 | G20: 203.91 | H20: 85.15 | I20: 1 | J20: 个 | L20: 熔丝 | N20: 马口 | O20: 330723908000000089 | P20: 武义 | Q20: 2024 | R20: 2024B6
A21: 20 | B21: 2024 年金华分公司第24次党委会会议纪要（金华铁塔党委会纪要〔2024〕第26期） | C21: 330700159633 | D21: =VLOOKUP(C:C,'[1]2024B1-B5清单'!$A:$D,4,0) -> 开关电源 | E21: 嵌入式开关电源 | F21: 14312.04 | G21: 429.36 | H21: 13882.68 | I21: 1 | J21: 架 | L21: 嵌入式 | N21: 义乌长岛国际南 | O21: 33078201000595 | P21: 义乌 | Q21: 2024 | R21: 2024B5
A22: 21 | B22: 2024 年金华分公司第24次党委会会议纪要（金华铁塔党委会纪要〔2024〕第26期） | C22: 330700427222 | D22: =VLOOKUP(C:C,'[1]2024B1-B5清单'!$A:$D,4,0) -> 电源扩容资产 | E22: 模块 | F22: 1559.12 | G22: 823.95 | H22: 735.17 | I22: 1 | J22: 个 | L22: 普通模块30A | N22: 义乌长岛国际南 | O22: 33078201000595 | P22: 义乌 | Q22: 2024 | R22: 2024B5
A23: 22 | B23: 2024 年金华分公司第23次党委会会议纪要（金华铁塔党委会纪要〔2024〕第25期） | C23: 330700422617 | D23: =VLOOKUP(C:C,'[1]2024B1-B5清单'!$A:$D,4,0) -> 基站机房扩容资产 | E23: 电线电缆 | F23: 489.89 | G23: 429.85 | H23: 60.04 | I23: 2 | J23: 根 | L23: 70方红、蓝4米/根 | N23: 义乌何麻车搬迁 | O23: 330782908000001108 | P23: 义乌 | Q23: 2024 | R23: 2024B4
A24: 23 | B24: 2024 年金华分公司第23次党委会会议纪要（金华铁塔党委会纪要〔2024〕第25期） | C24: 330700319348 | D24: =VLOOKUP(C:C,'[1]2024B1-B5清单'!$A:$D,4,0) -> 动力及环境监控单元 | E24: 动环监控 | F24: 7242.34 | G24: 217.27 | H24: 7025.07 | I24: 1 | J24: 个 | L24: 监控 | N24: 义乌上山下 | O24: 33078200000369 | P24: 义乌 | Q24: 2024 | R24: 2024B4
A25: 24 | B25: 2024 年金华分公司第23次党委会会议纪要（金华铁塔党委会纪要〔2024〕第25期） | C25: 330700319336 | D25: =VLOOKUP(C:C,'[1]2024B1-B5清单'!$A:$D,4,0) -> 动力及环境监控单元 | E25: 动环监控 | F25: 4162.06 | G25: 124.86 | H25: 4037.2 | I25: 1 | J25: 个 | L25: 监控 | N25: 义乌上溪中学南 | O25: 33078200000364 | P25: 义乌 | Q25: 2024 | R25: 2024B4
A26: 25 | B26: 2024年8月19日总经理专题办公会议纪要 | C26: 330700349478 | D26: =VLOOKUP(C:C,'[1]2024B1-B5清单'!$A:$D,4,0) -> 基站机房扩容资产 | E26: 走线架 | F26: 1893.97 | G26: 1410.28 | H26: 483.69 | I26: 1 | J26: 个 | L26: 400mm室内走线架 | N26: 金华婺城华港工具 | O26: 330702908000001173 | P26: 婺城 | Q26: 2024 | R26: 2024B6
A27: 26 | B27: 2024年8月19日总经理专题办公会议纪要 | C27: 330700421636 | D27: =VLOOKUP(C:C,'[1]2024B1-B5清单'!$A:$D,4,0) -> 电源扩容资产 | E27: 熔断器 | F27: 2.38 | G27: 1.18 | H27: 1.2 | I27: 1 | J27: 个 | L27: 160A熔断器 | N27: 义乌丹桂路 | O27: 330782908000001027 | P27: 义乌 | Q27: 2024 | R27: 2024B6
A28: 27 | B28: 2024年8月19日总经理专题办公会议纪要 | C28: 330700402892 | D28: =VLOOKUP(C:C,'[1]2024B1-B5清单'!$A:$D,4,0) -> 电源扩容资产 | E28: 熔断器 | F28: 3867.7 | G28: 1522.86 | H28: 2344.84 | I28: 1 | J28: 个 | L28: 160A熔断器 | N28: 永康前园 | O28: 33078401000319 | P28: 永康 | Q28: 2024 | R28: 2024B6
A29: 28 | B29: 2024 年金华分公司第24次党委会会议纪要（金华铁塔党委会纪要〔2024〕第26期） | C29: 330700167463 | D29: =VLOOKUP(C:C,'[1]2024B1-B5清单'!$A:$D,4,0) -> 开关电源 | E29: 组合式开关电源 | F29: 9786.79 | G29: 293.6 | H29: 9493.19 | I29: 1 | J29: 架 | L29: 组合式 | N29: 磐安石研 | O29: 330727908000000379 | P29: 磐安 | Q29: 2024 | R29: 2024B5
A30: 29 | B30: 2024 年金华分公司第24次党委会会议纪要（金华铁塔党委会纪要〔2024〕第26期） | C30: 330700153866 | D30: =VLOOKUP(C:C,'[1]2024B1-B5清单'!$A:$D,4,0) -> 开关电源 | E30: 组合式开关电源 | F30: 1913.06 | G30: 57.39 | H30: 1855.67 | I30: 1 | J30: 架 | L30: 组合式 | N30: 磐安前山岭西 | O30: 330727908000000198 | P30: 磐安 | Q30: 2024 | R30: 2024B5
A31: 30 | B31: 2024 年金华分公司第24次党委会会议纪要（金华铁塔党委会纪要〔2024〕第26期） | C31: 330700122378 | D31: =VLOOKUP(C:C,'[1]2024B1-B5清单'!$A:$D,4,0) -> 开关电源 | E31: 嵌入式开关电源 | F31: 9493.2 | G31: 284.8 | H31: 9208.4 | I31: 1 | J31: 架 | L31: 嵌入式 | N31: 磐安雪头 | O31: 330727908000000638 | P31: 磐安 | Q31: 2024 | R31: 2024B5
A32: 31 | B32: 2024 年金华分公司第23次党委会会议纪要（金华铁塔党委会纪要〔2024〕第25期） | C32: 330700143441 | D32: =VLOOKUP(C:C,'[1]2024B1-B5清单'!$A:$D,4,0) -> 专用空调 | E32: 3P空调 | F32: 2125.45 | G32: 63.76 | H32: 2061.69 | I32: 1 | J32: 台 | L32: 3P | N32: 磐安墨林二 | O32: 330727908000000330 | P32: 磐安 | Q32: 2024 | R32: 2024B4
A33: 32 | B33: 2024 年金华分公司第23次党委会会议纪要（金华铁塔党委会纪要〔2024〕第25期） | C33: 330700113027 | D33: =VLOOKUP(C:C,'[1]2024B1-B5清单'!$A:$D,4,0) -> 专用空调 | E33: 壁挂空调 | F33: 1534.11 | G33: 46.02 | H33: 1488.09 | I33: 1 | J33: 台 | L33: 2P | N33: 磐安外山塘 | O33: 330727908000000640 | P33: 磐安 | Q33: 2024 | R33: 2024B4
A34: 33 | B34: 2024 年金华分公司第23次党委会会议纪要（金华铁塔党委会纪要〔2024〕第25期） | C34: 330700133597 | D34: =VLOOKUP(C:C,'[1]2024B1-B5清单'!$A:$D,4,0) -> 专用空调 | E34: 3P空调 | F34: 231.75 | G34: 6.95 | H34: 224.8 | I34: 1 | J34: 台 | L34: 3P | N34: 磐安龙溪 | O34: 330727908000000339 | P34: 磐安 | Q34: 2024 | R34: 2024B4
A35: 34 | B35: 2024 年金华分公司第23次党委会会议纪要（金华铁塔党委会纪要〔2024〕第25期） | C35: 330700158391 | D35: =VLOOKUP(C:C,'[1]2024B1-B5清单'!$A:$D,4,0) -> 专用空调 | E35: 3P空调 | F35: 231.75 | G35: 6.95 | H35: 224.8 | I35: 1 | J35: 台 | L35: 3P | N35: 磐安石研 | O35: 330727908000000379 | P35: 磐安 | Q35: 2024 | R35: 2024B4
A36: 35 | B36: 2024 年金华分公司第23次党委会会议纪要（金华铁塔党委会纪要〔2024〕第25期） | C36: 330700320668 | D36: =VLOOKUP(C:C,'[1]2024B1-B5清单'!$A:$D,4,0) -> 嵌入式开关电源 | E36: 壁挂式开关电源 | F36: 9213.87 | G36: 276.42 | H36: 8937.45 | I36: 1 | J36: 架 | L36: 壁挂式 | N36: 东阳黄皮岭林场 | O36: 330783908000001203 | P36: 东阳 | Q36: 2024 | R36: 2024B4
A37: 36 | B37: 2024 年金华分公司第23次党委会会议纪要（金华铁塔党委会纪要〔2024〕第25期） | C37: 330700117509 | D37: =VLOOKUP(C:C,'[1]2024B1-B5清单'!$A:$D,4,0) -> 开关电源 | E37: 壁挂式开关电源 | F37: 2998.54 | G37: 89.96 | H37: 2908.58 | I37: 1 | J37: 架 | L37: 壁挂式 | N37: 东阳水印时代金座1号楼 | O37: 330783908000001095 | P37: 东阳 | Q37: 2024 | R37: 2024B4
A38: 37 | B38: 2024 年金华分公司第23次党委会会议纪要（金华铁塔党委会纪要〔2024〕第25期） | C38: 330700308724 | D38: =VLOOKUP(C:C,'[1]2024B1-B5清单'!$A:$D,4,0) -> 组合式高频开关电源 | E38: 嵌入式开关电源 | F38: 16232.22 | G38: 486.97 | H38: 15745.25 | I38: 1 | J38: 架 | L38: 嵌入式 | N38: 东阳花园木材市场 | O38: 330783500000000060 | P38: 东阳 | Q38: 2024 | R38: 2024B4
A39: 38 | B39: 2024 年金华分公司第23次党委会会议纪要（金华铁塔党委会纪要〔2024〕第25期） | C39: 330700108768 | D39: =VLOOKUP(C:C,'[1]2024B1-B5清单'!$A:$D,4,0) -> 开关电源 | E39: 嵌入式开关电源 | F39: 8561.76 | G39: 256.85 | H39: 8304.91 | I39: 1 | J39: 架 | L39: 嵌入式 | N39: 东阳金路达 | O39: 330783908000001109 | P39: 东阳 | Q39: 2024 | R39: 2024B4
A40: 39 | B40: 2024 年金华分公司第23次党委会会议纪要（金华铁塔党委会纪要〔2024〕第25期） | C40: 330700137321 | D40: =VLOOKUP(C:C,'[1]2024B1-B5清单'!$A:$D,4,0) -> 开关电源 | E40: 嵌入式开关电源 | F40: 5248.4 | G40: 157.45 | H40: 5090.95 | I40: 1 | J40: 架 | L40: 嵌入式 | N40: 东阳企业联合会 | O40: 330783908000000040 | P40: 东阳 | Q40: 2024 | R40: 2024B4
A41: 40 | B41: 2024 年金华分公司第23次党委会会议纪要（金华铁塔党委会纪要〔2024〕第25期） | C41: 330700140707 | D41: =VLOOKUP(C:C,'[1]2024B1-B5清单'!$A:$D,4,0) -> 开关电源 | E41: 嵌入式开关电源 | F41: 4118.79 | G41: 123.56 | H41: 3995.23 | I41: 1 | J41: 架 | L41: 嵌入式 | N41: 东阳下昆溪 | O41: 330783908000000388 | P41: 东阳 | Q41: 2024 | R41: 2024B4
A42: 41 | B42: 2024 年金华分公司第23次党委会会议纪要（金华铁塔党委会纪要〔2024〕第25期） | C42: 330700308700 | D42: =VLOOKUP(C:C,'[1]2024B1-B5清单'!$A:$D,4,0) -> 开关电源 | E42: 组合式开关电源 | F42: 12146.5 | G42: 364.4 | H42: 11782.1 | I42: 1 | J42: 架 | L42: 组合式 | N42: 东阳横店莲塘-Y | O42: 330783500000001225 | P42: 东阳 | Q42: 2024 | R42: 2024B4
A43: 42 | B43: 2024 年金华分公司第23次党委会会议纪要（金华铁塔党委会纪要〔2024〕第25期） | C43: 330700165668 | D43: =VLOOKUP(C:C,'[1]2024B1-B5清单'!$A:$D,4,0) -> 开关电源 | E43: 嵌入式开关电源 | F43: 11068.03 | G43: 332.04 | H43: 10735.99 | I43: 1 | J43: 架 | L43: 嵌入式 | N43: 东阳大寺路 | O43: 330783908000000145 | P43: 东阳 | Q43: 2024 | R43: 2024B4
A44: 43 | B44: 2024 年金华分公司第23次党委会会议纪要（金华铁塔党委会纪要〔2024〕第25期） | C44: 330700117510 | D44: =VLOOKUP(C:C,'[1]2024B1-B5清单'!$A:$D,4,0) -> 开关电源 | E44: 嵌入式开关电源 | F44: 1582.15 | G44: 47.46 | H44: 1534.69 | I44: 1 | J44: 架 | L44: 嵌入式 | N44: 东阳东白山天池 | O44: 330783700000124467 | P44: 东阳 | Q44: 2024 | R44: 2024B4
A45: 44 | B45: 2024 年金华分公司第24次党委会会议纪要（金华铁塔党委会纪要〔2024〕第26期） | C45: 330700149328 | D45: =VLOOKUP(C:C,'[1]2024B1-B5清单'!$A:$D,4,0) -> 开关电源 | E45: 嵌入式开关电源 | F45: 14206.09 | G45: 426.18 | H45: 13779.91 | I45: 1 | J45: 架 | L45: 嵌入式 | N45: 东阳广厦学院-3 | O45: 330783908000001442 | P45: 东阳 | Q45: 2024 | R45: 2024B5
A46: 45 | B46: 2024 年金华分公司第23次党委会会议纪要（金华铁塔党委会纪要〔2024〕第25期） | C46: 330700112716 | D46: =VLOOKUP(C:C,'[1]2024B1-B5清单'!$A:$D,4,0) -> 开关电源 | E46: 嵌入式开关电源 | F46: 4497.41 | G46: 134.92 | H46: 4362.49 | I46: 1 | J46: 架 | L46: 嵌入式 | N46: 东阳平岩岭 | O46: 330783908000000869 | P46: 东阳 | Q46: 2024 | R46: 2024B4
A47: 46 | B47: 2024 年金华分公司第24次党委会会议纪要（金华铁塔党委会纪要〔2024〕第26期） | C47: 330700153719 | D47: =VLOOKUP(C:C,'[1]2024B1-B5清单'!$A:$D,4,0) -> 开关电源 | E47: 嵌入式开关电源 | F47: 4444.35 | G47: 133.33 | H47: 4311.02 | I47: 1 | J47: 架 | L47: 嵌入式 | N47: 东阳千祥新民 | O47: 330783908000000380 | P47: 东阳 | Q47: 2024 | R47: 2024B5
A48: 47 | B48: 2024 年金华分公司第24次党委会会议纪要（金华铁塔党委会纪要〔2024〕第26期） | C48: 330700159566 | D48: =VLOOKUP(C:C,'[1]2024B1-B5清单'!$A:$D,4,0) -> 开关电源 | E48: 嵌入式开关电源 | F48: 8603.75 | G48: 258.11 | H48: 8345.64 | I48: 1 | J48: 架 | L48: 嵌入式 | N48: 东阳征山 | O48: 330783908000001285 | P48: 东阳 | Q48: 2024 | R48: 2024B5
A49: 48 | B49: 2024 年金华分公司第23次党委会会议纪要（金华铁塔党委会纪要〔2024〕第25期） | C49: 330700327341 | D49: =VLOOKUP(C:C,'[1]2024B1-B5清单'!$A:$D,4,0) -> 组合式开关电源 | E49: 组合式开关电源 | F49: 5458.92 | G49: 163.77 | H49: 5295.15 | I49: 1 | J49: 架 | L49: 组合式 | N49: 东阳华店北 | O49: 330783010000001573 | P49: 东阳 | Q49: 2024 | R49: 2024B4
A50: 49 | B50: 2024 年金华分公司第23次党委会会议纪要（金华铁塔党委会纪要〔2024〕第25期） | C50: 330700112850 | D50: =VLOOKUP(C:C,'[1]2024B1-B5清单'!$A:$D,4,0) -> 专用空调 | E50: 壁挂空调 | F50: 2193.4 | G50: 65.8 | H50: 2127.6 | I50: 1 | J50: 台 | L50: 1P挂机 | N50: 东阳横店康庄南路 | O50: 330783908000000024 | P50: 东阳 | Q50: 2024 | R50: 2024B4
A51: 50 | B51: 2024 年金华分公司第24次党委会会议纪要（金华铁塔党委会纪要〔2024〕第26期） | C51: 330700159221 | D51: =VLOOKUP(C:C,'[1]2024B1-B5清单'!$A:$D,4,0) -> 专用空调 | E51: 3P空调 | F51: 1206 | G51: 36.18 | H51: 1169.82 | I51: 1 | J51: 台 | L51: 3P | N51: 东阳金路达 | O51: 330783908000001109 | P51: 东阳 | Q51: 2024 | R51: 2024B5
A52: 51 | B52: 2024 年金华分公司第24次党委会会议纪要（金华铁塔党委会纪要〔2024〕第26期） | C52: 330700160988 | D52: =VLOOKUP(C:C,'[1]2024B1-B5清单'!$A:$D,4,0) -> 专用空调 | E52: 壁挂空调 | F52: 4316.42 | G52: 129.49 | H52: 4186.93 | I52: 1 | J52: 台 | L52: 1.5P挂机 | N52: 东阳花园小区 | O52: 330783908000001588 | P52: 东阳 | Q52: 2024 | R52: 2024B5
A53: 52 | B53: 2024 年金华分公司第24次党委会会议纪要（金华铁塔党委会纪要〔2024〕第26期） | C53: 330700165149 | D53: =VLOOKUP(C:C,'[1]2024B1-B5清单'!$A:$D,4,0) -> 专用空调 | E53: 3P空调 | F53: 2763.09 | G53: 82.89 | H53: 2680.2 | I53: 1 | J53: 台 | L53: 3P | N53: 东阳曲塘 | O53: 330783908000001264 | P53: 东阳 | Q53: 2024 | R53: 2024B5
A54: 53 | B54: 2024 年金华分公司第24次党委会会议纪要（金华铁塔党委会纪要〔2024〕第26期） | C54: 330700148219 | D54: =VLOOKUP(C:C,'[1]2024B1-B5清单'!$A:$D,4,0) -> 专用空调 | E54: 3P空调 | F54: 236.46 | G54: 7.09 | H54: 229.37 | I54: 1 | J54: 台 | L54: 3P | N54: 东阳吴山 | O54: 330783908000001157 | P54: 东阳 | Q54: 2024 | R54: 2024B5
A55: 54 | B55: 2024 年金华分公司第24次党委会会议纪要（金华铁塔党委会纪要〔2024〕第26期） | C55: 330700173607 | D55: =VLOOKUP(C:C,'[1]2024B1-B5清单'!$A:$D,4,0) -> 专用空调 | E55: 3P空调 | F55: 8112.52 | G55: 243.38 | H55: 7869.14 | I55: 1 | J55: 台 | L55: 3P | N55: 东阳兴盛路 | O55: 330783908000001183 | P55: 东阳 | Q55: 2024 | R55: 2024B5
A56: 55 | B56: 2024 年金华分公司第24次党委会会议纪要（金华铁塔党委会纪要〔2024〕第26期） | C56: 330700113749 | D56: =VLOOKUP(C:C,'[1]2024B1-B5清单'!$A:$D,4,0) -> 专用空调 | E56: 壁挂空调 | F56: 880.94 | G56: 26.43 | H56: 854.51 | I56: 1 | J56: 台 | L56: 1.5P挂机 | N56: 东阳八达-2 | O56: 330783908000000206 | P56: 东阳 | Q56: 2024 | R56: 2024B5
A57: 56 | B57: 2024 年金华分公司第24次党委会会议纪要（金华铁塔党委会纪要〔2024〕第26期） | C57: 330700340535 | D57: =VLOOKUP(C:C,'[1]2024B1-B5清单'!$A:$D,4,0) -> 普通空调柜式 | E57: 壁挂空调 | F57: 6180.47 | G57: 185.41 | H57: 5995.06 | I57: 1 | J57: 台 | L57: 1P挂机 | N57: 东阳光田 | O57: 330783908000001338 | P57: 东阳 | Q57: 2024 | R57: 2024B5
A58: 57 | B58: 2024 年金华分公司第24次党委会会议纪要（金华铁塔党委会纪要〔2024〕第26期） | C58: 330700152216 | D58: =VLOOKUP(C:C,'[1]2024B1-B5清单'!$A:$D,4,0) -> 专用空调 | E58: 3P空调 | F58: 4832.35 | G58: 144.97 | H58: 4687.38 | I58: 1 | J58: 台 | L58: 3P | N58: 东阳国土局 | O58: 330783908000000973 | P58: 东阳 | Q58: 2024 | R58: 2024B5
A59: 58 | B59: 2024 年金华分公司第23次党委会会议纪要（金华铁塔党委会纪要〔2024〕第25期） | C59: 330700319789 | D59: 嵌入式开关电源 | E59: 嵌入式开关电源 | F59: 9292.45 | G59: 278.77 | H59: 9013.68 | I59: 1 | J59: 架 | L59: 嵌入式 | N59: =VLOOKUP(C:C,'[2]2024B1-B6清单'!$A:$O,15,0) -> 金东亚虎工具 | O59: =VLOOKUP(C:C,'[2]2024B1-B6清单'!$A:$P,16,0) -> 33070301000157 | P59: =VLOOKUP(C:C,'[2]2024B1-B6清单'!$A:$C,3,0) -> 金东 | Q59: 2024 | R59: 2024B4
A60: 59 | B60: 2024 年金华分公司第23次党委会会议纪要（金华铁塔党委会纪要〔2024〕第25期） | C60: 330700100387 | D60: 开关电源 | E60: 嵌入式开关电源 | F60: 8032.72 | G60: 240.98 | H60: 7791.74 | I60: 1 | J60: 架 | L60: 嵌入式 | N60: =VLOOKUP(C:C,'[2]2024B1-B6清单'!$A:$O,15,0) -> 金华婺城汤溪曹界 | O60: =VLOOKUP(C:C,'[2]2024B1-B6清单'!$A:$P,16,0) -> 330702908000001290 | P60: =VLOOKUP(C:C,'[2]2024B1-B6清单'!$A:$C,3,0) -> 婺城 | Q60: 2024 | R60: 2024B4
A61: 60 | B61: 2024 年金华分公司第23次党委会会议纪要（金华铁塔党委会纪要〔2024〕第25期） | C61: 330700327054 | D61: 组合式开关电源 | E61: 嵌入式开关电源 | F61: 5386.5 | G61: 161.6 | H61: 5224.9 | I61: 1 | J61: 架 | L61: 嵌入式 | N61: =VLOOKUP(C:C,'[2]2024B1-B6清单'!$A:$O,15,0) -> 金温贾村 | O61: =VLOOKUP(C:C,'[2]2024B1-B6清单'!$A:$P,16,0) -> 330703700000124503 | P61: =VLOOKUP(C:C,'[2]2024B1-B6清单'!$A:$C,3,0) -> 金东 | Q61: 2024 | R61: 2024B4
A62: 61 | B62: 2024 年金华分公司第23次党委会会议纪要（金华铁塔党委会纪要〔2024〕第25期） | C62: 330700327056 | D62: 组合式开关电源 | E62: 嵌入式开关电源 | F62: 5386.5 | G62: 161.6 | H62: 5224.9 | I62: 1 | J62: 架 | L62: 嵌入式 | N62: =VLOOKUP(C:C,'[2]2024B1-B6清单'!$A:$O,15,0) -> 金温南王村 | O62: =VLOOKUP(C:C,'[2]2024B1-B6清单'!$A:$P,16,0) -> 330703700000124513 | P62: =VLOOKUP(C:C,'[2]2024B1-B6清单'!$A:$C,3,0) -> 金东 | Q62: 2024 | R62: 2024B4
A63: 62 | B63: 2024 年金华分公司第23次党委会会议纪要（金华铁塔党委会纪要〔2024〕第25期） | C63: 330700308523 | D63: 嵌入式高频开关电源-48V/300A高效系统(50A高效模块，共用电源系统，三相交流输入)-100A | E63: 嵌入式开关电源 | F63: 8607.37 | G63: 258.22 | H63: 8349.15 | I63: 1 | J63: 架 | L63: 嵌入式 | N63: =VLOOKUP(C:C,'[2]2024B1-B6清单'!$A:$O,15,0) -> 兰溪厚仁二 | O63: =VLOOKUP(C:C,'[2]2024B1-B6清单'!$A:$P,16,0) -> 330781908000000360 | P63: =VLOOKUP(C:C,'[2]2024B1-B6清单'!$A:$C,3,0) -> 兰溪 | Q63: 2024 | R63: 2024B4
A64: 63 | B64: 2024 年金华分公司第23次党委会会议纪要（金华铁塔党委会纪要〔2024〕第25期） | C64: 330700325306 | D64: 嵌入式高频开关电源-48V/300A高效系统(50A)-100A | E64: 嵌入式开关电源 | F64: 7277 | G64: 218.31 | H64: 7058.69 | I64: 1 | J64: 架 | L64: 嵌入式 | N64: =VLOOKUP(C:C,'[2]2024B1-B6清单'!$A:$O,15,0) -> 兰溪伍家桥 | O64: =VLOOKUP(C:C,'[2]2024B1-B6清单'!$A:$P,16,0) -> 330781908000000288 | P64: =VLOOKUP(C:C,'[2]2024B1-B6清单'!$A:$C,3,0) -> 兰溪 | Q64: 2024 | R64: 2024B4
A65: 64 | B65: 2024 年金华分公司第24次党委会会议纪要（金华铁塔党委会纪要〔2024〕第26期） | C65: 330700174511 | D65: 开关电源 | E65: 嵌入式开关电源 | F65: 9439.34 | G65: 283.18 | H65: 9156.16 | I65: 1 | J65: 架 | L65: 嵌入式 | N65: =VLOOKUP(C:C,'[2]2024B1-B6清单'!$A:$O,15,0) -> 武义石门峡峡谷天师庙山顶北侧平台上资源点 | O65: =VLOOKUP(C:C,'[2]2024B1-B6清单'!$A:$P,16,0) -> 330723908000000953 | P65: =VLOOKUP(C:C,'[2]2024B1-B6清单'!$A:$C,3,0) -> 武义 | Q65: 2024 | R65: 2024B5
A66: 65 | B66: 2024 年金华分公司第23次党委会会议纪要（金华铁塔党委会纪要〔2024〕第25期） | C66: 330700315335 | D66: 嵌入式高频开关电源-48V/300A高效系统(50A高效模块，共用电源系统，三相交流输入)-100A | E66: 嵌入式开关电源 | F66: 9055.5 | G66: 271.66 | H66: 8783.84 | I66: 1 | J66: 架 | L66: 嵌入式 | N66: =VLOOKUP(C:C,'[2]2024B1-B6清单'!$A:$O,15,0) -> 武义塘头东 | O66: =VLOOKUP(C:C,'[2]2024B1-B6清单'!$A:$P,16,0) -> 330723908000000638 | P66: =VLOOKUP(C:C,'[2]2024B1-B6清单'!$A:$C,3,0) -> 武义 | Q66: 2024 | R66: 2024B4
A67: 66 | B67: 2024 年金华分公司第23次党委会会议纪要（金华铁塔党委会纪要〔2024〕第25期） | C67: 330700153705 | D67: 开关电源 | E67: 嵌入式开关电源 | F67: 3472.81 | G67: 104.18 | H67: 3368.63 | I67: 1 | J67: 架 | L67: 嵌入式 | N67: =VLOOKUP(C:C,'[2]2024B1-B6清单'!$A:$O,15,0) -> 婺城金德普业 | O67: =VLOOKUP(C:C,'[2]2024B1-B6清单'!$A:$P,16,0) -> 330702500000000114 | P67: =VLOOKUP(C:C,'[2]2024B1-B6清单'!$A:$C,3,0) -> 婺城 | Q67: 2024 | R67: 2024B4
A68: 67 | B68: 2024 年金华分公司第23次党委会会议纪要（金华铁塔党委会纪要〔2024〕第25期） | C68: 330700329413 | D68: 落地式开关电源 | E68: 组合式开关电源 | F68: 3249.5 | G68: 97.48 | H68: 3152.02 | I68: 1 | J68: 架 | L68: 组合式 | N68: =VLOOKUP(C:C,'[2]2024B1-B6清单'!$A:$O,15,0) -> 金华东孝金东L | O68: =VLOOKUP(C:C,'[2]2024B1-B6清单'!$A:$P,16,0) -> 330703908000000574 | P68: =VLOOKUP(C:C,'[2]2024B1-B6清单'!$A:$C,3,0) -> 金东 | Q68: 2024 | R68: 2024B4
A69: 68 | B69: 2024 年金华分公司第23次党委会会议纪要（金华铁塔党委会纪要〔2024〕第25期） | C69: 330700108497 | D69: 开关电源 | E69: 组合式开关电源 | F69: 8500.03 | G69: 255 | H69: 8245.03 | I69: 1 | J69: 架 | L69: 组合式 | N69: =VLOOKUP(C:C,'[2]2024B1-B6清单'!$A:$O,15,0) -> 金华金东顶塘 | O69: =VLOOKUP(C:C,'[2]2024B1-B6清单'!$A:$P,16,0) -> 330703908000000330 | P69: =VLOOKUP(C:C,'[2]2024B1-B6清单'!$A:$C,3,0) -> 金东 | Q69: 2024 | R69: 2024B4
A70: 69 | B70: 2024 年金华分公司第23次党委会会议纪要（金华铁塔党委会纪要〔2024〕第25期） | C70: 330700147176 | D70: 开关电源 | E70: 组合式开关电源 | F70: 4628.81 | G70: 138.86 | H70: 4489.95 | I70: 1 | J70: 架 | L70: 组合式 | N70: =VLOOKUP(C:C,'[2]2024B1-B6清单'!$A:$O,15,0) -> 金华金东畈田蒋 | O70: =VLOOKUP(C:C,'[2]2024B1-B6清单'!$A:$P,16,0) -> 330703908000000484 | P70: =VLOOKUP(C:C,'[2]2024B1-B6清单'!$A:$C,3,0) -> 金东 | Q70: 2024 | R70: 2024B4
A71: 70 | B71: 2024 年金华分公司第24次党委会会议纪要（金华铁塔党委会纪要〔2024〕第26期） | C71: 330700162183 | D71: 开关电源 | E71: 组合式开关电源 | F71: 4305.66 | G71: 129.17 | H71: 4176.49 | I71: 1 | J71: 架 | L71: 组合式 | N71: =VLOOKUP(C:C,'[2]2024B1-B6清单'!$A:$O,15,0) -> 金华金东岭下三文塘 | O71: =VLOOKUP(C:C,'[2]2024B1-B6清单'!$A:$P,16,0) -> 330703908000000236 | P71: =VLOOKUP(C:C,'[2]2024B1-B6清单'!$A:$C,3,0) -> 金东 | Q71: 2024 | R71: 2024B5
A72: 71 | B72: 2024 年金华分公司第24次党委会会议纪要（金华铁塔党委会纪要〔2024〕第26期） | C72: 330700107304 | D72: 开关电源 | E72: 组合式开关电源 | F72: 4237.06 | G72: 127.11 | H72: 4109.95 | I72: 1 | J72: 架 | L72: 组合式 | N72: =VLOOKUP(C:C,'[2]2024B1-B6清单'!$A:$O,15,0) -> 金华金东潘村二 | O72: =VLOOKUP(C:C,'[2]2024B1-B6清单'!$A:$P,16,0) -> 330703908000000417 | P72: =VLOOKUP(C:C,'[2]2024B1-B6清单'!$A:$C,3,0) -> 金东 | Q72: 2024 | R72: 2024B5
A73: 72 | B73: 2024 年金华分公司第24次党委会会议纪要（金华铁塔党委会纪要〔2024〕第26期） | C73: 330700125244 | D73: 开关电源 | E73: 组合式开关电源 | F73: 1531.93 | G73: 45.96 | H73: 1485.97 | I73: 1 | J73: 架 | L73: 组合式 | N73: =VLOOKUP(C:C,'[2]2024B1-B6清单'!$A:$O,15,0) -> 金华汤溪西章村 | O73: =VLOOKUP(C:C,'[2]2024B1-B6清单'!$A:$P,16,0) -> 330702908000000030 | P73: =VLOOKUP(C:C,'[2]2024B1-B6清单'!$A:$C,3,0) -> 婺城 | Q73: 2024 | R73: 2024B5
A74: 73 | B74: 2024 年金华分公司第24次党委会会议纪要（金华铁塔党委会纪要〔2024〕第26期） | C74: 330700100299 | D74: 开关电源 | E74: 组合式开关电源 | F74: 4406.41 | G74: 132.19 | H74: 4274.22 | I74: 1 | J74: 架 | L74: 组合式 | N74: =VLOOKUP(C:C,'[2]2024B1-B6清单'!$A:$O,15,0) -> 金华婺城周村 | O74: =VLOOKUP(C:C,'[2]2024B1-B6清单'!$A:$P,16,0) -> 330702908000001296 | P74: =VLOOKUP(C:C,'[2]2024B1-B6清单'!$A:$C,3,0) -> 婺城 | Q74: 2024 | R74: 2024B5
A75: 74 | B75: 2024 年金华分公司第23次党委会会议纪要（金华铁塔党委会纪要〔2024〕第25期） | C75: 330700168231 | D75: 开关电源 | E75: 组合式开关电源 | F75: 1183.75 | G75: 35.51 | H75: 1148.24 | I75: 1 | J75: 架 | L75: 组合式 | N75: =VLOOKUP(C:C,'[2]2024B1-B6清单'!$A:$O,15,0) -> 金华郑宅 | O75: =VLOOKUP(C:C,'[2]2024B1-B6清单'!$A:$P,16,0) -> 330702908000000111 | P75: =VLOOKUP(C:C,'[2]2024B1-B6清单'!$A:$C,3,0) -> 婺城 | Q75: 2024 | R75: 2024B4
A76: 75 | B76: 2024 年金华分公司第23次党委会会议纪要（金华铁塔党委会纪要〔2024〕第25期） | C76: 330700300166 | D76: 开关电源 | E76: 组合式开关电源 | F76: 9725.5 | G76: 291.77 | H76: 9433.73 | I76: 1 | J76: 架 | L76: 组合式 | N76: =VLOOKUP(C:C,'[2]2024B1-B6清单'!$A:$O,15,0) -> 金华竹马-2 | O76: =VLOOKUP(C:C,'[2]2024B1-B6清单'!$A:$P,16,0) -> 330702908000000549 | P76: =VLOOKUP(C:C,'[2]2024B1-B6清单'!$A:$C,3,0) -> 婺城 | Q76: 2024 | R76: 2024B4
A77: 76 | B77: 2024 年金华分公司第24次党委会会议纪要（金华铁塔党委会纪要〔2024〕第26期） | C77: 330700141438 | D77: 开关电源 | E77: 组合式开关电源 | F77: 4464.36 | G77: 133.93 | H77: 4330.43 | I77: 1 | J77: 架 | L77: 组合式 | N77: =VLOOKUP(C:C,'[2]2024B1-B6清单'!$A:$O,15,0) -> 兰溪里胡 | O77: =VLOOKUP(C:C,'[2]2024B1-B6清单'!$A:$P,16,0) -> 330781908000000476 | P77: =VLOOKUP(C:C,'[2]2024B1-B6清单'!$A:$C,3,0) -> 兰溪 | Q77: 2024 | R77: 2024B5
A78: 77 | B78: 2024 年金华分公司第23次党委会会议纪要（金华铁塔党委会纪要〔2024〕第25期） | C78: 330700306796 | D78: 开关电源 | E78: 组合式开关电源 | F78: 5443 | G78: 163.29 | H78: 5279.71 | I78: 1 | J78: 架 | L78: 组合式 | N78: =VLOOKUP(C:C,'[2]2024B1-B6清单'!$A:$O,15,0) -> 兰溪马坞村 | O78: =VLOOKUP(C:C,'[2]2024B1-B6清单'!$A:$P,16,0) -> 33078101000220 | P78: =VLOOKUP(C:C,'[2]2024B1-B6清单'!$A:$C,3,0) -> 兰溪 | Q78: 2024 | R78: 2024B4
A79: 78 | B79: 2024 年金华分公司第24次党委会会议纪要（金华铁塔党委会纪要〔2024〕第26期） | C79: 330700100264 | D79: 开关电源 | E79: 组合式开关电源 | F79: 1199.59 | G79: 35.99 | H79: 1163.6 | I79: 1 | J79: 架 | L79: 组合式 | N79: =VLOOKUP(C:C,'[2]2024B1-B6清单'!$A:$O,15,0) -> 兰溪孟湖 | O79: =VLOOKUP(C:C,'[2]2024B1-B6清单'!$A:$P,16,0) -> 330781908000000809 | P79: =VLOOKUP(C:C,'[2]2024B1-B6清单'!$A:$C,3,0) -> 兰溪 | Q79: 2024 | R79: 2024B5
A80: 79 | B80: 2024 年金华分公司第24次党委会会议纪要（金华铁塔党委会纪要〔2024〕第26期） | C80: 330700162430 | D80: 开关电源 | E80: 组合式开关电源 | F80: 4163.31 | G80: 124.9 | H80: 4038.41 | I80: 1 | J80: 架 | L80: 组合式 | N80: =VLOOKUP(C:C,'[2]2024B1-B6清单'!$A:$O,15,0) -> 兰溪下田 | O80: =VLOOKUP(C:C,'[2]2024B1-B6清单'!$A:$P,16,0) -> 330781908000000269 | P80: =VLOOKUP(C:C,'[2]2024B1-B6清单'!$A:$C,3,0) -> 兰溪 | Q80: 2024 | R80: 2024B5
A81: 80 | B81: 2024 年金华分公司第23次党委会会议纪要（金华铁塔党委会纪要〔2024〕第25期） | C81: 330700122785 | D81: 开关电源 | E81: 组合式开关电源 | F81: 4782.65 | G81: 143.48 | H81: 4639.17 | I81: 1 | J81: 架 | L81: 组合式 | N81: =VLOOKUP(C:C,'[2]2024B1-B6清单'!$A:$O,15,0) -> 武义陈村 | O81: =VLOOKUP(C:C,'[2]2024B1-B6清单'!$A:$P,16,0) -> 330723908000000545 | P81: =VLOOKUP(C:C,'[2]2024B1-B6清单'!$A:$C,3,0) -> 武义 | Q81: 2024 | R81: 2024B4
A82: 81 | B82: 2024 年金华分公司第23次党委会会议纪要（金华铁塔党委会纪要〔2024〕第25期） | C82: 330700104217 | D82: 开关电源 | E82: 组合式开关电源 | F82: 4785.81 | G82: 143.57 | H82: 4642.24 | I82: 1 | J82: 架 | L82: 组合式 | N82: =VLOOKUP(C:C,'[2]2024B1-B6清单'!$A:$O,15,0) -> 武义湖塘沿 | O82: =VLOOKUP(C:C,'[2]2024B1-B6清单'!$A:$P,16,0) -> 330723908000000446 | P82: =VLOOKUP(C:C,'[2]2024B1-B6清单'!$A:$C,3,0) -> 武义 | Q82: 2024 | R82: 2024B4
A83: 82 | B83: 2024 年金华分公司第23次党委会会议纪要（金华铁塔党委会纪要〔2024〕第25期） | C83: 330700310086 | D83: 开关电源 | E83: 组合式开关电源 | F83: 6727.58 | G83: 201.83 | H83: 6525.75 | I83: 1 | J83: 架 | L83: 组合式 | N83: =VLOOKUP(C:C,'[2]2024B1-B6清单'!$A:$O,15,0) -> 武义解放弄 | O83: =VLOOKUP(C:C,'[2]2024B1-B6清单'!$A:$P,16,0) -> 33072300000235 | P83: =VLOOKUP(C:C,'[2]2024B1-B6清单'!$A:$C,3,0) -> 武义 | Q83: 2024 | R83: 2024B4
A84: 83 | B84: 2024 年金华分公司第23次党委会会议纪要（金华铁塔党委会纪要〔2024〕第25期） | C84: 330700300453 | D84: 开关电源 | E84: 组合式开关电源 | F84: 4624.87 | G84: 138.75 | H84: 4486.12 | I84: 1 | J84: 架 | L84: 组合式 | N84: =VLOOKUP(C:C,'[2]2024B1-B6清单'!$A:$O,15,0) -> 婺城九峰职校 | O84: =VLOOKUP(C:C,'[2]2024B1-B6清单'!$A:$P,16,0) -> 33070201000222 | P84: =VLOOKUP(C:C,'[2]2024B1-B6清单'!$A:$C,3,0) -> 婺城 | Q84: 2024 | R84: 2024B4
A85: 84 | B85: 2024 年金华分公司第23次党委会会议纪要（金华铁塔党委会纪要〔2024〕第25期） | C85: 330700300073 | D85: 开关电源 | E85: 组合式开关电源 | F85: 3125.17 | G85: 93.76 | H85: 3031.41 | I85: 1 | J85: 架 | L85: 组合式 | N85: =VLOOKUP(C:C,'[2]2024B1-B6清单'!$A:$O,15,0) -> 婺城玲珑岩 | O85: =VLOOKUP(C:C,'[2]2024B1-B6清单'!$A:$P,16,0) -> 33070201000047 | P85: =VLOOKUP(C:C,'[2]2024B1-B6清单'!$A:$C,3,0) -> 婺城 | Q85: 2024 | R85: 2024B4
A86: 85 | B86: 2024 年金华分公司第23次党委会会议纪要（金华铁塔党委会纪要〔2024〕第25期） | C86: 330700306711 | D86: 嵌入式开关电源 | E86: 组合式开关电源 | F86: 7096.94 | G86: 212.91 | H86: 6884.03 | I86: 1 | J86: 架 | L86: 组合式 | N86: =VLOOKUP(C:C,'[2]2024B1-B6清单'!$A:$O,15,0) -> 婺城清江塘 | O86: =VLOOKUP(C:C,'[2]2024B1-B6清单'!$A:$P,16,0) -> 330702500000000164 | P86: =VLOOKUP(C:C,'[2]2024B1-B6清单'!$A:$C,3,0) -> 婺城 | Q86: 2024 | R86: 2024B4
A87: 86 | B87: 2024 年金华分公司第23次党委会会议纪要（金华铁塔党委会纪要〔2024〕第25期） | C87: 330700112852 | D87: 专用空调 | E87: 壁挂空调 | F87: 569.05 | G87: 17.07 | H87: 551.98 | I87: 1 | J87: 台 | L87: 2P | N87: =VLOOKUP(C:C,'[2]2024B1-B6清单'!$A:$O,15,0) -> 金华傅村何家 | O87: =VLOOKUP(C:C,'[2]2024B1-B6清单'!$A:$P,16,0) -> 330703908000000695 | P87: =VLOOKUP(C:C,'[2]2024B1-B6清单'!$A:$C,3,0) -> 金东 | Q87: 2024 | R87: 2024B4
A88: 87 | B88: 2024 年金华分公司第23次党委会会议纪要（金华铁塔党委会纪要〔2024〕第25期） | C88: 330700112907 | D88: 专用空调 | E88: 壁挂空调 | F88: 3763 | G88: 112.89 | H88: 3650.11 | I88: 1 | J88: 台 | L88: 2P | N88: =VLOOKUP(C:C,'[2]2024B1-B6清单'!$A:$O,15,0) -> 金华金东陈坞 | O88: =VLOOKUP(C:C,'[2]2024B1-B6清单'!$A:$P,16,0) -> 330703908000000144 | P88: =VLOOKUP(C:C,'[2]2024B1-B6清单'!$A:$C,3,0) -> 金东 | Q88: 2024 | R88: 2024B4
A89: 88 | B89: 2024 年金华分公司第23次党委会会议纪要（金华铁塔党委会纪要〔2024〕第25期） | C89: 330700348505 | D89: 普通空调壁挂 | E89: 壁挂空调 | F89: 3456.72 | G89: 103.7 | H89: 3353.02 | I89: 1 | J89: 台 | L89: 2P | N89: =VLOOKUP(C:C,'[2]2024B1-B6清单'!$A:$O,15,0) -> 金华婺城前庄头 | O89: =VLOOKUP(C:C,'[2]2024B1-B6清单'!$A:$P,16,0) -> 330702908000001021 | P89: =VLOOKUP(C:C,'[2]2024B1-B6清单'!$A:$C,3,0) -> 婺城 | Q89: 2024 | R89: 2024B4
A90: 89 | B90: 2024 年金华分公司第23次党委会会议纪要（金华铁塔党委会纪要〔2024〕第25期） | C90: 330700108960 | D90: 专用空调 | E90: 壁挂空调 | F90: 2982.89 | G90: 89.49 | H90: 2893.4 | I90: 1 | J90: 台 | L90: 2P | N90: =VLOOKUP(C:C,'[2]2024B1-B6清单'!$A:$O,15,0) -> 武义汤村 | O90: =VLOOKUP(C:C,'[2]2024B1-B6清单'!$A:$P,16,0) -> 330723908000000496 | P90: =VLOOKUP(C:C,'[2]2024B1-B6清单'!$A:$C,3,0) -> 武义 | Q90: 2024 | R90: 2024B4
A91: 90 | B91: 2024 年金华分公司第23次党委会会议纪要（金华铁塔党委会纪要〔2024〕第25期） | C91: 330700151929 | D91: 专用空调 | E91: 壁挂空调 | F91: 3913.2 | G91: 117.4 | H91: 3795.8 | I91: 1 | J91: 台 | L91: 2P | N91: =VLOOKUP(C:C,'[2]2024B1-B6清单'!$A:$O,15,0) -> 武义汤村 | O91: =VLOOKUP(C:C,'[2]2024B1-B6清单'!$A:$P,16,0) -> 330723908000000496 | P91: =VLOOKUP(C:C,'[2]2024B1-B6清单'!$A:$C,3,0) -> 武义 | Q91: 2024 | R91: 2024B4
A92: 91 | B92: 2024 年金华分公司第23次党委会会议纪要（金华铁塔党委会纪要〔2024〕第25期） | C92: 330700159164 | D92: 专用空调 | E92: 3P空调 | F92: 1645.45 | G92: 49.36 | H92: 1596.09 | I92: 1 | J92: 台 | L92: 3P | N92: =VLOOKUP(C:C,'[2]2024B1-B6清单'!$A:$O,15,0) -> 金华宾馆南 | O92: =VLOOKUP(C:C,'[2]2024B1-B6清单'!$A:$P,16,0) -> 330702908000000417 | P92: =VLOOKUP(C:C,'[2]2024B1-B6清单'!$A:$C,3,0) -> 婺城 | Q92: 2024 | R92: 2024B4
A93: 92 | B93: 2024 年金华分公司第23次党委会会议纪要（金华铁塔党委会纪要〔2024〕第25期） | C93: 330700140759 | D93: 专用空调 | E93: 3P空调 | F93: 288 | G93: 8.64 | H93: 279.36 | I93: 1 | J93: 台 | L93: 3P | N93: =VLOOKUP(C:C,'[2]2024B1-B6清单'!$A:$O,15,0) -> 金华曹宅镇潘二村 | O93: =VLOOKUP(C:C,'[2]2024B1-B6清单'!$A:$P,16,0) -> 330703908000000866 | P93: =VLOOKUP(C:C,'[2]2024B1-B6清单'!$A:$C,3,0) -> 金东 | Q93: 2024 | R93: 2024B4
A94: 93 | B94: 2024 年金华分公司第23次党委会会议纪要（金华铁塔党委会纪要〔2024〕第25期） | C94: 330700112851 | D94: 专用空调 | E94: 3P空调 | F94: 569.05 | G94: 17.07 | H94: 551.98 | I94: 1 | J94: 台 | L94: 3P | N94: =VLOOKUP(C:C,'[2]2024B1-B6清单'!$A:$O,15,0) -> 金华傅村何家 | O94: =VLOOKUP(C:C,'[2]2024B1-B6清单'!$A:$P,16,0) -> 330703908000000695 | P94: =VLOOKUP(C:C,'[2]2024B1-B6清单'!$A:$C,3,0) -> 金东 | Q94: 2024 | R94: 2024B4
A95: 94 | B95: 2024 年金华分公司第23次党委会会议纪要（金华铁塔党委会纪要〔2024〕第25期） | C95: 330700300677 | D95: 专用空调 | E95: 3P空调 | F95: 4491 | G95: 134.73 | H95: 4356.27 | I95: 1 | J95: 台 | L95: 3P | N95: =VLOOKUP(C:C,'[2]2024B1-B6清单'!$A:$O,15,0) -> 金华根森工艺 | O95: =VLOOKUP(C:C,'[2]2024B1-B6清单'!$A:$P,16,0) -> 330703908000000606 | P95: =VLOOKUP(C:C,'[2]2024B1-B6清单'!$A:$C,3,0) -> 金东 | Q95: 2024 | R95: 2024B4
A96: 95 | B96: 2024 年金华分公司第23次党委会会议纪要（金华铁塔党委会纪要〔2024〕第25期） | C96: 330700143555 | D96: 专用空调 | E96: 3P空调 | F96: 252.77 | G96: 7.58 | H96: 245.19 | I96: 1 | J96: 台 | L96: 3P | N96: =VLOOKUP(C:C,'[2]2024B1-B6清单'!$A:$O,15,0) -> 金华金东车客二 | O96: =VLOOKUP(C:C,'[2]2024B1-B6清单'!$A:$P,16,0) -> 330703908000000356 | P96: =VLOOKUP(C:C,'[2]2024B1-B6清单'!$A:$C,3,0) -> 金东 | Q96: 2024 | R96: 2024B4
A97: 96 | B97: 2024 年金华分公司第23次党委会会议纪要（金华铁塔党委会纪要〔2024〕第25期） | C97: 330700165143 | D97: 专用空调 | E97: 3P空调 | F97: 2034.36 | G97: 61.03 | H97: 1973.33 | I97: 1 | J97: 台 | L97: 3P | N97: =VLOOKUP(C:C,'[2]2024B1-B6清单'!$A:$O,15,0) -> 金华金东金柳锁业 | O97: =VLOOKUP(C:C,'[2]2024B1-B6清单'!$A:$P,16,0) -> 330703908000000211 | P97: =VLOOKUP(C:C,'[2]2024B1-B6清单'!$A:$C,3,0) -> 金东 | Q97: 2024 | R97: 2024B4
A98: 97 | B98: 2024 年金华分公司第23次党委会会议纪要（金华铁塔党委会纪要〔2024〕第25期） | C98: 330700168946 | D98: 专用空调 | E98: 3P空调 | F98: 231.75 | G98: 6.95 | H98: 224.8 | I98: 1 | J98: 台 | L98: 3P | N98: =VLOOKUP(C:C,'[2]2024B1-B6清单'!$A:$O,15,0) -> 金华金东郡塘下 | O98: =VLOOKUP(C:C,'[2]2024B1-B6清单'!$A:$P,16,0) -> 330703908000000476 | P98: =VLOOKUP(C:C,'[2]2024B1-B6清单'!$A:$C,3,0) -> 金东 | Q98: 2024 | R98: 2024B4
A99: 98 | B99: 2024 年金华分公司第23次党委会会议纪要（金华铁塔党委会纪要〔2024〕第25期） | C99: 330700131822 | D99: 专用空调 | E99: 3P空调 | F99: 2125.45 | G99: 63.76 | H99: 2061.69 | I99: 1 | J99: 台 | L99: 3P | N99: =VLOOKUP(C:C,'[2]2024B1-B6清单'!$A:$O,15,0) -> 金华金东赛格染整 | O99: =VLOOKUP(C:C,'[2]2024B1-B6清单'!$A:$P,16,0) -> 330703908000000101 | P99: =VLOOKUP(C:C,'[2]2024B1-B6清单'!$A:$C,3,0) -> 金东 | Q99: 2024 | R99: 2024B4
A100: 99 | B100: 2024 年金华分公司第23次党委会会议纪要（金华铁塔党委会纪要〔2024〕第25期） | C100: 330700148057 | D100: 专用空调 | E100: 3P空调 | F100: 128.75 | G100: 3.86 | H100: 124.89 | I100: 1 | J100: 台 | L100: 3P | N100: =VLOOKUP(C:C,'[2]2024B1-B6清单'!$A:$O,15,0) -> 金华罗埠后张村 | O100: =VLOOKUP(C:C,'[2]2024B1-B6清单'!$A:$P,16,0) -> 330702908000000037 | P100: =VLOOKUP(C:C,'[2]2024B1-B6清单'!$A:$C,3,0) -> 婺城 | Q100: 2024 | R100: 2024B4
A101: 100 | B101: 2024 年金华分公司第23次党委会会议纪要（金华铁塔党委会纪要〔2024〕第25期） | C101: 330700152028 | D101: 专用空调 | E101: 3P空调 | F101: 10080 | G101: 302.4 | H101: 9777.6 | I101: 1 | J101: 台 | L101: 3P | N101: =VLOOKUP(C:C,'[2]2024B1-B6清单'!$A:$O,15,0) -> 金华婺城后畈田 | O101: =VLOOKUP(C:C,'[2]2024B1-B6清单'!$A:$P,16,0) -> 330702908000001260 | P101: =VLOOKUP(C:C,'[2]2024B1-B6清单'!$A:$C,3,0) -> 婺城 | Q101: 2024 | R101: 2024B4
A102: 101 | B102: 2024 年金华分公司第23次党委会会议纪要（金华铁塔党委会纪要〔2024〕第25期） | C102: 330700123953 | D102: 专用空调 | E102: 3P空调 | F102: 5222.06 | G102: 156.66 | H102: 5065.4 | I102: 1 | J102: 台 | L102: 3P | N102: =VLOOKUP(C:C,'[2]2024B1-B6清单'!$A:$O,15,0) -> 金华婺城老南站 | O102: =VLOOKUP(C:C,'[2]2024B1-B6清单'!$A:$P,16,0) -> 330702908000001246 | P102: =VLOOKUP(C:C,'[2]2024B1-B6清单'!$A:$C,3,0) -> 婺城 | Q102: 2024 | R102: 2024B4
A103: 102 | B103: 2024 年金华分公司第23次党委会会议纪要（金华铁塔党委会纪要〔2024〕第25期） | C103: 330700119096 | D103: 专用空调 | E103: 3P空调 | F103: 1831.95 | G103: 54.96 | H103: 1776.99 | I103: 1 | J103: 台 | L103: 3P | N103: =VLOOKUP(C:C,'[2]2024B1-B6清单'!$A:$O,15,0) -> 金华婺城双馨路 | O103: =VLOOKUP(C:C,'[2]2024B1-B6清单'!$A:$P,16,0) -> 330702908000001632 | P103: =VLOOKUP(C:C,'[2]2024B1-B6清单'!$A:$C,3,0) -> 婺城 | Q103: 2024 | R103: 2024B4
A104: 103 | B104: 2024 年金华分公司第23次党委会会议纪要（金华铁塔党委会纪要〔2024〕第25期） | C104: 330700149928 | D104: 专用空调 | E104: 3P空调 | F104: 252.77 | G104: 7.58 | H104: 245.19 | I104: 1 | J104: 台 | L104: 3P | N104: =VLOOKUP(C:C,'[2]2024B1-B6清单'!$A:$O,15,0) -> 金华婺城寺前皇二（江南会主楼） | O104: =VLOOKUP(C:C,'[2]2024B1-B6清单'!$A:$P,16,0) -> 330702908000001339 | P104: =VLOOKUP(C:C,'[2]2024B1-B6清单'!$A:$C,3,0) -> 婺城 | Q104: 2024 | R104: 2024B4
A105: 104 | B105: 2024 年金华分公司第23次党委会会议纪要（金华铁塔党委会纪要〔2024〕第25期） | C105: 330700318036 | D105: 普通空调柜式 | E105: 3P空调 | F105: 6163.16 | G105: 184.89 | H105: 5978.27 | I105: 1 | J105: 台 | L105: 3P | N105: =VLOOKUP(C:C,'[2]2024B1-B6清单'!$A:$O,15,0) -> 金华鞋塘大头畈 | O105: =VLOOKUP(C:C,'[2]2024B1-B6清单'!$A:$P,16,0) -> 330703908000000889 | P105: =VLOOKUP(C:C,'[2]2024B1-B6清单'!$A:$C,3,0) -> 金东 | Q105: 2024 | R105: 2024B4
A106: 105 | B106: 2024 年金华分公司第23次党委会会议纪要（金华铁塔党委会纪要〔2024〕第25期） | C106: 330700166624 | D106: 专用空调 | E106: 3P空调 | F106: 1275.76 | G106: 38.27 | H106: 1237.49 | I106: 1 | J106: 台 | L106: 3P | N106: =VLOOKUP(C:C,'[2]2024B1-B6清单'!$A:$O,15,0) -> 金华鞋塘下王 | O106: =VLOOKUP(C:C,'[2]2024B1-B6清单'!$A:$P,16,0) -> 330703908000000594 | P106: =VLOOKUP(C:C,'[2]2024B1-B6清单'!$A:$C,3,0) -> 金东 | Q106: 2024 | R106: 2024B4
A107: 106 | B107: 2024 年金华分公司第23次党委会会议纪要（金华铁塔党委会纪要〔2024〕第25期） | C107: 330700112896 | D107: 专用空调 | E107: 3P空调 | F107: 2093.82 | G107: 62.81 | H107: 2031.01 | I107: 1 | J107: 台 | L107: 3P | N107: =VLOOKUP(C:C,'[2]2024B1-B6清单'!$A:$O,15,0) -> 金华职业技术学院2 | O107: =VLOOKUP(C:C,'[2]2024B1-B6清单'!$A:$P,16,0) -> 330702908000000107 | P107: =VLOOKUP(C:C,'[2]2024B1-B6清单'!$A:$C,3,0) -> 婺城 | Q107: 2024 | R107: 2024B4
A108: 107 | B108: 2024 年金华分公司第23次党委会会议纪要（金华铁塔党委会纪要〔2024〕第25期） | C108: 330700121277 | D108: 专用空调 | E108: 3P空调 | F108: 1287.69 | G108: 38.63 | H108: 1249.06 | I108: 1 | J108: 台 | L108: 3P | N108: =VLOOKUP(C:C,'[2]2024B1-B6清单'!$A:$O,15,0) -> 金温下周二 | O108: =VLOOKUP(C:C,'[2]2024B1-B6清单'!$A:$P,16,0) -> 330703700000124354 | P108: =VLOOKUP(C:C,'[2]2024B1-B6清单'!$A:$C,3,0) -> 金东 | Q108: 2024 | R108: 2024B4
A109: 108 | B109: 2024 年金华分公司第23次党委会会议纪要（金华铁塔党委会纪要〔2024〕第25期） | C109: 330700339939 | D109: 普通空调柜式 | E109: 3P空调 | F109: 6180.48 | G109: 185.41 | H109: 5995.07 | I109: 1 | J109: 台 | L109: 3P | N109: =VLOOKUP(C:C,'[2]2024B1-B6清单'!$A:$O,15,0) -> 武义 | O109: =VLOOKUP(C:C,'[2]2024B1-B6清单'!$A:$P,16,0) -> 330723908000000828 | P109: =VLOOKUP(C:C,'[2]2024B1-B6清单'!$A:$C,3,0) -> 武义 | Q109: 2024 | R109: 2024B4
A110: 109 | B110: 2024 年金华分公司第23次党委会会议纪要（金华铁塔党委会纪要〔2024〕第25期） | C110: 330700339940 | D110: 普通空调柜式 | E110: 3P空调 | F110: 6180.47 | G110: 185.41 | H110: 5995.06 | I110: 1 | J110: 台 | L110: 3P | N110: =VLOOKUP(C:C,'[2]2024B1-B6清单'!$A:$O,15,0) -> 武义 | O110: =VLOOKUP(C:C,'[2]2024B1-B6清单'!$A:$P,16,0) -> 330723908000000828 | P110: =VLOOKUP(C:C,'[2]2024B1-B6清单'!$A:$C,3,0) -> 武义 | Q110: 2024 | R110: 2024B4
A111: 110 | B111: 2024 年金华分公司第23次党委会会议纪要（金华铁塔党委会纪要〔2024〕第25期） | C111: 330700318107 | D111: 普通空调柜式 | E111: 3P空调 | F111: 6214.66 | G111: 186.44 | H111: 6028.22 | I111: 1 | J111: 台 | L111: 3P | N111: =VLOOKUP(C:C,'[2]2024B1-B6清单'!$A:$O,15,0) -> 武义项山干-2 | O111: =VLOOKUP(C:C,'[2]2024B1-B6清单'!$A:$P,16,0) -> 330723908000000270 | P111: =VLOOKUP(C:C,'[2]2024B1-B6清单'!$A:$C,3,0) -> 武义 | Q111: 2024 | R111: 2024B4
A112: 111 | B112: 2024 年金华分公司第24次党委会会议纪要（金华铁塔党委会纪要〔2024〕第26期） | C112: 330700343374 | D112: 动力及环境监控单元 | E112: 动环监控 | F112: 3312.95 | G112: 99.39 | H112: 3213.56 | I112: 1 | J112: 个 | L112: 监控 | N112: =VLOOKUP(C:C,'[2]2024B1-B6清单'!$A:$O,15,0) -> 金东保税物流区 | O112: =VLOOKUP(C:C,'[2]2024B1-B6清单'!$A:$P,16,0) -> 330703500000000123 | P112: =VLOOKUP(C:C,'[2]2024B1-B6清单'!$A:$C,3,0) -> 金东 | Q112: 2024 | R112: 2024B5
A113: 112 | B113: 2024 年金华分公司第24次党委会会议纪要（金华铁塔党委会纪要〔2024〕第26期） | C113: 330700318809 | D113: 动环监控设备 | E113: 动环监控 | F113: 3850.14 | G113: 115.5 | H113: 3734.64 | I113: 1 | J113: 个 | L113: 监控 | N113: =VLOOKUP(C:C,'[2]2024B1-B6清单'!$A:$O,15,0) -> 金东菜鸟物流东 | O113: =VLOOKUP(C:C,'[2]2024B1-B6清单'!$A:$P,16,0) -> 330703500000000049 | P113: =VLOOKUP(C:C,'[2]2024B1-B6清单'!$A:$C,3,0) -> 金东 | Q113: 2024 | R113: 2024B5
A114: 113 | B114: 2024 年金华分公司第24次党委会会议纪要（金华铁塔党委会纪要〔2024〕第26期） | C114: 330700321126 | D114: 动力及环境监控单元 | E114: 动环监控 | F114: 3306.91 | G114: 99.21 | H114: 3207.7 | I114: 1 | J114: 个 | L114: 监控 | N114: =VLOOKUP(C:C,'[2]2024B1-B6清单'!$A:$O,15,0) -> 金东曹宅东陈南 | O114: =VLOOKUP(C:C,'[2]2024B1-B6清单'!$A:$P,16,0) -> 330703500000000070 | P114: =VLOOKUP(C:C,'[2]2024B1-B6清单'!$A:$C,3,0) -> 金东 | Q114: 2024 | R114: 2024B5
A115: 114 | B115: 2024 年金华分公司第24次党委会会议纪要（金华铁塔党委会纪要〔2024〕第26期） | C115: 330700351376 | D115: 动力及环境监控单元 | E115: 动环监控 | F115: 3407.28 | G115: 102.22 | H115: 3305.06 | I115: 1 | J115: 个 | L115: 监控 | N115: =VLOOKUP(C:C,'[2]2024B1-B6清单'!$A:$O,15,0) -> 金东超浪新材-Y | O115: =VLOOKUP(C:C,'[2]2024B1-B6清单'!$A:$P,16,0) -> 330703500000001340 | P115: =VLOOKUP(C:C,'[2]2024B1-B6清单'!$A:$C,3,0) -> 金东 | Q115: 2024 | R115: 2024B5
A116: 115 | B116: 2024 年金华分公司第24次党委会会议纪要（金华铁塔党委会纪要〔2024〕第26期） | C116: 330700340302 | D116: 动力及环境监控单元 | E116: 动环监控 | F116: 2937.63 | G116: 88.13 | H116: 2849.5 | I116: 1 | J116: 个 | L116: 监控 | N116: =VLOOKUP(C:C,'[2]2024B1-B6清单'!$A:$O,15,0) -> 金东低田工业区 | O116: =VLOOKUP(C:C,'[2]2024B1-B6清单'!$A:$P,16,0) -> 330703908000000723 | P116: =VLOOKUP(C:C,'[2]2024B1-B6清单'!$A:$C,3,0) -> 金东 | Q116: 2024 | R116: 2024B5
A117: 116 | B117: 2024 年金华分公司第24次党委会会议纪要（金华铁塔党委会纪要〔2024〕第26期） | C117: 330700330284 | D117: 动力及环境监控单元 | E117: 动环监控 | F117: 3863.03 | G117: 115.89 | H117: 3747.14 | I117: 1 | J117: 个 | L117: 监控 | N117: =VLOOKUP(C:C,'[2]2024B1-B6清单'!$A:$O,15,0) -> 金东山下施村 | O117: =VLOOKUP(C:C,'[2]2024B1-B6清单'!$A:$P,16,0) -> 330703500000000062 | P117: =VLOOKUP(C:C,'[2]2024B1-B6清单'!$A:$C,3,0) -> 金东 | Q117: 2024 | R117: 2024B5
A118: 117 | B118: 2024 年金华分公司第24次党委会会议纪要（金华铁塔党委会纪要〔2024〕第26期） | C118: 330700341515 | D118: 动力及环境监控单元 | E118: 动环监控 | F118: 2937.63 | G118: 88.13 | H118: 2849.5 | I118: 1 | J118: 个 | L118: 监控 | N118: =VLOOKUP(C:C,'[2]2024B1-B6清单'!$A:$O,15,0) -> 金华岭下汤村 | O118: =VLOOKUP(C:C,'[2]2024B1-B6清单'!$A:$P,16,0) -> 330723700000112258 | P118: =VLOOKUP(C:C,'[2]2024B1-B6清单'!$A:$C,3,0) -> 金东 | Q118: 2024 | R118: 2024B5
A119: 118 | B119: 2024 年金华分公司第23次党委会会议纪要（金华铁塔党委会纪要〔2024〕第25期） | C119: 330700339830 | D119: 动力及环境监控单元 | E119: 动环监控 | F119: 3543.99 | G119: 106.32 | H119: 3437.67 | I119: 1 | J119: 个 | L119: 监控 | N119: =VLOOKUP(C:C,'[2]2024B1-B6清单'!$A:$O,15,0) -> 金华威科工贸 | O119: =VLOOKUP(C:C,'[2]2024B1-B6清单'!$A:$P,16,0) -> 330703700000112796 | P119: =VLOOKUP(C:C,'[2]2024B1-B6清单'!$A:$C,3,0) -> 婺城 | Q119: 2024 | R119: 2024B4
A120: 119 | B120: 2024 年金华分公司第23次党委会会议纪要（金华铁塔党委会纪要〔2024〕第25期） | C120: 330700365588 | D120: 动力及环境监控单元 | E120: 动环监控 | F120: 2593.99 | G120: 322.43 | H120: 2271.56 | I120: 1 | J120: 个 | L120: 监控 | N120: =VLOOKUP(C:C,'[2]2024B1-B6清单'!$A:$O,15,0) -> 金华婺城华园小区 | O120: =VLOOKUP(C:C,'[2]2024B1-B6清单'!$A:$P,16,0) -> 330702908000001628 | P120: =VLOOKUP(C:C,'[2]2024B1-B6清单'!$A:$C,3,0) -> 婺城 | Q120: 2024 | R120: 2024B4
A121: 120 | B121: 2024 年金华分公司第23次党委会会议纪要（金华铁塔党委会纪要〔2024〕第25期） | C121: 330700338468 | D121: 动力及环境监控单元 | E121: 动环监控 | F121: 2922.98 | G121: 87.69 | H121: 2835.29 | I121: 1 | J121: 个 | L121: 监控 | N121: =VLOOKUP(C:C,'[2]2024B1-B6清单'!$A:$O,15,0) -> 金华婺江新村北 | O121: =VLOOKUP(C:C,'[2]2024B1-B6清单'!$A:$P,16,0) -> 330702908000000187 | P121: =VLOOKUP(C:C,'[2]2024B1-B6清单'!$A:$C,3,0) -> 婺城 | Q121: 2024 | R121: 2024B4
A122: 121 | B122: 2024 年金华分公司第24次党委会会议纪要（金华铁塔党委会纪要〔2024〕第26期） | C122: 330700351876 | D122: 动力及环境监控单元 | E122: 动环监控 | F122: 3629.06 | G122: 108.87 | H122: 3520.19 | I122: 1 | J122: 个 | L122: 监控 | N122: =VLOOKUP(C:C,'[2]2024B1-B6清单'!$A:$O,15,0) -> 金温日辉路 | O122: =VLOOKUP(C:C,'[2]2024B1-B6清单'!$A:$P,16,0) -> 330703700000124339 | P122: =VLOOKUP(C:C,'[2]2024B1-B6清单'!$A:$C,3,0) -> 金东 | Q122: 2024 | R122: 2024B5
A123: 122 | B123: 2024 年金华分公司第24次党委会会议纪要（金华铁塔党委会纪要〔2024〕第26期） | C123: 330700321649 | D123: 动力及环境监控单元 | E123: 动环监控 | F123: 3380.24 | G123: 101.41 | H123: 3278.83 | I123: 1 | J123: 个 | L123: 监控 | N123: =VLOOKUP(C:C,'[2]2024B1-B6清单'!$A:$O,15,0) -> 金温杨川南 | O123: =VLOOKUP(C:C,'[2]2024B1-B6清单'!$A:$P,16,0) -> 330703500000000005 | P123: =VLOOKUP(C:C,'[2]2024B1-B6清单'!$A:$C,3,0) -> 金东 | Q123: 2024 | R123: 2024B5
A124: 123 | B124: 2024年8月19日总经理专题办公会议纪要 | C124: 330700351415 | D124: 动力及环境监控单元 | E124: 动环监控 | F124: 3629.06 | G124: 108.87 | H124: 3520.19 | I124: 1 | J124: 个 | L124: 监控 | N124: =VLOOKUP(C:C,'[2]2024B1-B6清单'!$A:$O,15,0) -> 武义白洋朝阳 | O124: =VLOOKUP(C:C,'[2]2024B1-B6清单'!$A:$P,16,0) -> 330723908000000286 | P124: =VLOOKUP(C:C,'[2]2024B1-B6清单'!$A:$C,3,0) -> 武义 | Q124: 2024 | R124: 2024B6
A125: 124 | B125: 2024 年金华分公司第24次党委会会议纪要（金华铁塔党委会纪要〔2024〕第26期） | C125: 330700341069 | D125: 动力及环境监控单元 | E125: 动环监控 | F125: 2840.12 | G125: 85.2 | H125: 2754.92 | I125: 1 | J125: 个 | L125: 监控 | N125: =VLOOKUP(C:C,'[2]2024B1-B6清单'!$A:$O,15,0) -> 武义长蛇形资源点 | O125: =VLOOKUP(C:C,'[2]2024B1-B6清单'!$A:$P,16,0) -> 330723908000000879 | P125: =VLOOKUP(C:C,'[2]2024B1-B6清单'!$A:$C,3,0) -> 武义 | Q125: 2024 | R125: 2024B5
A126: 125 | B126: 2024 年金华分公司第23次党委会会议纪要（金华铁塔党委会纪要〔2024〕第25期） | C126: 330700341460 | D126: 动力及环境监控单元 | E126: 动环监控 | F126: 3180.78 | G126: 95.42 | H126: 3085.36 | I126: 1 | J126: 个 | L126: 监控 | N126: =VLOOKUP(C:C,'[2]2024B1-B6清单'!$A:$O,15,0) -> 武义公安局 | O126: =VLOOKUP(C:C,'[2]2024B1-B6清单'!$A:$P,16,0) -> 330723908000000772 | P126: =VLOOKUP(C:C,'[2]2024B1-B6清单'!$A:$C,3,0) -> 武义 | Q126: 2024 | R126: 2024B4
A127: 126 | B127: 2024 年金华分公司第23次党委会会议纪要（金华铁塔党委会纪要〔2024〕第25期） | C127: 330700311407 | D127: 动环监控设备 无线通信模块 | E127: 动环监控 | F127: 3480.68 | G127: 104.42 | H127: 3376.26 | I127: 1 | J127: 个 | L127: 监控 | N127: =VLOOKUP(C:C,'[2]2024B1-B6清单'!$A:$O,15,0) -> 婺城中晟科技 | O127: =VLOOKUP(C:C,'[2]2024B1-B6清单'!$A:$P,16,0) -> 33070201000170 | P127: =VLOOKUP(C:C,'[2]2024B1-B6清单'!$A:$C,3,0) -> 婺城 | Q127: 2024 | R127: 2024B4
A128: 127 | B128: 2024 年金华分公司第23次党委会会议纪要（金华铁塔党委会纪要〔2024〕第25期） | C128: 330700356522 | D128: 嵌入式开关电源 | E128: 嵌入式开关电源 | F128: 6009.29 | G128: 342.45 | H128: 5666.84 | I128: 1 | J128: 架 | L128: 嵌入式 | N128: =VLOOKUP(C:C,'[2]2024B1-B6清单'!$A:$O,15,0) -> 浦江新华东路 | O128: =VLOOKUP(C:C,'[2]2024B1-B6清单'!$A:$P,16,0) -> 330726908000000126 | P128: =VLOOKUP(C:C,'[2]2024B1-B6清单'!$A:$C,3,0) -> 浦江 | Q128: 2024 | R128: 2024B4
A129: 128 | B129: 2024 年金华分公司第23次党委会会议纪要（金华铁塔党委会纪要〔2024〕第25期） | C129: 330700146045 | D129: 开关电源 | E129: 组合式开关电源 | F129: 5082.6 | G129: 152.48 | H129: 4930.12 | I129: 1 | J129: 架 | L129: 组合式 | N129: =VLOOKUP(C:C,'[2]2024B1-B6清单'!$A:$O,15,0) -> 浦江金山水库 | O129: =VLOOKUP(C:C,'[2]2024B1-B6清单'!$A:$P,16,0) -> 330726908000000224 | P129: =VLOOKUP(C:C,'[2]2024B1-B6清单'!$A:$C,3,0) -> 浦江 | Q129: 2024 | R129: 2024B4
A130: 129 | B130: 2024 年金华分公司第23次党委会会议纪要（金华铁塔党委会纪要〔2024〕第25期） | C130: 330700311029 | D130: 嵌入式高频开关电源-48V/300A高效系统(50A高效模块，共用电源系统，三相交流输入)-100A | E130: 组合式开关电源 | F130: 7747.84 | G130: 232.44 | H130: 7515.4 | I130: 1 | J130: 架 | L130: 组合式 | N130: =VLOOKUP(C:C,'[2]2024B1-B6清单'!$A:$O,15,0) -> 浦江石宅-2 | O130: =VLOOKUP(C:C,'[2]2024B1-B6清单'!$A:$P,16,0) -> 330726908000000160 | P130: =VLOOKUP(C:C,'[2]2024B1-B6清单'!$A:$C,3,0) -> 浦江 | Q130: 2024 | R130: 2024B4
A131: 130 | B131: 2024 年金华分公司第23次党委会会议纪要（金华铁塔党委会纪要〔2024〕第25期） | C131: 330700304813 | D131: 嵌入式高频开关电源-48V/300A高效系统(50A高效模块，共用电源系统，三相交流输入)-100A | E131: 组合式开关电源 | F131: 6682.95 | G131: 200.49 | H131: 6482.46 | I131: 1 | J131: 架 | L131: 组合式 | N131: =VLOOKUP(C:C,'[2]2024B1-B6清单'!$A:$O,15,0) -> 浦江下湾 | O131: =VLOOKUP(C:C,'[2]2024B1-B6清单'!$A:$P,16,0) -> 330726908000000432 | P131: =VLOOKUP(C:C,'[2]2024B1-B6清单'!$A:$C,3,0) -> 浦江 | Q131: 2024 | R131: 2024B4
A132: 131 | B132: 2024 年金华分公司第23次党委会会议纪要（金华铁塔党委会纪要〔2024〕第25期） | C132: 330700301254 | D132: 专用空调 | E132: 3P空调 | F132: 6510.99 | G132: 195.33 | H132: 6315.66 | I132: 1 | J132: 台 | L132: 3p | N132: =VLOOKUP(C:C,'[2]2024B1-B6清单'!$A:$O,15,0) -> 浦江人民西路街道站 | O132: =VLOOKUP(C:C,'[2]2024B1-B6清单'!$A:$P,16,0) -> 330726700000144407 | P132: =VLOOKUP(C:C,'[2]2024B1-B6清单'!$A:$C,3,0) -> 浦江 | Q132: 2024 | R132: 2024B4
A133: 132 | B133: 2024 年金华分公司第23次党委会会议纪要（金华铁塔党委会纪要〔2024〕第25期） | C133: 330700306006 | D133: 开关电源 | E133: 组合式开关电源 | F133: 6173.97 | G133: 185.22 | H133: 5988.75 | I133: 1 | J133: 架 | L133: 组合式 | N133: =VLOOKUP(C:C,'[2]2024B1-B6清单'!$A:$O,15,0) -> 永康金州科技有限公司 | O133: =VLOOKUP(C:C,'[2]2024B1-B6清单'!$A:$P,16,0) -> 330784500010001990 | P133: =VLOOKUP(C:C,'[2]2024B1-B6清单'!$A:$C,3,0) -> 永康 | Q133: 2024 | R133: 2024B4
A134: 133 | B134: 2024 年金华分公司第23次党委会会议纪要（金华铁塔党委会纪要〔2024〕第25期） | C134: 330700303146 | D134: 开关电源 | E134: 组合式开关电源 | F134: 9725.5 | G134: 291.77 | H134: 9433.73 | I134: 1 | J134: 架 | L134: 组合式 | N134: =VLOOKUP(C:C,'[2]2024B1-B6清单'!$A:$O,15,0) -> 永康科技园2 | O134: =VLOOKUP(C:C,'[2]2024B1-B6清单'!$A:$P,16,0) -> 330784908000001126 | P134: =VLOOKUP(C:C,'[2]2024B1-B6清单'!$A:$C,3,0) -> 永康 | Q134: 2024 | R134: 2024B4
A135: 134 | B135: 2024 年金华分公司第24次党委会会议纪要（金华铁塔党委会纪要〔2024〕第26期） | C135: 330700113614 | D135: 开关电源 | E135: 组合式开关电源 | F135: 710.17 | G135: 21.31 | H135: 688.86 | I135: 1 | J135: 架 | L135: 组合式 | N135: =VLOOKUP(C:C,'[2]2024B1-B6清单'!$A:$O,15,0) -> 永康龙山柘溪 | O135: =VLOOKUP(C:C,'[2]2024B1-B6清单'!$A:$P,16,0) -> 330784908000001095 | P135: =VLOOKUP(C:C,'[2]2024B1-B6清单'!$A:$C,3,0) -> 永康 | Q135: 2024 | R135: 2024B5
A136: 135 | B136: 2024 年金华分公司第23次党委会会议纪要（金华铁塔党委会纪要〔2024〕第25期） | C136: 330700156762 | D136: 开关电源 | E136: 组合式开关电源 | F136: 11277.02 | G136: 338.31 | H136: 10938.71 | I136: 1 | J136: 架 | L136: 组合式 | N136: =VLOOKUP(C:C,'[2]2024B1-B6清单'!$A:$O,15,0) -> 永康医药公司 | O136: =VLOOKUP(C:C,'[2]2024B1-B6清单'!$A:$P,16,0) -> 330784908000000841 | P136: =VLOOKUP(C:C,'[2]2024B1-B6清单'!$A:$C,3,0) -> 永康 | Q136: 2024 | R136: 2024B4
A137: 136 | B137: / | C137: 330700119474ZLMK01 | D137: 模块 | E137: 模块 | I137: 1 | J137: 个 | L137: 50A普效 | N137: 金华婺城汪姜LTE | O137: 330702908000001251 | Q137: 2024
A138: 137 | B138: / | C138: 330700119474ZLMK02 | D138: 模块 | E138: 模块 | I138: 1 | J138: 个 | L138: 50A普效 | N138: 金华婺城汪姜LTE | O138: 330702908000001251 | Q138: 2024
A139: 138 | B139: / | C139: 330700119474ZLMK03 | D139: 模块 | E139: 模块 | I139: 1 | J139: 个 | L139: 50A普效 | N139: 金华婺城汪姜LTE | O139: 330702908000001251 | Q139: 2024
A140: 139 | B140: / | C140: 330700397586ZLMK01 | D140: 模块 | E140: 模块 | I140: 1 | J140: 个 | L140: 整流模块 | N140: 东阳登龙花园西 | O140: 330783500000000017 | Q140: 2024
A141: 140 | B141: / | C141: 330700397586ZLMK02 | D141: 模块 | E141: 模块 | I141: 1 | J141: 个 | L141: 整流模块 | N141: 东阳登龙花园西 | O141: 330783500000000017 | Q141: 2024
A142: 141 | B142: / | C142: 330700322800ZLMK01 | D142: 模块 | E142: 模块 | I142: 1 | J142: 个 | L142: 整流模块 | N142: 东阳横店横黄线 | O142: 330783500000000140 | Q142: 2024
A143: 142 | B143: / | C143: 330700322800ZLMK02 | D143: 模块 | E143: 模块 | I143: 1 | J143: 个 | L143: 整流模块 | N143: 东阳横店横黄线 | O143: 330783500000000140 | Q143: 2024
A144: 143 | B144: / | C144: 330700103095ZLMK01 | D144: 模块 | E144: 模块 | I144: 1 | J144: 个 | L144: 整流模块 | N144: 马口 | O144: 330723908000000089 | Q144: 2024
A145: 144 | B145: / | C145: 330700103095ZLMK02 | D145: 模块 | E145: 模块 | I145: 1 | J145: 个 | L145: 整流模块 | N145: 马口 | O145: 330723908000000089 | Q145: 2024
A146: 145 | B146: / | C146: 330700100602ZLMK01 | D146: 模块 | E146: 模块 | I146: 1 | J146: 个 | L146: 整流模块50A | N146: 义乌人保公司 | O146: 330782908000000270 | Q146: 2024
A147: 146 | B147: / | C147: 330700100602ZLMK02 | D147: 模块 | E147: 模块 | I147: 1 | J147: 个 | L147: 整流模块50A | N147: 义乌人保公司 | O147: 330782908000000270 | Q147: 2024
A148: 147 | B148: / | C148: 330700100602ZLMK03 | D148: 模块 | E148: 模块 | I148: 1 | J148: 个 | L148: 整流模块50A | N148: 义乌人保公司 | O148: 330782908000000270 | Q148: 2024
A149: 148 | B149: / | C149: 无 | D149: 13/8"-阻燃 | E149: 馈线 | I149: 10 | J149: 米 | L149: 13/8"-阻燃 | Q149: 2024
A150: 149 | B150: / | C150: 无 | D150: 走线架 | E150: 走线架 | I150: 1 | J150: 个 | L150: 走线架 | Q150: 2024
A151: 150 | B151: / | C151: 无 | D151: 走线架 | E151: 走线架 | I151: 4 | J151: 个 | L151: 走线架 | Q151: 2024
A152: 151 | B152: / | C152: 无 | D152: 1x16黄绿色 | E152: 电线电缆 | I152: 1 | J152: 根 | L152: 1x16黄绿色 | Q152: 2024
A153: 152 | B153: / | C153: 无 | D153: 2x10黑色 | E153: 电线电缆 | I153: 1 | J153: 根 | L153: 2x10黑色 | Q153: 2024
A154: 153 | B154: / | C154: 无 | D154: 馈线7/8阻燃 | E154: 馈线 | I154: 11 | J154: 米 | L154: 馈线7/8阻燃 | Q154: 2024
A155: 154 | B155: / | C155: 无 | D155: 1x25mm2-红色 | E155: 电线电缆 | I155: 1 | J155: 根 | L155: 1x25mm2-红色 | Q155: 2024
A156: 155 | B156: / | C156: 无 | D156: 1x25mm2-蓝色 | E156: 电线电缆 | I156: 1 | J156: 根 | L156: 1x25mm2-蓝色 | Q156: 2024
A157: 156 | B157: / | C157: 无 | D157: 4x35米10米/根 | E157: 电线电缆 | I157: 1 | J157: 根 | L157: 4x35米10米/根 | Q157: 2024
A158: 157 | B158: / | C158: 无 | D158: 70方10米/根 | E158: 电线电缆 | I158: 1 | J158: 根 | L158: 70方10米/根 | Q158: 2024
A159: 158 | B159: / | C159: 无 | D159: 汇流排 | E159: 接地汇流牌 | I159: 2 | J159: 段 | L159: 汇流排 | Q159: 2024
A160: 159 | B160: / | C160: 无 | D160: 4x25方黑5米/根 | E160: 电线电缆 | I160: 1 | J160: 根 | L160: 4x25方黑5米/根 | Q160: 2024
A161: 160 | B161: / | C161: 无 | D161: 90方红5米/根 | E161: 电线电缆 | I161: 1 | J161: 根 | L161: 90方红5米/根 | Q161: 2024
A162: 161 | B162: / | C162: 无 | D162: 95方黑5米/根 | E162: 电线电缆 | I162: 1 | J162: 根 | L162: 95方黑5米/根 | Q162: 2024
A163: 162 | B163: / | C163: 无 | D163: 95方黄绿2米/根 | E163: 电线电缆 | I163: 1 | J163: 根 | L163: 95方黄绿2米/根 | Q163: 2024
A164: 163 | B164: / | C164: 无 | D164: 汇流排 | E164: 接地汇流牌 | I164: 1 | J164: 段 | L164: 汇流排 | Q164: 2024
A165: 164 | B165: / | C165: 无 | D165: 铜排 | E165: 接地汇流牌 | I165: 1 | J165: 段 | L165: 铜排 | Q165: 2024
A166: 165 | B166: / | C166: 无 | D166: 1x75方铜线5米/根 | E166: 电线电缆 | I166: 1 | J166: 根 | L166: 1x75方铜线5米/根 | Q166: 2024
A167: 166 | B167: / | C167: 无 | D167: 2x95方铜线5米/根 | E167: 电线电缆 | I167: 1 | J167: 根 | L167: 2x95方铜线5米/根 | Q167: 2024
A168: 167 | B168: / | C168: 无 | D168: 汇流排 | E168: 接地汇流牌 | I168: 3 | J168: 段 | L168: 汇流排 | Q168: 2024
A169: 168 | B169: / | C169: 无 | D169: 1x70方红10米/根 | E169: 电线电缆 | I169: 1 | J169: 根 | L169: 1x70方红10米/根 | Q169: 2024
A170: 169 | B170: / | C170: 无 | D170: 1x95方黄绿10米/根 | E170: 电线电缆 | I170: 1 | J170: 根 | L170: 1x95方黄绿10米/根 | Q170: 2024
A171: 170 | B171: / | C171: 无 | D171: 4x25方4米/根 | E171: 电线电缆 | I171: 1 | J171: 根 | L171: 4x25方4米/根 | Q171: 2024
A172: 171 | B172: / | C172: 无 | D172: 70方3米/根 | E172: 电线电缆 | I172: 1 | J172: 根 | L172: 70方3米/根 | Q172: 2024
A173: 172 | B173: / | C173: 无 | D173: 接地汇流条 | E173: 接地汇流条 | I173: 2 | J173: 段 | L173: 接地汇流条 | Q173: 2024
A174: 173 | B174: / | C174: 无 | D174: 接地铜牌 | E174: 接地汇流牌 | I174: 1 | J174: 段 | L174: 接地铜牌 | Q174: 2024
A175: 174 | B175: / | C175: 无 | D175: 室内铜牌 | E175: 接地汇流牌 | I175: 1 | J175: 段 | L175: 室内铜牌 | Q175: 2024
A176: 175 | B176: / | C176: 无 | D176: 25方4米/根 | E176: 电线电缆 | I176: 1 | J176: 根 | L176: 25方4米/根 | Q176: 2024
A177: 176 | B177: / | C177: 无 | D177: 35方2米/根 | E177: 电线电缆 | I177: 1 | J177: 根 | L177: 35方2米/根 | Q177: 2024
A178: 177 | B178: / | C178: 无 | D178: 50方5米/根 | E178: 电线电缆 | I178: 1 | J178: 根 | L178: 50方5米/根 | Q178: 2024
A179: 178 | B179: / | C179: 无 | D179: 70方2米/根 | E179: 电线电缆 | I179: 1 | J179: 根 | L179: 70方2米/根 | Q179: 2024
A180: 179 | B180: / | C180: 无 | D180: 70方2米/根 | E180: 电线电缆 | I180: 1 | J180: 根 | L180: 70方2米/根 | Q180: 2024
A181: 180 | B181: / | C181: 无 | D181: 70方3米/根 | E181: 电线电缆 | I181: 1 | J181: 根 | L181: 70方3米/根 | Q181: 2024
A182: 181 | B182: / | C182: 无 | D182: 70方8米/根 | E182: 电线电缆 | I182: 1 | J182: 根 | L182: 70方8米/根 | Q182: 2024
A183: 182 | B183: / | C183: 无 | D183: 95方12米/根 | E183: 电线电缆 | I183: 1 | J183: 根 | L183: 95方12米/根 | Q183: 2024
A184: 183 | B184: / | C184: 无 | D184: 走线架 | E184: 走线架 | I184: 1 | J184: 个 | L184: 走线架 | Q184: 2024
A185: 184 | B185: / | C185: 无 | D185: 走线架 | E185: 走线架 | I185: 1 | J185: 个 | L185: 走线架 | Q185: 2024
A186: 185 | B186: / | C186: 无 | D186: 汇流条 | E186: 接地汇流条 | I186: 1 | J186: 段 | L186: 汇流条 | Q186: 2024
A187: 186 | B187: / | C187: 无 | D187: 汇流条 | E187: 接地汇流条 | I187: 1 | J187: 段 | L187: 汇流条 | Q187: 2024
A188: 187 | B188: / | C188: 无 | D188: 汇流条 | E188: 接地汇流条 | I188: 1 | J188: 段 | L188: 汇流条 | Q188: 2024
A189: 188 | B189: / | C189: 无 | D189: 铜牌 | E189: 接地汇流牌 | I189: 2 | J189: 段 | L189: 铜牌 | Q189: 2024
A190: 189 | B190: / | C190: 无 | D190: 铜牌 | E190: 接地汇流牌 | I190: 1 | J190: 段 | L190: 铜牌 | Q190: 2024
A191: 190 | B191: / | C191: 无 | D191: 铜牌 | E191: 接地汇流牌 | I191: 2 | J191: 段 | L191: 铜牌 | Q191: 2024
A192: 191 | B192: / | C192: 无 | D192: 35方4米/根 | E192: 电线电缆 | I192: 1 | J192: 根 | L192: 35方4米/根 | Q192: 2024
A193: 192 | B193: / | C193: 无 | D193: 70方3米/根 | E193: 电线电缆 | I193: 1 | J193: 根 | L193: 70方3米/根 | Q193: 2024
A194: 193 | B194: / | C194: 无 | D194: 95方5米/根 | E194: 电线电缆 | I194: 1 | J194: 根 | L194: 95方5米/根 | Q194: 2024
A195: 194 | B195: / | C195: 无 | D195: 走线架 | E195: 走线架 | I195: 1 | J195: 个 | L195: 走线架 | Q195: 2024
A196: 195 | B196: / | C196: 无 | D196: 汇流条 | E196: 接地汇流条 | I196: 1 | J196: 段 | L196: 汇流条 | Q196: 2024
A197: 196 | B197: / | C197: 无 | D197: 铜牌 | E197: 接地汇流牌 | I197: 1 | J197: 段 | L197: 铜牌 | Q197: 2024
A198: 197 | B198: / | C198: 无 | D198: 70方3米/根 | E198: 电线电缆 | I198: 2 | J198: 根 | L198: 70方3米/根 | Q198: 2024
A199: 198 | B199: / | C199: 无 | D199: 95方3米/根 | E199: 电线电缆 | I199: 4 | J199: 根 | L199: 95方3米/根 | Q199: 2024
A200: 199 | B200: / | C200: 无 | D200: 95方3米/根 | E200: 电线电缆 | I200: 2 | J200: 根 | L200: 95方3米/根 | Q200: 2024
... 42 more rows

Sheet 宁波
A1: 序号 | B1: 报废批复文号 | C1: 资产编号 | D1: 批次 | E1: 资产名称 | F1: 资产类别名称 | G1: 资产原值 | H1: 资产净值 | I1: 累计折旧 | J1: 资产数量 | K1: 计量单位 （个/吨/米等） | L1: 单节电池电压（2V/12V） | M1: 规格型号 | N1: 生产厂家 | O1: 站点名称 | P1: 站点编码
A2: 1 | B2: 宁波铁塔党委会纪要〔2022〕第 21 期 | C2: 330200325006 | E2: 嵌入式开关电源32A/3P*1（室外标准机柜用） | F2: 嵌入式开关电源 | G2: 9756.93 | H2: 292.71 | I2: 9464.22 | J2: 1 | K2: 架 | M2: ETP48200 | N2: =VLOOKUP(C2,'[3]00资产已报废'!$B:$P,13,0) -> 中达电通股份有限公司 | P2: 330283500000000100
A3: 2 | B3: 宁波铁塔总经理办公会纪要〔2023〕第 66 期 | C3: 330200323542 | E3: 嵌入式开关电源32A/3P*1（室外标准机柜用） | F3: 组合式开关电源 | G3: 3728.85 | H3: 111.87 | I3: 3616.98 | J3: 1 | K3: 架 | M3: (杭州中恒)-开关电源及电源模块-开关电源 | N3: =VLOOKUP(C3,'[3]00资产已报废'!$B:$P,13,0) -> 杭州中恒电气股份有限公司 | P3: 330282908000001357
A4: 3 | B4: 宁波铁塔总经理办公会纪要〔2023〕第 66 期 | C4: 330200342274 | E4: (中达电通)-开关电源及电源模块-开关电源 | F4: 嵌入式开关电源 | G4: 5401.49 | H4: 162.04 | I4: 5239.45 | J4: 1 | K4: 架 | M4: 嵌入式开关电源32A/3P*1（室外标准机柜用） | N4: =VLOOKUP(C4,'[3]00资产已报废'!$B:$P,13,0) -> 中达电通股份有限公司 | P4: 330225500000000051
A5: 4 | B5: 宁波铁塔总经理办公会纪要〔2023〕第 66 期 | C5: 330200333118 | E5: 嵌入式开关电源 | F5: 嵌入式开关电源 | G5: 7535.76 | H5: 226.07 | I5: 7309.69 | J5: 1 | K5: 架 | M5: 48V/300A高效系统(50A高效模块，共用电源系统，三相交流输入)100A | P5: 330206500000000179
A6: 5 | B6: 宁波铁塔总经理办公会纪要〔2023〕第 66 期 | C6: 330200342275 | E6: (杭州中恒)-开关电源及电源模块-开关电源 | F6: 嵌入式开关电源 | G6: 5442.39 | H6: 163.27 | I6: 5279.12 | J6: 1 | K6: 架 | M6: 嵌入式开关电源32A/3P*1（室外标准机柜用） | N6: =VLOOKUP(C6,'[3]00资产已报废'!$B:$P,13,0) -> 杭州中恒电气股份有限公司 | P6: 330225500000000051
A7: 6 | B7: 宁波铁塔总经理办公会纪要〔2023〕第 66 期 | C7: 330200320887 | E7: 嵌入式开关电源 | F7: 嵌入式开关电源 | G7: 5826.94 | H7: 174.81 | I7: 5652.13 | J7: 1 | K7: 架 | M7: 嵌入式开关电源32A/3P*1（室外标准机柜用） | N7: =VLOOKUP(C7,'[3]00资产已报废'!$B:$P,13,0) -> 中达电通股份有限公司 | P7: 330206500000000009
A8: 7 | B8: 宁波铁塔总经理办公会纪要〔2023〕第 66 期 | C8: 330200334704 | E8: 嵌入式开关电源 | F8: 嵌入式开关电源 | G8: 5929.29 | H8: 177.88 | I8: 5751.41 | J8: 1 | K8: 架 | M8: 48V/300A高效系统(50A高效模块，共用电源系统，三相交流输入)100A | P8: 330225908000000494
A9: 8 | B9: 宁波铁塔总经理办公会纪要〔2023〕第 66 期 | C9: 330200010927 | E9: (杭州中恒)-开关电源及电源模块-开关电源 | F9: 组合式开关电源 | G9: 10849.77 | H9: 325.49 | I9: 10524.28 | J9: 1 | K9: 架 | M9: 壁挂式开关电源32A/3P*1 | N9: =VLOOKUP(C9,'[3]00资产已报废'!$B:$P,13,0) -> 杭州中恒电气股份有限公司 | P9: 330212908000001518
A10: 9 | B10: 宁波铁塔总经理办公会纪要〔2023〕第 66 期 | C10: 330200338089 | E10: 嵌入式开关电源 | F10: 嵌入式开关电源 | G10: 5605.71 | H10: 168.17 | I10: 5437.54 | J10: 1 | K10: 架 | M10: 48V/300A高效系统(50A高效模块，共用电源系统，三相交流输入)100A | P10: 330282908000001100
A11: 10 | B11: 总经理办公会纪要〔2024〕第 3 期 | C11: 330200330603 | E11: (北京融和创)-空调及空调零部件-空调 | F11: 基站空调柜式 | G11: 6241.11 | H11: 187.23 | I11: 6053.88 | J11: 1 | K11: 台 | M11: 3P 三相柜式（单冷） | N11: =VLOOKUP(C11,'[3]00资产已报废'!$B:$P,13,0) -> 北京融和创科技有限公司 | P11: 330212010000001315
A12: 11 | B12: 总经理办公会纪要〔2024〕第 3 期 | C12: 330200341617 | E12: (杭州中恒)-开关电源及电源模块-开关电源 | F12: 壁挂式开关电源 | G12: 5037.09 | H12: 151.11 | I12: 4885.98 | J12: 1 | K12: 架 | M12: 壁挂式开关电源32A/3P*1 | N12: =VLOOKUP(C12,'[3]00资产已报废'!$B:$P,13,0) -> 杭州中恒电气股份有限公司 | P12: 33021101000099
A13: 12 | B13: 总经理办公会纪要〔2024〕第7期 | C13: 330200343011 | E13: (杭州中恒)-开关电源及电源模块-开关电源模块 | F13: 整流模块 | G13: 7098.55 | H13: 212.96 | I13: 6885.59 | J13: 1 | K13: 个 | M13: 50A（普效模块） | N13: =VLOOKUP(C13,'[3]00资产已报废'!$B:$P,13,0) -> 杭州中恒电气股份有限公司 | P13: 330212908000001805
A14: 13 | B14: 宁波铁塔党委会纪要〔2018〕第5期 | C14: 330200150558 | E14: 通用空调-通用空调 | F14: 基站空调柜式 | G14: 103 | H14: 3.09 | I14: 99.91 | J14: 1 | K14: 台 | M14: FVY71LQVLB | N14: 上海大金 | P14: 330205908000000188
A15: 14 | B15: 宁波铁塔党委会纪要〔2018〕第25期 | C15: 330200151671 | E15: 实验小学X0103分体 | F15: 基站空调柜式 | G15: 312 | H15: 9.36 | I15: 302.64 | J15: 1 | K15: 台 | M15: LF72W-LCSJA | N15: 上海三菱电机 | P15: 330281908000001543
A16: 15 | B16: 宁波铁塔党委会纪要〔2018〕第25期 | C16: 330200303279 | E16: 空调 | F16: 基站空调柜式 | G16: 103 | H16: 54.35 | I16: 48.65 | J16: 1 | K16: 台 | M16: 空调 | N16: 无 | P16: 330204908000000085
A17: 16 | B17: 宁波铁塔党委会纪要〔2018〕第25期 | C17: 330200304926 | E17: 空调 | F17: 基站空调柜式 | G17: 493.71 | H17: 260.96 | I17: 232.75 | J17: 1 | K17: 台 | M17: 空调 | N17: 无 | P17: 330212500000000170
A18: 17 | B18: 宁波铁塔党委会纪要〔2020〕第31期 | C18: 330200308712 | E18: 开关电源 | F18: 组合开关电源柜 | G18: 21057.15 | H18: 3468.56 | I18: 17588.59 | J18: 1 | K18: 个 | M18: 开关电源配套设备--壁挂式开关电源系统---48V | N18: 中恒 | P18: 330282908000001042
A19: 18 | B19: 总经理办公会纪要〔2024〕第7期 | C19: 330200360909 | E19: 动力及环境监控单元 | F19: 动力及环境监控单元 | G19: 2794.87 | H19: 159.16 | I19: 2635.71 | J19: 1 | K19: 个 | M19: 主设备室内型成套设备基本配置模型 | P19: 330281500000000254
A20: 19 | B20: 总经理办公会纪要〔2024〕第 44 期 | C20: 330200100830 | E20: 通用空调-通用空调 | F20: 基站空调柜式 | G20: 206 | H20: 6.18 | I20: 199.82 | J20: 1 | K20: 台 | M20: KF-75LW-3RF | N20: 广州科龙 | P20: 330205908000000183
A21: 20 | B21: 总经理办公会纪要〔2024〕第 44 期 | C21: 330200100831 | E21: 智能新风系统 | F21: 基站专用空调 | G21: 584.76 | H21: 17.54 | I21: 567.22 | J21: 1 | K21: 台 | M21: SF-300ACD-1800 | N21: 浙江金之路信息科技有限公司 | P21: 330205908000000183
A22: 21 | B22: 总经理办公会纪要〔2024〕第 44 期 | C22: 330200101544 | E22: 组合开关电源 | F22: 组合式开关电源 | G22: 2072.88 | H22: 62.19 | I22: 2010.69 | J22: 1 | K22: 个 | M22: 48V-600A(50A模块)-200A | N22: 艾默生网络能源有限公司 | P22: 330283908000000606
A23: 22 | B23: 总经理办公会纪要〔2024〕第 44 期 | C23: 330200102776 | E23: 组合式开关电源 | F23: 组合式开关电源 | G23: 192 | H23: 5.76 | I23: 186.24 | J23: 1 | K23: 个 | M23: 48V-600A(50A模块)-250 | N23: 施威特克电源（中国）公司 | P23: 330282908000001153
A24: 23 | B24: 总经理办公会纪要〔2024〕第 44 期 | C24: 330200104587 | E24: 整流设备-组合开关电源 | F24: 组合式开关电源 | G24: 898.2 | H24: 26.95 | I24: 871.25 | J24: 1 | K24: 个 | M24: 48V-600A(50A模块)-200A | N24: 艾默生 | P24: 330204908000000360
A25: 24 | B25: 总经理办公会纪要〔2024〕第 44 期 | C25: 330200108945 | E25: 整流设备-组合开关电源 | F25: 组合式开关电源 | G25: 1146.6 | H25: 34.4 | I25: 1112.2 | J25: 1 | K25: 个 | M25: 48V-600A(50A模块)-200A | N25: 中兴 | P25: 330212908000000626
A26: 25 | B26: 总经理办公会纪要〔2024〕第 44 期 | C26: 330200109247 | E26: 空调-普通空调 | F26: 基站空调柜式 | G26: 864 | H26: 25.92 | I26: 838.08 | J26: 1 | K26: 台 | M26: FVY71DQV2CB | N26: 大金 | P26: 330282908000000083
A27: 26 | B27: 总经理办公会纪要〔2024〕第 44 期 | C27: 330200110892 | E27: 组合式开关电源 | F27: 组合式开关电源 | G27: 4806.16 | H27: 144.18 | I27: 4661.98 | J27: 1 | K27: 个 | M27: 48V-720A(50A模块)-150 | N27: 杭州中恒电气股份有限公司 | P27: 330205908000000549
A28: 27 | B28: 总经理办公会纪要〔2024〕第 44 期 | C28: 330200111025 | E28: 组合式开关电源 | F28: 组合式开关电源 | G28: 604.8 | H28: 18.14 | I28: 586.66 | J28: 1 | K28: 个 | M28: 48V-600A(30A模块)-90 | N28: 施威特克电源（中国）公司 | P28: 330281908000000062
A29: 28 | B29: 总经理办公会纪要〔2024〕第 44 期 | C29: 330200111083 | E29: 过压保护器 | F29: 低压避雷设施 | G29: 4482.21 | H29: 134.47 | I29: 4347.74 | J29: 1 | K29: 个 | M29: 三相浪涌抑制器_120KA | N29: 康普顿 | P29: 330226908000000364
A30: 29 | B30: 总经理办公会纪要〔2024〕第 44 期 | C30: 330200111086 | E30: 整流设备-组合开关电源 | F30: 组合式开关电源 | G30: 898.2 | H30: 26.95 | I30: 871.25 | J30: 1 | K30: 个 | M30: 48V-400A(50A模块)-200A | N30: 艾默生 | P30: 330226908000000364
A31: 30 | B31: 总经理办公会纪要〔2024〕第 44 期 | C31: 330200111087 | E31: 油机发电外围设备-油机转换屏 | F31: 油机转换箱 | G31: 2043.74 | H31: 61.31 | I31: 1982.43 | J31: 1 | K31: 个 | M31: NXK1 | N31: 正泰 | P31: 330226908000000364
A32: 31 | B32: 总经理办公会纪要〔2024〕第 44 期 | C32: 330200111088 | E32: 低压配电设备-交流配电箱 | F32: 交流配电箱 | G32: 273.6 | H32: 8.21 | I32: 265.39 | J32: 1 | K32: 个 | M32: XRC2-3 | N32: 曙光 | P32: 330226908000000364
A33: 32 | B33: 总经理办公会纪要〔2024〕第 44 期 | C33: 330200112714 | E33: 组合开关电源 | F33: 组合式开关电源 | G33: 382.2 | H33: 11.47 | I33: 370.73 | J33: 1 | K33: 个 | M33: 48V-600A(50A模块)-200A | N33: 中兴通讯股份有限公司 | P33: 330212908000000797
A34: 33 | B34: 总经理办公会纪要〔2024〕第 44 期 | C34: 330200112784 | E34: 交流配电设备 | F34: 交流配电设备 | G34: 1588.94 | H34: 47.67 | I34: 1541.27 | J34: 1 | K34: 个 | M34: DPJ-380V-100A-X-S | N34: 宁波隆兴电信设备制造有限公司 | P34: 330212908000001655
A35: 34 | B35: 总经理办公会纪要〔2024〕第 44 期 | C35: 330200113103 | E35: 组合式开关电源 | F35: 组合式开关电源 | G35: 5273.87 | H35: 158.22 | I35: 5115.65 | J35: 1 | K35: 个 | M35: 48V-600A（50A模块）-150 | N35: 杭州中恒电气股份有限公司 | P35: 330282010000001346
A36: 35 | B36: 总经理办公会纪要〔2024〕第 44 期 | C36: 330200114860 | E36: 交流配电设备 | F36: 交流配电设备 | G36: 4150.6 | H36: 124.52 | I36: 4026.08 | J36: 1 | K36: 个 | M36: XL-21 | N36: 宁波华通电器集团有限公司 | P36: 330204908000000222
A37: 36 | B37: 总经理办公会纪要〔2024〕第 44 期 | C37: 330200116421 | E37: 整流设备-小型组合开关电源 | F37: 组合式开关电源 | G37: 1093.75 | H37: 32.81 | I37: 1060.94 | J37: 1 | K37: 个 | M37: PS48400-3-2900 | N37: 艾默生 | P37: 330212908000000040
A38: 37 | B38: 总经理办公会纪要〔2024〕第 44 期 | C38: 330200117513 | E38: 组合式开关电源 | F38: 组合式开关电源 | G38: 3030.26 | H38: 90.91 | I38: 2939.35 | J38: 1 | K38: 个 | M38: 48V-600A(50A模块)-150 | N38: 施威特克电源（中国）公司 | P38: 330281908000001438
A39: 38 | B39: 总经理办公会纪要〔2024〕第 44 期 | C39: 330200118586 | E39: 专用空调 | F39: 基站空调柜式 | G39: 1898.08 | H39: 56.94 | I39: 1841.14 | J39: 1 | K39: 台 | M39: LF75WGT | N39: 三菱重工海尔空调有限公司 | P39: 330204908000000222
A40: 39 | B40: 总经理办公会纪要〔2024〕第 44 期 | C40: 330200118587 | E40: 专用空调 | F40: 基站空调柜式 | G40: 1898.08 | H40: 56.94 | I40: 1841.14 | J40: 1 | K40: 台 | M40: LF75WGT | N40: 三菱重工海尔空调有限公司 | P40: 330204908000000222
A41: 40 | B41: 总经理办公会纪要〔2024〕第 44 期 | C41: 330200118796 | E41: 直流配电设备 | F41: 交流配电箱 | G41: 4429.42 | H41: 132.88 | I41: 4296.54 | J41: 1 | K41: 个 | M41: DPJ-380V-100A-X-S | N41: 宁波隆兴电信设备制造有限公司 | P41: 330282010000001346
A42: 41 | B42: 总经理办公会纪要〔2024〕第 44 期 | C42: 330200118886 | E42: 组合式开关电源 | F42: 组合式开关电源 | G42: 5560.86 | H42: 166.83 | I42: 5394.03 | J42: 1 | K42: 个 | M42: 48V-600A(30A模块)-180 | N42: 杭州中恒电气股份有限公司 | P42: 330206908000000387
A43: 42 | B43: 总经理办公会纪要〔2024〕第 44 期 | C43: 330200120790 | E43: 专用空调 | F43: 基站空调柜式 | G43: 204 | H43: 6.12 | I43: 197.88 | J43: 1 | K43: 台 | M43: KF-72LW-TSUS-N2 | N43: 海信（山东）空调有限公司 | P43: 330282010000001315
A44: 43 | B44: 总经理办公会纪要〔2024〕第 44 期 | C44: 330200120953 | E44: 专用空调 | F44: 基站空调柜式 | G44: 204 | H44: 6.12 | I44: 197.88 | J44: 1 | K44: 台 | M44: KF-72LW-TSUS-N2 | N44: 海信（山东）空调有限公司 | P44: 330282010000001349
A45: 44 | B45: 总经理办公会纪要〔2024〕第 44 期 | C45: 330200122277 | E45: 通用空调 | F45: 基站空调柜式 | G45: 288 | H45: 8.64 | I45: 279.36 | J45: 1 | K45: 台 | M45: FVY71DQV2CB | N45: 宁波大众空调电器有限公司 | P45: 330282908000000655
A46: 45 | B46: 总经理办公会纪要〔2024〕第 44 期 | C46: 330200122296 | E46: 通用空调 | F46: 基站空调柜式 | G46: 186 | H46: 5.58 | I46: 180.42 | J46: 1 | K46: 台 | M46: KFR-75LW-3RF(G01) | N46: 杭州振东暖通空调设备贸易有限公 | P46: 330206908000000653
A47: 46 | B47: 总经理办公会纪要〔2024〕第 44 期 | C47: 330200122297 | E47: 普通空调 | F47: 基站空调柜式 | G47: 103 | H47: 3.09 | I47: 99.91 | J47: 1 | K47: 台 | M47: FVY71DQV2CB | N47: 上海大金 | P47: 330206908000000653
A48: 47 | B48: 总经理办公会纪要〔2024〕第 44 期 | C48: 330200122642 | E48: 组合开关电源 | F48: 组合式开关电源 | G48: 2856.65 | H48: 85.7 | I48: 2770.95 | J48: 1 | K48: 个 | M48: 48V-600A(50A模块)-200A | N48: 艾默生网络能源有限公司 | P48: 330281908000001152
A49: 48 | B49: 总经理办公会纪要〔2024〕第 44 期 | C49: 330200124128 | E49: 组合式开关电源 | F49: 组合式开关电源 | G49: 2845.09 | H49: 85.35 | I49: 2759.74 | J49: 1 | K49: 个 | M49: 48V-100A(30A模块)-90 | N49: 施威特克电源（中国）公司 | P49: 330206908000000159
A50: 49 | B50: 总经理办公会纪要〔2024〕第 44 期 | C50: 330200124142 | E50: 组合开关电源 | F50: 组合式开关电源 | G50: 382.2 | H50: 11.47 | I50: 370.73 | J50: 1 | K50: 个 | M50: 48V-600A(50A模块)-200A | N50: 中兴通讯股份有限公司 | P50: 330211908000000510
A51: 50 | B51: 总经理办公会纪要〔2024〕第 44 期 | C51: 330200125315 | E51: 直流配电设备 | F51: 交流配电箱 | G51: 3823.76 | H51: 114.71 | I51: 3709.05 | J51: 1 | K51: 个 | M51: XL-21 | N51: 宁波华通电器集团有限公司 | P51: 330282908000001153
A52: 51 | B52: 总经理办公会纪要〔2024〕第 44 期 | C52: 330200126464 | E52: 组合开关电源 | F52: 组合式开关电源 | G52: 299.4 | H52: 8.98 | I52: 290.42 | J52: 1 | K52: 个 | M52: 48V-600A(50A模块)-200A | N52: 艾默生网络能源有限公司 | P52: 330204908000000392
A53: 52 | B53: 总经理办公会纪要〔2024〕第 44 期 | C53: 330200126739 | E53: 交流配电设备 | F53: 交流配电设备 | G53: 3858.13 | H53: 115.74 | I53: 3742.39 | J53: 1 | K53: 个 | M53: XL-21 | N53: 宁波华通电器集团有限公司 | P53: 330206908000000233
A54: 53 | B54: 总经理办公会纪要〔2024〕第 44 期 | C54: 330200127077 | E54: 组合式开关电源 | F54: 组合式开关电源 | G54: 553.07 | H54: 16.59 | I54: 536.48 | J54: 1 | K54: 个 | M54: 48V-600A（30A模块）-150 | N54: 杭州中恒电气股份有限公司 | P54: 330281908000000598
A55: 54 | B55: 总经理办公会纪要〔2024〕第 44 期 | C55: 330200127594 | E55: 组合式开关电源 | F55: 组合式开关电源 | G55: 896.4 | H55: 26.89 | I55: 869.51 | J55: 1 | K55: 个 | M55: 48V-600A(30A模块)-60 | N55: 施威特克电源（中国）公司 | P55: 330212908000001536
A56: 55 | B56: 总经理办公会纪要〔2024〕第 44 期 | C56: 330200128159 | E56: 普通空调 | F56: 基站空调柜式 | G56: 154.5 | H56: 4.64 | I56: 149.86 | J56: 1 | K56: 台 | M56: KF-75LW-3RF | N56: 广州科龙 | P56: 330282908000000655
A57: 56 | B57: 总经理办公会纪要〔2024〕第 44 期 | C57: 330200128326 | E57: 组合式开关电源 | F57: 组合式开关电源 | G57: 757.15 | H57: 22.71 | I57: 734.44 | J57: 1 | K57: 个 | M57: 48V-360A(50A模块)-150 | N57: 杭州中恒电气股份有限公司 | P57: 330283908000000307
A58: 57 | B58: 总经理办公会纪要〔2024〕第 44 期 | C58: 330200129726 | E58: 整流机架 | F58: 组合式开关电源 | G58: 1902.55 | H58: 57.08 | I58: 1845.47 | J58: 1 | K58: 个 | M58: 48V-600A(30A模块)-180 | N58: 施威特克电源（中国）公司 | P58: 330206908000000233
A59: 58 | B59: 总经理办公会纪要〔2024〕第 44 期 | C59: 330200129728 | E59: 整流机架 | F59: 组合式开关电源 | G59: 2892.78 | H59: 86.78 | I59: 2806 | J59: 1 | K59: 个 | M59: 48V-600A(30A模块)-150 | N59: 杭州中恒电气股份有限公司 | P59: 330206908000000504
A60: 59 | B60: 总经理办公会纪要〔2024〕第 44 期 | C60: 330200130383 | E60: 整流设备-组合开关电源 | F60: 组合式开关电源 | G60: 898.2 | H60: 26.95 | I60: 871.25 | J60: 1 | K60: 个 | M60: 48V-240A(20A模块）-120 | N60: 艾默生 | P60: 330283908000000668
A61: 60 | B61: 总经理办公会纪要〔2024〕第 44 期 | C61: 330200131717 | E61: 直流配电设备 | F61: 交流配电箱 | G61: 2698.16 | H61: 80.94 | I61: 2617.22 | J61: 1 | K61: 个 | M61: XXL1 | N61: 江苏荣联科技发展股份有限公司 | P61: 330205908000000446
A62: 61 | B62: 总经理办公会纪要〔2024〕第 44 期 | C62: 330200133936 | E62: 动力及环境监控单元 | F62: 动力及环境监控单元 | G62: 2246.57 | H62: 67.4 | I62: 2179.17 | J62: 1 | K62: 个 | M62: BASS-260 | N62: 高新兴 | P62: 330282908000001153
A63: 62 | B63: 总经理办公会纪要〔2024〕第 44 期 | C63: 330200134118 | E63: 专用空调 | F63: 基站空调柜式 | G63: 4680 | H63: 140.4 | I63: 4539.6 | J63: 1 | K63: 台 | M63: SPW-V253DHL5 | N63: 三洋电机(中国)有限公司 | P63: 330282908000001441
A64: 63 | B64: 总经理办公会纪要〔2024〕第 44 期 | C64: 330200136775 | E64: 专用空调 | F64: 基站空调柜式 | G64: 206 | H64: 6.18 | I64: 199.82 | J64: 1 | K64: 台 | M64: RF75W-LD(S) | N64: 上海三菱电机上菱空调机电器有限公司 | P64: 330206908000000504
A65: 64 | B65: 总经理办公会纪要〔2024〕第 44 期 | C65: 330200137073 | E65: 专用空调 | F65: 基站空调柜式 | G65: 103 | H65: 3.09 | I65: 99.91 | J65: 1 | K65: 台 | M65: LF75WGT | N65: 三菱重工海尔空调有限公司 | P65: 330282908000001166
A66: 65 | B66: 总经理办公会纪要〔2024〕第 44 期 | C66: 330200138908 | E66: 整流设备-组合开关电源 | F66: 组合式开关电源 | G66: 898.2 | H66: 26.95 | I66: 871.25 | J66: 1 | K66: 个 | M66: 48V-600A(50A模块)-200A | N66: 艾默生 | P66: 330212908000000770
A67: 66 | B67: 总经理办公会纪要〔2024〕第 44 期 | C67: 330200139258 | E67: 交流配电设备 | F67: 交流配电设备 | G67: 1318.06 | H67: 39.54 | I67: 1278.52 | J67: 1 | K67: 个 | M67: XL-21 | N67: 宁波耐吉集团公司 | P67: 330225908000000396
A68: 67 | B68: 总经理办公会纪要〔2024〕第 44 期 | C68: 330200143238 | E68: 组合式开关电源 | F68: 组合式开关电源 | G68: 4629.57 | H68: 138.89 | I68: 4490.68 | J68: 1 | K68: 个 | M68: 48V-600A(30A模块)-90 | N68: 杭州中恒电气股份有限公司 | P68: 330205908000000446
A69: 68 | B69: 总经理办公会纪要〔2024〕第 44 期 | C69: 330200145343 | E69: 专用空调 | F69: 基站空调柜式 | G69: 5644.15 | H69: 169.32 | I69: 5474.83 | J69: 1 | K69: 台 | M69: LF75WGT | N69: 三菱重工海尔空调有限公司 | P69: 330205908000000368
A70: 69 | B70: 总经理办公会纪要〔2024〕第 44 期 | C70: 330200146195 | E70: 整流设备-小型组合开关电源 | F70: 组合式开关电源 | G70: 1217.95 | H70: 36.54 | I70: 1181.41 | J70: 1 | K70: 个 | M70: PS48600-2-50 | N70: 艾默生 | P70: 330226908000000291
A71: 70 | B71: 总经理办公会纪要〔2024〕第 44 期 | C71: 330200146275 | E71: 通用空调-通用空调 | F71: 基站空调柜式 | G71: 864 | H71: 25.92 | I71: 838.08 | J71: 1 | K71: 台 | M71: FVY71CQVLB | N71: 上海大金 | P71: 330206908000000629
A72: 71 | B72: 总经理办公会纪要〔2024〕第 44 期 | C72: 330200146635 | E72: 通用空调 | F72: 基站空调柜式 | G72: 288 | H72: 8.64 | I72: 279.36 | J72: 1 | K72: 台 | M72: FVY71DQV2CB | N72: 宁波市铭志机电设备有限公司 | P72: 330211908000000510
A73: 72 | B73: 总经理办公会纪要〔2024〕第 44 期 | C73: 330200148624 | E73: 整流设备-组合开关电源 | F73: 组合式开关电源 | G73: 898.2 | H73: 26.95 | I73: 871.25 | J73: 1 | K73: 个 | M73: 48V-600A(50A模块)-200A | N73: 艾默生 | P73: 330281908000001021
A74: 73 | B74: 总经理办公会纪要〔2024〕第 44 期 | C74: 330200150033 | E74: 专用空调 | F74: 基站空调柜式 | G74: 257.5 | H74: 7.73 | I74: 249.77 | J74: 1 | K74: 台 | M74: RF73WDT | N74: 三菱重工海尔空调有限公司 | P74: 330212908000001655
A75: 74 | B75: 总经理办公会纪要〔2024〕第 44 期 | C75: 330200150063 | E75: 交流配电设备 | F75: 交流配电设备 | G75: 1468.8 | H75: 44.06 | I75: 1424.74 | J75: 1 | K75: 个 | M75: JXF | N75: 宁波华通电器集团有限公司 | P75: 330206908000000504
A76: 75 | B76: 总经理办公会纪要〔2024〕第 44 期 | C76: 330200150416 | E76: 专用空调 | F76: 基站空调柜式 | G76: 1242 | H76: 37.26 | I76: 1204.74 | J76: 1 | K76: 台 | M76: RF73WDT | N76: 三菱重工海尔空调有限公司 | P76: 330281908000000459
A77: 76 | B77: 总经理办公会纪要〔2024〕第 44 期 | C77: 330200151847 | E77: 专用空调 | F77: 基站空调柜式 | G77: 391 | H77: 11.73 | I77: 379.27 | J77: 1 | K77: 台 | M77: RF73WDT | N77: 三菱重工海尔空调有限公司 | P77: 330212010000001320
A78: 77 | B78: 总经理办公会纪要〔2024〕第 44 期 | C78: 330200152241 | E78: 专用空调 | F78: 基站空调壁挂 | G78: 206 | H78: 6.18 | I78: 199.82 | J78: 1 | K78: 台 | M78: KFR-50G-BP | N78: 大金(中国)投资有限公司 | P78: 330282908000001372
A79: 78 | B79: 总经理办公会纪要〔2024〕第 44 期 | C79: 330200153796 | E79: 专用空调 | F79: 基站空调柜式 | G79: 1092.5 | H79: 32.78 | I79: 1059.72 | J79: 1 | K79: 台 | M79: RF73WDT | N79: 三菱重工海尔空调有限公司 | P79: 330282908000001441
A80: 79 | B80: 总经理办公会纪要〔2024〕第 44 期 | C80: 330200154409 | E80: 组合式开关电源 | F80: 组合式开关电源 | G80: 604.8 | H80: 18.14 | I80: 586.66 | J80: 1 | K80: 个 | M80: 48V-600A(30A模块)-90 | N80: 施威特克电源（中国）公司 | P80: 330283010000000567
A81: 80 | B81: 总经理办公会纪要〔2024〕第 44 期 | C81: 330200154495 | E81: 整流设备-组合开关电源 | F81: 组合式开关电源 | G81: 1146.6 | H81: 34.4 | I81: 1112.2 | J81: 1 | K81: 个 | M81: 48V-600A(50A模块)-200A | N81: 中兴 | P81: 330282908000000529
A82: 81 | B82: 总经理办公会纪要〔2024〕第 44 期 | C82: 330200303067 | E82: 开关电源 | F82: 组合式开关电源 | G82: 4847.33 | H82: 145.42 | I82: 4701.91 | J82: 1 | K82: 个 | M82: 开关电源配套设备--壁挂式开关电源系统---48V | N82: 中恒 | P82: 330204908000000074
A83: 82 | B83: 总经理办公会纪要〔2024〕第 44 期 | C83: 330200303086 | E83: 开关电源 | F83: 组合式开关电源 | G83: 4847.31 | H83: 145.42 | I83: 4701.89 | J83: 1 | K83: 个 | M83: 开关电源配套设备--壁挂式开关电源系统---48V | N83: 中恒 | P83: 330204908000000071
A84: 83 | B84: 总经理办公会纪要〔2024〕第 44 期 | C84: 330200303690 | E84: 开关电源 | F84: 组合式开关电源 | G84: 5465.89 | H84: 163.98 | I84: 5301.91 | J84: 1 | K84: 个 | M84: 机架30A，48V壁挂开关电源架 | N84: 中恒 | P84: 33020600000003
A85: 84 | B85: 总经理办公会纪要〔2024〕第 44 期 | C85: 330200303796 | E85: 专用空调 | F85: 基站专用空调 | G85: 4117.08 | H85: 123.51 | I85: 3993.57 | J85: 1 | K85: 台 | M85: 3P柜机 | N85: 华凌 | P85: 330205010000000415
A86: 85 | B86: 总经理办公会纪要〔2024〕第 44 期 | C86: 330200305282 | E86: 开关电源 | F86: 组合式开关电源 | G86: 12303.32 | H86: 369.1 | I86: 11934.22 | J86: 1 | K86: 个 | M86: 普通30A | N86: 艾默生 | P86: 330211908000000702
A87: 86 | B87: 总经理办公会纪要〔2024〕第 44 期 | C87: 330200305283 | E87: 空调 | F87: 基站空调柜式 | G87: 12303.32 | H87: 369.1 | I87: 11934.22 | J87: 1 | K87: 台 | M87: KF-75L-SUT-N2 | N87: 海信 | P87: 330211908000000702
A88: 87 | B88: 总经理办公会纪要〔2024〕第 44 期 | C88: 330200305701 | E88: 开关电源 | F88: 组合式开关电源 | G88: 10266.53 | H88: 308 | I88: 9958.53 | J88: 1 | K88: 个 | M88: 180A | N88: 中恒 | P88: 330212908000001247
A89: 88 | B89: 总经理办公会纪要〔2024〕第 44 期 | C89: 330200306156 | E89: 开关电源 | F89: 组合式开关电源 | G89: 633.74 | H89: 19.01 | I89: 614.73 | J89: 1 | K89: 个 | M89: 开关电源 | P89: 33021201000807
A90: 89 | B90: 总经理办公会纪要〔2024〕第 44 期 | C90: 330200308464 | E90: 分体空调 | F90: 基站空调柜式 | G90: 12303.32 | H90: 369.1 | I90: 11934.22 | J90: 1 | K90: 台 | M90: KF-75L-SUT-N2 | N90: 海信 | P90: 330282908000000297
A91: 90 | B91: 总经理办公会纪要〔2024〕第 44 期 | C91: 330200308487 | E91: 分体空调 | F91: 基站空调柜式 | G91: 12303.32 | H91: 369.1 | I91: 11934.22 | J91: 1 | K91: 台 | M91: KF-75L-SUT-N2 | N91: 南都蓄电池厂 | P91: 330282908000000326
A92: 91 | B92: 总经理办公会纪要〔2024〕第 44 期 | C92: 330200310920 | E92: (北京融和创)-空调及空调零部件-空调 | F92: 基站空调柜式 | G92: 5827.99 | H92: 174.84 | I92: 5653.15 | J92: 1 | K92: 台 | M92: 3P 三相柜式（单冷） | N92: 北京融和创科技有限公司 | P92: 330212500000000164
A93: 92 | B93: 总经理办公会纪要〔2024〕第 44 期 | C93: 330200314560 | E93: 组合式高频开关电源-组合电源机架600A | F93: 组合式开关电源 | G93: 11736.16 | H93: 352.08 | I93: 11384.08 | J93: 1 | K93: 个 | M93: 组合式高频开关电源-组合电源机架600A | N93: 北京动力源科技股份有限公司 | P93: 330212500000000256
A94: 93 | B94: 总经理办公会纪要〔2024〕第 44 期 | C94: 330200321669 | E94: (北京融和创)-空调及空调零部件-空调 | F94: 基站空调柜式 | G94: 6405.7 | H94: 192.17 | I94: 6213.53 | J94: 1 | K94: 台 | M94: 3P 三相柜式（单冷） | N94: 北京融和创科技有限公司 | P94: 330212500000000213
A95: 94 | B95: 总经理办公会纪要〔2024〕第 44 期 | C95: 330200323146 | E95: (中达电通)-开关电源及电源模块-开关电源 | F95: 嵌入式开关电源 | G95: 5164.61 | H95: 154.94 | I95: 5009.67 | J95: 1 | K95: 个 | M95: 嵌入式开关电源32A/3P*1（室外标准机柜用） | N95: 中达电通股份有限公司 | P95: 330212500000000215
A96: 95 | B96: 总经理办公会纪要〔2024〕第 44 期 | C96: 330200324573 | E96: 2P 单相挂式（单冷） | F96: 基站空调壁挂 | G96: 4675.34 | H96: 140.26 | I96: 4535.08 | J96: 1 | K96: 台 | M96: (北京融和创)-空调及空调零部件-空调 | N96: 北京融和创科技有限公司 | P96: 330206908000001040
A97: 96 | B97: 总经理办公会纪要〔2024〕第 44 期 | C97: 330200325936 | E97: (北京融和创)-空调及空调零部件-空调 | F97: 基站空调柜式 | G97: 6294.69 | H97: 188.84 | I97: 6105.85 | J97: 1 | K97: 台 | M97: 3P 三相柜式（单冷） | N97: 北京融和创科技有限公司 | P97: 330205500000000041
A98: 97 | B98: 总经理办公会纪要〔2024〕第 44 期 | C98: 330200327490 | E98: 普通空调柜式 | F98: 基站空调柜式 | G98: 7745.73 | H98: 232.37 | I98: 7513.36 | J98: 1 | K98: 台 | M98: 3P单冷三相整机 | P98: 330282908000001153
A99: 98 | B99: 总经理办公会纪要〔2024〕第 44 期 | C99: 330200327631 | E99: 普通空调柜式 | F99: 基站空调柜式 | G99: 7745.73 | H99: 232.37 | I99: 7513.36 | J99: 1 | K99: 台 | M99: 3P单冷三相整机 | P99: 330282908000000160
A100: 99 | B100: 总经理办公会纪要〔2024〕第 44 期 | C100: 330200327814 | E100: 普通空调柜式 | F100: 基站空调柜式 | G100: 7585.49 | H100: 227.56 | I100: 7357.93 | J100: 1 | K100: 台 | M100: 3P单冷三相整机 | P100: 330212500000000016
A101: 100 | B101: 总经理办公会纪要〔2024〕第 44 期 | C101: 330200327829 | E101: 普通空调柜式 | F101: 基站空调柜式 | G101: 6761.65 | H101: 202.85 | I101: 6558.8 | J101: 1 | K101: 台 | M101: 3P单冷三相整机 | P101: 330212500000000222
A102: 101 | B102: 总经理办公会纪要〔2024〕第 44 期 | C102: 330200328190 | E102: 普通空调柜式 | F102: 基站空调柜式 | G102: 6191.77 | H102: 185.75 | I102: 6006.02 | J102: 1 | K102: 台 | M102: 3P单冷三相整机 | P102: 330205908000000132
A103: 102 | B103: 总经理办公会纪要〔2024〕第 44 期 | C103: 330200330218 | E103: 动力及环境监控单元 | F103: 动力及环境监控单元 | G103: 3502.07 | H103: 105.06 | I103: 3397.01 | J103: 1 | K103: 个 | M103: 主设备室内型成套设备基本配置模型 | P103: 330226908000001064
A104: 103 | B104: 总经理办公会纪要〔2024〕第 44 期 | C104: 330200330325 | E104: (北京融和创)-空调及空调零部件-空调 | F104: 基站空调柜式 | G104: 6071.53 | H104: 182.15 | I104: 5889.38 | J104: 1 | K104: 台 | M104: 3P 三相柜式（单冷） | N104: 北京融和创科技有限公司 | P104: 33020501000098
A105: 104 | B105: 总经理办公会纪要〔2024〕第 44 期 | C105: 330200331363 | E105: (中达电通)-嵌入式高频开关电源 | F105: 嵌入式开关电源 | G105: 9747.94 | H105: 292.44 | I105: 9455.5 | J105: 1 | K105: 个 | M105: 嵌入式高频开关电源-48V/300A高效系统 | N105: 中达电通股份有限公司 | P105: 330212500000000220
A106: 105 | B106: 总经理办公会纪要〔2024〕第 44 期 | C106: 330200331986 | E106: 开关电源（整机或机架） | F106: 组合式开关电源 | G106: 7100.25 | H106: 213.01 | I106: 6887.24 | J106: 1 | K106: 个 | M106: 开关电源（整机或机架） | N106: 中达电通股份有限公司 | P106: 330212500000000213
A107: 106 | B107: 总经理办公会纪要〔2024〕第 44 期 | C107: 330200332064 | E107: 开关电源（整机或机架） | F107: 嵌入式开关电源 | G107: 6461.41 | H107: 193.84 | I107: 6267.57 | J107: 1 | K107: 个 | M107: 嵌入式开关电源32A/3P*1（室外标准机柜用） | N107: 中达电通股份有限公司 | P107: 330211500000000084
A108: 107 | B108: 总经理办公会纪要〔2024〕第 44 期 | C108: 330200334075 | E108: 空调 | F108: 基站空调柜式 | G108: 6491.16 | H108: 194.73 | I108: 6296.43 | J108: 1 | K108: 台 | M108: 3P三相柜式（单冷） | N108: 杭州振东暖通设备贸易有限公司 | P108: 330282500000000094
A109: 108 | B109: 总经理办公会纪要〔2024〕第 44 期 | C109: 330200335840 | E109: 空调 | F109: 基站空调柜式 | G109: 6060.39 | H109: 181.81 | I109: 5878.58 | J109: 1 | K109: 台 | M109: 专用空调3P专用空调三相专用空调 | N109: 北京融和创科技有限公司 | P109: 330282500000000163
A110: 109 | B110: 总经理办公会纪要〔2024〕第 44 期 | C110: 330200337960 | E110: 嵌入式高频开关电源-48V/300A高效系统 | F110: 嵌入式开关电源 | G110: 4894.39 | H110: 146.83 | I110: 4747.56 | J110: 1 | K110: 个 | M110: 嵌入式高频开关电源-48V/300A高效系统 | N110: 杭州中恒电气股份有限公司 | P110: 330203500000000059
A111: 110 | B111: 总经理办公会纪要〔2024〕第 44 期 | C111: 330200338096 | E111: 普通空调壁挂 | F111: 基站空调壁挂 | G111: 3740.3 | H111: 112.21 | I111: 3628.09 | J111: 1 | K111: 台 | M111: 2P单冷单相整机 | P111: 330282500000000264
A112: 111 | B112: 总经理办公会纪要〔2024〕第 44 期 | C112: 330200342272 | E112: (中达电通)-开关电源及电源模块-开关电源 | F112: 组合式开关电源 | G112: 7720.65 | H112: 231.62 | I112: 7489.03 | J112: 1 | K112: 个 | M112: 落地式开关电源-48V/600A方案A | N112: 中达电通股份有限公司 | P112: 33021200000492
A113: 112 | B113: 总经理办公会纪要〔2024〕第 44 期 | C113: 330200343672 | E113: 普通空调柜式 | F113: 基站空调柜式 | G113: 5479.54 | H113: 164.39 | I113: 5315.15 | J113: 1 | K113: 台 | M113: 3P海信普通柜式空调 | N113: 海信（山东）空调有限公司 | P113: 33028200000108
A114: 113 | B114: 总经理办公会纪要〔2024〕第 44 期 | C114: 330200343731 | E114: 普通空调柜式 | F114: 基站空调柜式 | G114: 4943.41 | H114: 148.3 | I114: 4795.11 | J114: 1 | K114: 台 | M114: 3P海信普通柜式空调 | N114: 海信（山东）空调有限公司 | P114: 330212500000000016
A115: 114 | B115: 总经理办公会纪要〔2024〕第 44 期 | C115: 330200345170 | E115: (杭州中恒)-开关电源及电源模块-开关电源 | F115: 嵌入式开关电源 | G115: 2632.52 | H115: 78.98 | I115: 2553.54 | J115: 1 | K115: 个 | M115: 嵌入式开关电源32A/3P*1（室外标准机柜用） | N115: 杭州中恒电气股份有限公司 | P115: 33021201000807
A116: 115 | B116: 总经理办公会纪要〔2024〕第 44 期 | C116: 330200345440 | E116: 组合式开关电源 | F116: 组合式开关电源 | G116: 4285.79 | H116: 128.57 | I116: 4157.22 | J116: 1 | K116: 个 | M116: 落地式开关电源-48V/600A方案A | N116: 中兴通讯股份有限公司 | P116: 33020401000040
A117: 116 | B117: 总经理办公会纪要〔2024〕第 44 期 | C117: 330200346064 | E117: 整流模块 | F117: 整流模块 | G117: 3459.92 | H117: 103.8 | I117: 3356.12 | J117: 1 | K117: 个 | M117: 普通模块30A | P117: 33021201000807
A118: 117 | B118: 总经理办公会纪要〔2024〕第 44 期 | C118: 330200346065 | E118: 整流模块 | F118: 整流模块 | G118: 3459.93 | H118: 103.8 | I118: 3356.13 | J118: 1 | K118: 个 | M118: 普通模块30A | P118: 33021201000807
A119: 118 | B119: 总经理办公会纪要〔2024〕第 44 期 | C119: 330200347211 | E119: 嵌入式开关电源 | F119: 嵌入式开关电源 | G119: 9771.92 | H119: 293.16 | I119: 9478.76 | J119: 1 | K119: 个 | M119: 48V/300A高效系统(50A高效模块，共用电源系统，三相交流输入)100A | P119: 330225908000000220
A120: 119 | B120: 总经理办公会纪要〔2024〕第 44 期 | C120: 330200347247 | E120: 交流配电箱 | F120: 交流配电箱 | G120: 4886.99 | H120: 146.61 | I120: 4740.38 | J120: 1 | K120: 个 | M120: 壁挂式380V/100A内置100KASPD（2路输入） | N120: 宁波曲成电子科技有限公司 | P120: 330282500000000308
A121: 120 | B121: 总经理办公会纪要〔2024〕第 44 期 | C121: 330200347251 | E121: 组合式开关电源 | F121: 组合式开关电源 | G121: 9445.9 | H121: 283.38 | I121: 9162.52 | J121: 1 | K121: 个 | M121: 48V/600A高效系统(50A高效模块)150A | P121: 330282500000000308
A122: 121 | B122: 总经理办公会纪要〔2024〕第 44 期 | C122: 330200347253 | E122: 普通空调柜式 | F122: 基站空调柜式 | G122: 8292.55 | H122: 248.78 | I122: 8043.77 | J122: 1 | K122: 台 | M122: 3P单冷三相整机 | P122: 330282500000000308
A123: 122 | B123: 总经理办公会纪要〔2024〕第 44 期 | C123: 330200348865 | E123: 动力及环境监控单元 | F123: 动力及环境监控单元 | G123: 2798.9 | H123: 83.97 | I123: 2714.93 | J123: 1 | K123: 个 | M123: 主设备室内型成套设备基本配置模型 | P123: 330212500000000213
A124: 123 | B124: 总经理办公会纪要〔2024〕第 44 期 | C124: 330200351236 | E124: 动力及环境监控单元 | F124: 动力及环境监控单元 | G124: 3462.92 | H124: 103.89 | I124: 3359.03 | J124: 1 | K124: 个 | M124: 主设备室外型成套设备 | P124: 330226908000000364
A125: 124 | B125: 总经理办公会纪要〔2024〕第 44 期 | C125: 330200352466 | E125: 普通空调壁挂 | F125: 基站空调壁挂 | G125: 2208.69 | H125: 66.26 | I125: 2142.43 | J125: 1 | K125: 台 | M125: 1P单冷单相整机 | P125: 330205010000000415
A126: 125 | B126: 总经理办公会纪要〔2024〕第 44 期 | C126: 330200352886 | E126: 普通空调壁挂 | F126: 基站空调壁挂 | G126: 3693.29 | H126: 110.8 | I126: 3582.49 | J126: 1 | K126: 台 | M126: 2P单冷单相整机 | P126: 330206908000000079
A127: 126 | B127: 总经理办公会纪要〔2024〕第 44 期 | C127: 330200352926 | E127: 普通空调柜式 | F127: 基站空调柜式 | G127: 6219.53 | H127: 186.59 | I127: 6032.94 | J127: 1 | K127: 台 | M127: 3P单冷三相整机 | P127: 330206908000000233
A128: 127 | B128: 总经理办公会纪要〔2024〕第 44 期 | C128: 330200353136 | E128: 动力及环境监控单元 | F128: 动力及环境监控单元 | G128: 3420.21 | H128: 102.61 | I128: 3317.6 | J128: 1 | K128: 个 | M128: 主设备室内型成套设备双柜配置模型 | P128: 330204908000000074
A129: 128 | B129: 总经理办公会纪要〔2024〕第 44 期 | C129: 330200353173 | E129: 动力及环境监控单元 | F129: 动力及环境监控单元 | G129: 2723.07 | H129: 81.69 | I129: 2641.38 | J129: 1 | K129: 个 | M129: 主设备室内型成套设备基本配置模型 | P129: 330212500000000225
A130: 129 | B130: 总经理办公会纪要〔2024〕第 44 期 | C130: 330200353266 | E130: 动力及环境监控单元 | F130: 动力及环境监控单元 | G130: 3420.21 | H130: 102.61 | I130: 3317.6 | J130: 1 | K130: 个 | M130: 主设备室内型成套设备双柜配置模型 | P130: 330204908000000071
A131: 130 | B131: 总经理办公会纪要〔2024〕第 44 期 | C131: 330200354429 | E131: 1KV以下电力电缆 | F131: 1KV以下电力电缆 | G131: 678.94 | H131: 228.8 | I131: 450.14 | J131: 1 | K131: 米 | M131: 1KV以下电力电缆铜芯阻燃聚氯乙烯绝缘聚氯乙烯护套软电缆ZA-RVV 1*95mm2黑 | P131: 330206908000000233
A132: 131 | B132: 总经理办公会纪要〔2024〕第 44 期 | C132: 330200356029 | E132: 1KV以下电力电缆 | F132: 1KV以下电力电缆 | G132: 791.86 | H132: 266.81 | I132: 525.05 | J132: 1 | K132: 米 | M132: 1KV以下电力电缆铜芯阻燃聚氯乙烯绝缘聚氯乙烯护套软电缆ZA-RVV 1*95mm2黑 | P132: 330205908000000446
A133: 132 | B133: 总经理办公会纪要〔2024〕第 44 期 | C133: 330200357051 | E133: 电源扩容资产 | F133: 电源扩容资产 | G133: 200.75 | H133: 6.02 | I133: 194.73 | J133: 1 | K133: 个 | M133: 供电计量设备 | P133: 330212500000000225
A134: 133 | B134: 总经理办公会纪要〔2024〕第 44 期 | C134: 330200357988 | E134: 动力及环境监控单元 | F134: 动力及环境监控单元 | G134: 3217.06 | H134: 96.51 | I134: 3120.55 | J134: 1 | K134: 个 | M134: 主设备室外型成套设备 | N134: 广州邦讯信息系统有限公司 | P134: 330282500000000308
A135: 134 | B135: 总经理办公会纪要〔2024〕第 44 期 | C135: 330200360151 | E135: 整流模块 | F135: 整流模块 | G135: 6211.57 | H135: 186.35 | I135: 6025.22 | J135: 1 | K135: 个 | M135: 高效模块50A | P135: 330212500000000016
A136: 135 | B136: 总经理办公会纪要〔2024〕第 44 期 | C136: 330200361364 | E136: 机房配套扩容资产 | F136: 机房配套扩容资产 | G136: 501.72 | H136: 15.05 | I136: 486.67 | J136: 1 | K136: 个 | M136: 通信与位置服务模块通信与位置服务模块（联通版） | P136: 330282500000000308
A137: 136 | B137: 总经理办公会纪要〔2024〕第 44 期 | C137: 330200361389_2 | E137: 一体化设备柜 | F137: 基站专用空调 | G137: 2710.96 | H137: 81.33 | I137: 2629.63 | J137: 1 | K137: 台 | M137: 800*800*18002000W交流空调、PU | P137: 330226500000000240
A138: 137 | B138: 总经理办公会纪要〔2024〕第 44 期 | C138: 330200361675 | E138: 动力及环境监控单元 | F138: 动力及环境监控单元 | G138: 3046.31 | H138: 91.39 | I138: 2954.92 | J138: 1 | K138: 个 | M138: 主设备室内型成套设备基本配置模型 | P138: 330226500000000220
A139: 138 | B139: 总经理办公会纪要〔2024〕第 44 期 | C139: 330200361676 | E139: 配套机架/机柜 | F139: 配套机架/机柜 | G139: 1414.46 | H139: 42.43 | I139: 1372.03 | J139: 1 | K139: 个 | M139: 配套综合柜整机2000*600*600mm配套综合柜(双开后门) | P139: 330226500000000220
A140: 139 | B140: 总经理办公会纪要〔2024〕第 44 期 | C140: 330200362101 | E140: 普通空调柜式 | F140: 基站空调柜式 | G140: 6073.92 | H140: 182.22 | I140: 5891.7 | J140: 1 | K140: 台 | M140: 3P单冷三相整机 | P140: 330211908000000510
A141: 140 | B141: 总经理办公会纪要〔2024〕第 44 期 | C141: 330200363449 | E141: 机房配套扩容资产 | F141: 机房配套扩容资产 | G141: 581.86 | H141: 17.46 | I141: 564.4 | J141: 1 | K141: 个 | M141: 普通空调基站智能空调控制器 | P141: 330211908000000510
A142: 141 | B142: 总经理办公会纪要〔2024〕第 44 期 | C142: 330200363671 | E142: 机房配套扩容资产 | F142: 机房配套扩容资产 | G142: 390.03 | H142: 11.7 | I142: 378.33 | J142: 1 | K142: 个 | M142: 普通空调基站智能空调控制器 | P142: 330226908000000364
A143: 142 | B143: 总经理办公会纪要〔2024〕第 44 期 | C143: 330200367388 | E143: 机房配套扩容资产 | F143: 机房配套扩容资产 | G143: 1690.83 | H143: 73.49 | I143: 1617.34 | J143: 1 | K143: 个 | M143: RRU安装架室内RRU安装架 | P143: 330206908000000504
A144: 143 | B144: 总经理办公会纪要〔2024〕第 44 期 | C144: 330200367432 | E144: 机房配套扩容资产 | F144: 机房配套扩容资产 | G144: 1690.83 | H144: 73.49 | I144: 1617.34 | J144: 1 | K144: 个 | M144: RRU安装架室内RRU安装架 | P144: 330206908000000233
A145: 144 | B145: 总经理办公会纪要〔2024〕第 44 期 | C145: 330200370380 | E145: 机房配套扩容资产 | F145: 机房配套扩容资产 | G145: 723.23 | H145: 50.93 | I145: 672.3 | J145: 1 | K145: 个 | M145: 监控传感器智能门禁配套物资电源转换模块 | P145: 330203500000000059
A146: 145 | B146: 总经理办公会纪要〔2024〕第 44 期 | C146: 330200373622 | E146: 电源扩容资产 | F146: 电源扩容资产 | G146: 4363.87 | H146: 427.19 | I146: 3936.68 | J146: 1 | K146: 个 | M146: 远供系统配件远端设备智能远端1000W（交直流输入自适应型） | P146: 330212500000000510
A147: 146 | B147: 总经理办公会纪要〔2024〕第 44 期 | C147: 330200377682 | E147: 电力引入扩容资产 | F147: 电力引入扩容资产 | G147: 385.5 | H147: 186.01 | I147: 199.49 | J147: 1 | K147: 个 | M147: 霍尔传感器电流型输入50A/输出4-20mA | P147: 330205908000000446
A148: 147 | B148: 总经理办公会纪要〔2024〕第 44 期 | C148: 330200377695 | E148: 机房配套扩容资产 | F148: 机房配套扩容资产 | G148: 325.47 | H148: 44.84 | I148: 280.63 | J148: 1 | K148: 个 | M148: 普通空调基站智能空调控制器 | P148: 330205908000000446
A149: 148 | B149: 总经理办公会纪要〔2024〕第 44 期 | C149: 330200382043 | E149: 机房配套扩容资产 | F149: 机房配套扩容资产 | G149: 320.92 | H149: 57.2 | I149: 263.72 | J149: 1 | K149: 个 | M149: 普通空调基站智能空调控制器 | P149: 330282908000001153
A150: 149 | B150: 总经理办公会纪要〔2024〕第 44 期 | C150: 330200385197 | E150: 机房配套扩容资产 | F150: 机房配套扩容资产 | G150: 871.52 | H150: 166.97 | I150: 704.55 | J150: 1 | K150: 个 | M150: 主设备室外型拉远站用FSU设备常温48V直流型 | P150: 330204908000000576
A151: 150 | B151: 总经理办公会纪要〔2024〕第 44 期 | C151: 330200389575 | E151: 机房配套扩容资产 | F151: 机房配套扩容资产 | G151: 361.48 | H151: 88.76 | I151: 272.72 | J151: 1 | K151: 个 | M151: 普通空调基站智能空调控制器 | P151: 330205010000000415
A152: 151 | B152: 总经理办公会纪要〔2024〕第 44 期 | C152: 330200389606 | E152: 电源扩容资产 | F152: 电源扩容资产 | G152: 690.62 | H152: 160.24 | I152: 530.38 | J152: 1 | K152: 个 | M152: 通用配件电表箱250mm*400mm*140mm | P152: 330211908000000702
A153: 152 | B153: 总经理办公会纪要〔2024〕第 44 期 | C153: 330200390053 | E153: 电力引入扩容资产 | F153: 电力引入扩容资产 | G153: 363.83 | H153: 196.16 | I153: 167.67 | J153: 1 | K153: 个 | M153: 霍尔传感器电流型输入100A/输出4-20mA | P153: 330211908000000702
A154: 153 | B154: 总经理办公会纪要〔2024〕第 44 期 | C154: 330200390681 | E154: 机房配套扩容资产 | F154: 机房配套扩容资产 | G154: 738.98 | H154: 181.45 | I154: 557.53 | J154: 1 | K154: 个 | M154: 普通空调基站智能空调控制器 | P154: 330204908000000222
A155: 154 | B155: 总经理办公会纪要〔2024〕第 44 期 | C155: 330200391387 | E155: 电源扩容资产 | F155: 电源扩容资产 | G155: 719.24 | H155: 176.6 | I155: 542.64 | J155: 1 | K155: 个 | M155: 低压智能电表三相四路 | P155: 330205010000000415
A156: 155 | B156: 总经理办公会纪要〔2024〕第 44 期 | C156: 330200394342 | E156: 嵌入式开关电源 | F156: 嵌入式开关电源 | G156: 8198.19 | H156: 2123.65 | I156: 6074.54 | J156: 1 | K156: 个 | M156: 嵌入式开关电源嵌入式高频开关电源配件嵌入式电源插框共用电源系统450A/75A智能电源-高效电源插框 | P156: 330282010000001108
A157: 156 | B157: 总经理办公会纪要〔2024〕第 44 期 | C157: 330200397063 | E157: 电力引入扩容资产 | F157: 电力引入扩容资产 | G157: 533.47 | H157: 305.04 | I157: 228.43 | J157: 1 | K157: 个 | M157: 直流计量终端6分路 | P157: 330226908000001064
A158: 157 | B158: 总经理办公会纪要〔2024〕第 44 期 | C158: 330200398753 | E158: 普通空调壁挂 | F158: 基站空调壁挂 | G158: 4123.45 | H158: 1234.8 | I158: 2888.65 | J158: 1 | K158: 台 | M158: 2P单冷单相整机 | P158: 330211908000000244
A159: 158 | B159: 总经理办公会纪要〔2024〕第 44 期 | C159: 330200410089 | E159: 电力引入扩容资产 | F159: 电力引入扩容资产 | G159: 533.47 | H159: 335.21 | I159: 198.26 | J159: 1 | K159: 个 | M159: 直流计量终端6分路 | P159: 330226908000000364
A160: 159 | B160: 总经理办公会纪要〔2024〕第 44 期 | C160: 330200419594 | E160: 机房配套扩容资产 | F160: 机房配套扩容资产 | G160: 320.83 | H160: 139.37 | I160: 181.46 | J160: 1 | K160: 个 | M160: 普通空调基站智能空调控制器 | P160: 330212908000001655
A161: 160 | B161: 总经理办公会纪要〔2024〕第 44 期 | C161: 330200423036 | E161: 电源扩容资产 | F161: 电源扩容资产 | G161: 852.12 | H161: 381.44 | I161: 470.68 | J161: 1 | K161: 个 | M161: 通用配件断路器带漏电保护器开关380V/63A(带自动吸合) | P161: 330211908000000510
A162: 161 | B162: 总经理办公会纪要〔2024〕第 44 期 | C162: 330200424758 | E162: 机房配套扩容资产 | F162: 机房配套扩容资产 | G162: 360.48 | H162: 166.17 | I162: 194.31 | J162: 1 | K162: 个 | M162: 普通空调基站智能空调控制器 | P162: 330212500000000213
A163: 162 | B163: 总经理办公会纪要〔2024〕第 44 期 | C163: 330200426300 | E163: 机房配套扩容资产 | F163: 机房配套扩容资产 | G163: 371.52 | H163: 176.31 | I163: 195.21 | J163: 1 | K163: 个 | M163: 普通空调基站智能空调控制器 | P163: 330212500000000225
A164: 163 | B164: 总经理办公会纪要〔2024〕第 44 期 | C164: 330200426835 | E164: 机房配套扩容资产 | F164: 机房配套扩容资产 | G164: 1518 | H164: 740.9 | I164: 777.1 | J164: 1 | K164: 米 | M164: 5P冷暖三相固定配置冷媒管（铜管，含保温材料、管头管件等辅材） | P164: 330211908000000510
A165: 164 | B165: 总经理办公会纪要〔2024〕第 44 期 | C165: 330200429965 | E165: 电源扩容资产 | F165: 电源扩容资产 | G165: 855.11 | H165: 451.91 | I165: 403.2 | J165: 1 | K165: 个 | M165: 通用配件断路器带漏电保护器开关380V/63A(带自动吸合) | P165: 330203500000000059

Sheet 衢州
A1: 序号 | B1: 报废批复文号 | C1: 资产编号 | D1: 资产名称 | E1: 资产类别名称 | F1: 资产原值 （元，不含税） | G1: 资产净值 （元，不含税） | H1: 累计折旧 | I1: 资产数量 | J1: 计量单位 （个/吨/米等） | K1: 单节电池电压（2V/12V） | L1: 规格型号 | M1: 生产厂家 | N1: 站点名称 | O1: 站点编码 | P1: 实物备注
A2: 1 | B2: 综合〔2023〕64号 | C2: 330800000028 | D2: 夏普 XG-FX8305A投影仪 | E2: 投影仪 | F2: 3158.97 | G2: 94.77 | H2: 3064.2 | I2: 1 | J2: 台 | L2: 夏普 XG-FX8305A | N2: 衢州市公共库位 | O2: 330800
A3: 2 | B3: 综合〔2023〕64号 | C3: 330800000029 | D3: 夏普 XG-FX850A投影仪 | E3: 投影仪 | F3: 4269.23 | G3: 128.08 | H3: 4141.15 | I3: 1 | J3: 台 | L3: 夏普 XG-FX850A | N3: 衢州市公共库位 | O3: 330800
A4: 3 | B4: 综合〔2023〕64号 | C4: 330800000031 | D4: 一体机 | E4: 打印机设备 | F4: 13700 | G4: 411 | H4: 13289 | I4: 1 | J4: 台 | L4: 三星 SCX-8240NA | N4: 衢州市公共库位 | O4: 330800
A5: 4 | B5: 综合〔2023〕64号 | C5: 330800002922 | D5: 台式电脑 | E5: 办公设备电脑 | F5: 4443.59 | G5: 133.31 | H5: 4310.28 | I5: 1 | J5: 台 | L5: DELL VOSTRO 3900-R5938C | N5: 衢州市公共库位 | O5: 330800
A6: 5 | B6: 综合〔2023〕64号 | C6: 330800304668 | D6: 笔记本电脑 | E6: 办公设备电脑 | F6: 5247.86 | G6: 157.44 | H6: 5090.42 | I6: 1 | J6: 台 | L6: THINKPAD X250 | N6: 衢州市公共库位 | O6: 330800
A7: 6 | B7: 综合〔2023〕64号 | C7: 330800306035 | D7: 黑白激光多功能一体机 | E7: 打印机设备 | F7: 2982.91 | G7: 89.49 | H7: 2893.42 | I7: 1 | J7: 台 | L7: 佳能（Canon）MF229dw | N7: 衢州市公共库位 | O7: 330800
A8: 7 | B8: 综合〔2023〕64号 | C8: 330800311686 | D8: 复印机 | E8: 多功能一体化机 | F8: 12820.51 | G8: 384.62 | H8: 12435.89 | I8: 1 | J8: 台 | L8: 京瓷6525 | N8: 衢州市公共库位 | O8: 330800
A9: 8 | B9: 综合〔2023〕64号 | C9: 330800321631 | D9: 台式电脑 | E9: 办公设备电脑 | F9: 4238.46 | G9: 127.15 | H9: 4111.31 | I9: 1 | J9: 台 | L9: DELL | N9: 衢州市公共库位 | O9: 330800
A10: 9 | B10: 综合〔2023〕64号 | C10: 330800321623 | D10: 台式电脑 | E10: 办公设备电脑 | F10: 4238.46 | G10: 127.15 | H10: 4111.31 | I10: 1 | J10: 台 | L10: DELL | N10: 衢州市公共库位 | O10: 330800
A11: 10 | B11: 综合〔2023〕64号 | C11: 330800321624 | D11: 台式电脑 | E11: 办公设备电脑 | F11: 4238.46 | G11: 127.15 | H11: 4111.31 | I11: 1 | J11: 台 | L11: DELL | N11: 衢州市公共库位 | O11: 330800
A12: 11 | B12: 综合〔2023〕64号 | C12: 330800321636 | D12: 台式电脑 | E12: 办公设备电脑 | F12: 4238.46 | G12: 127.15 | H12: 4111.31 | I12: 1 | J12: 台 | L12: DELL | N12: 衢州市公共库位 | O12: 330800
A13: 12 | B13: 综合〔2024〕26号 | C13: 330800000019 | D13: HP M451DN彩色激光打印机 | E13: 打印机设备 | F13: 4863.25 | G13: 145.9 | H13: 4717.35 | I13: 1 | J13: 台 | L13: HP M451DN | N13: 衢州市公共库位 | O13: 330800
A14: 13 | B14: 综合〔2024〕26号 | C14: 330800002911 | D14: 打印机 | E14: 打印机设备 | F14: 760.68 | G14: 22.82 | H14: 737.86 | I14: 1 | J14: 台 | L14: HP P1108 | N14: 衢州市公共库位 | O14: 330800
A15: 14 | B15: 综合〔2024〕26号 | C15: 330800320933 | D15: 投影仪 | E15: 投影仪 | F15: 2221.37 | G15: 66.64 | H15: 2154.73 | I15: 1 | J15: 台 | L15: SONY VPL-EX231 | N15: 衢州市公共库位 | O15: 330800
A16: 15 | B16: 综合〔2024〕26号 | C16: 330800321625 | D16: 台式电脑 | E16: 办公设备电脑 | F16: 4238.46 | G16: 127.15 | H16: 4111.31 | I16: 1 | J16: 台 | L16: DELL | N16: 衢州市公共库位 | O16: 330800
A17: 16 | B17: 综合〔2024〕26号 | C17: 330800321626 | D17: 台式电脑 | E17: 办公设备电脑 | F17: 4238.46 | G17: 127.15 | H17: 4111.31 | I17: 1 | J17: 台 | L17: DELL | N17: 衢州市公共库位 | O17: 330800
A18: 17 | B18: 综合〔2024〕26号 | C18: 330800321627 | D18: 台式电脑 | E18: 办公设备电脑 | F18: 4238.46 | G18: 127.15 | H18: 4111.31 | I18: 1 | J18: 台 | L18: DELL | N18: 衢州市公共库位 | O18: 330800
A19: 18 | B19: 综合〔2024〕26号 | C19: 330800321628 | D19: 台式电脑 | E19: 办公设备电脑 | F19: 4238.46 | G19: 127.15 | H19: 4111.31 | I19: 1 | J19: 台 | L19: DELL | N19: 衢州市公共库位 | O19: 330800
A20: 19 | B20: 综合〔2024〕26号 | C20: 330800321629 | D20: 台式电脑 | E20: 办公设备电脑 | F20: 4238.46 | G20: 127.15 | H20: 4111.31 | I20: 1 | J20: 台 | L20: DELL | N20: 衢州市公共库位 | O20: 330800
A21: 20 | B21: 综合〔2024〕26号 | C21: 330800002923 | D21: 台式电脑 | E21: 办公设备电脑 | F21: 4443.59 | G21: 133.31 | H21: 4310.28 | I21: 1 | J21: 台 | L21: DELL VOSTRO 3900-R5938C | N21: 衢州市公共库位 | O21: 330800
A22: 21 | B22: 综合〔2024〕26号 | C22: 330800002924 | D22: 台式电脑 | E22: 办公设备电脑 | F22: 4443.59 | G22: 133.31 | H22: 4310.28 | I22: 1 | J22: 台 | L22: DELL VOSTRO 3900-R5938C | N22: 衢州市公共库位 | O22: 330800
A23: 22 | B23: 综合〔2024〕26号 | C23: 330800321633 | D23: 台式电脑 | E23: 办公设备电脑 | F23: 4238.46 | G23: 127.15 | H23: 4111.31 | I23: 1 | J23: 台 | L23: 成就3667-R1838 R2848 | N23: 衢州市公共库位 | O23: 330800
A24: 23 | B24: 综合〔2024〕26号 | C24: 330800321634 | D24: 台式电脑 | E24: 办公设备电脑 | F24: 4238.46 | G24: 127.15 | H24: 4111.31 | I24: 1 | J24: 台 | L24: 成就3667-R1838 R2848 | N24: 衢州市公共库位 | O24: 330800

Sheet 湖州
A1: 序号 | B1: 报废批复文号 | C1: 资产编号 | D1: 资产名称 | E1: 资产类别名称 | F1: 资产原值 （元，不含税 | G1: 资产净值 （元，不含税 | H1: 累计折旧 | I1: 资产数量 | J1: 计量单位 （个/吨/米等 | K1: 规格 | L1: 规格型号 | M1: 生产厂家 | N1: 站点名称 | O1: 站点编码 | P1: 启用日期 | Q1: 备注 | R1: 实物位置 | S1: 批号 | T1: 是否处置 | U1: 处置方式
A2: 1 | B2: 总经理办公会纪要〔2024〕第 39 期 | C2: 330500002244 | D2: 普通空调柜式 | F2: 6416.47 | G2: 192.49 | H2: 6223.98 | I2: 1.00 | J2: 台 | K2: 3P | L2: 3P 三相柜式（单冷） | N2: 南浔练市湾里村 | O2: 33050300000001 | P2: 2015/5/5 | Q2: 无铜管 | R2: 中通仓库 | S2: 无*3P*备注：无铜管*南浔练市湾里村*33050300000001**330500002244**废旧
A3: 2 | B3: 总经理办公会纪要〔2024〕第 39 期 | C3: 330500311471 | D3: 普通空调壁挂 | F3: 3606.97 | G3: 108.21 | H3: 3498.76 | I3: 1.00 | J3: 台 | K3: 2P | L3: 2P单冷 | N3: 南浔江蒋漾西 | O3: 330503500000000086 | P3: 2017/5/31 | Q3: 无铜管 | R3: 中通仓库 | S3: 无*2P*备注：无铜管*南浔江蒋漾西*330503500000000086**330500311471**废旧
A4: 3 | B4: 总经理办公会纪要〔2024〕第 39 期 | C4: 330500316178 | D4: 普通空调柜式 | F4: 6925.77 | G4: 207.77 | H4: 6718.00 | I4: 1.00 | J4: 台 | K4: 3P | L4: 3P单冷三相整机 | N4: 湖州南浔双林虹桥苑基站 | O4: 330503908000000178 | P4: 2017/12/12 | Q4: 无铜管 | R4: 中通仓库 | S4: 无*3P*备注：无铜管*湖州南浔双林虹桥苑基站*330503908000000178**330500316178**废旧
A5: 4 | B5: 总经理办公会纪要〔2024〕第 39 期 | C5: 330500112790 | D5: 普通空调柜式 | F5: 2106.92 | G5: 63.21 | H5: 2043.71 | I5: 1.00 | J5: 个 | K5: 3P | L5: 基站专用柜式分体7KW单冷三相 | N5: 湖州南浔荃步村基站 | O5: 330503908000000415 | P5: 2015/10/31 | Q5: 无铜管 | R5: 中通仓库 | S5: 无*3P*备注：无铜管*湖州南浔荃步村基站*330503908000000415**330500112790**废旧
A6: 5 | B6: 总经理办公会纪要〔2024〕第 39 期 | C6: 330500123277 | D6: 普通空调柜式 | F6: 1545.75 | G6: 46.37 | H6: 1499.38 | I6: 1.00 | J6: 个 | K6: 3P | L6: 3匹柜机 | N6: 湖州南浔练市东盛绸厂基站 | O6: 330503908000000119 | P6: 2015/10/31 | Q6: 无铜管 | R6: 中通仓库 | S6: 无*3P*备注：无铜管*湖州南浔练市东盛绸厂基站*330503908000000119**330500123277**废旧
A7: 6 | B7: 湖州铁塔党委会纪要〔2024〕第 19 期 | C7: 330500119435 | D7: 组合式开关电源 | F7: 5790.20 | G7: 173.71 | H7: 5616.49 | I7: 1.00 | J7: 个 | L7: 组合式48V-600A(50A模块)-200 | N7: 双林收费站 | O7: 330503908000000548 | P7: 2015/10/31 | R7: 中通仓库 | S7: 无*组合式48V-600A(50A模块)-200**双林收费站*330522908000000170**330500119435**废旧
A8: 7 | B8: 湖州铁塔党委会纪要〔2024〕第 19 期 | C8: 330500112108 | D8: 普通空调柜式 | F8: 4050.00 | G8: 121.50 | H8: 3928.50 | I8: 1.00 | J8: 个 | K8: 3P | L8: 基站空调柜式-3P-单冷-三相交流-整机 | N8: 湖州南浔柏树村基站 | O8: 330503908000000238 | P8: 2015/10/31 | Q8: 无铜管 | R8: 中通仓库 | S8: 无*基站空调柜式-3P-单冷-三相交流-整机*备注：无铜管*湖州南浔柏树村基站*330521908000000682**330500112108**废旧
A9: 8 | B9: 总经理办公会纪要〔2024〕第 24 期 | C9: 330500122121 | D9: 交流配电箱 | F9: 385.58 | G9: 11.57 | H9: 374.01 | I9: 1.00 | J9: 面 | L9: 220V-63A | N9: 吴兴东林余山 | O9: 330502908000000339 | P9: 20151031 | R9: 中通仓库 | S9: 无*220V-63A**吴兴东林余山*330503500000000007**330500122121**废旧
A10: 9 | B10: 湖州铁塔党委会纪要〔2024〕第 19 期 | C10: 330500343419 | D10: 动力及环境监控单元 | F10: 4175.49 | G10: 1588.15 | H10: 2587.34 | I10: 1.00 | J10: 个 | L10: 主设备室内型成套设备双柜配置模型 | N10: 商合杭长兴金家庄 | O10: 330522500000001705 | P10: 2020/8/27 | R10: 中通仓库 | S10: 无*动力及环境监控单元**商合杭长兴金家庄*33050301000012**330500343419**废旧
A11: 10 | B11: 湖州铁塔党委会纪要〔2024〕第 19 期 | C11: 330500002983 | D11: 动力及环境监控单元 | F11: 5182.69 | G11: 155.48 | H11: 5027.21 | I11: 1.00 | J11: 个 | L11: 主设备室内型成套设备双柜配置模型 | N11: 长兴范家桥 | O11: 33052200000041 | P11: 2015/4/30 | R11: 中通仓库 | S11: 无*主设备室内型成套设备基本配置模型**长兴范家桥*330521908000000746**330500002983**废旧
A12: 11 | B12: 总经理办公会纪要〔2024〕第 24 期 | C12: 330500328398 | D12: 动力及环境监控单元 | F12: 2592.76 | G12: 496.96 | H12: 2095.80 | I12: 1.00 | J12: 个 | L12: 主设备室内型成套设备双柜配置模型 | N12: 安吉递铺宜茂 | O12: 330523908000000959 | P12: 20190306 | R12: 中通仓库 | S12: 无*主设备室内型成套设备基本配置模型**安吉递铺宜茂*330521500000000159**330500328398**废旧
A13: 12 | B13: 湖州铁塔党委会纪要〔2024〕第 19 期 | C13: 330500320006 | D13: 动力及环境监控单元 | F13: 3672.65 | G13: 159.65 | H13: 3513.00 | I13: 1.00 | J13: 个 | L13: 主设备室内型成套设备双柜配置模型 | N13: 长兴雉城云宇财富城 | O13: 330522908000000341 | P13: 2018/7/18 | R13: 中通仓库 | S13: 无*主设备室内型成套设备双柜配置模型**长兴雉城云宇财富城*330522908000000030**330500320006**废旧
A14: 13 | B14: 湖州铁塔党委会纪要〔2024〕第 19 期 | C14: 330500320004 | D14: 动力及环境监控单元 | F14: 3672.65 | G14: 159.65 | H14: 3513.00 | I14: 1.00 | J14: 个 | L14: 主设备室内型成套设备双柜配置模型 | N14: 长兴李家巷开发区 | O14: 330522010000000199 | P14: 2018/7/18 | R14: 中通仓库 | S14: 无*主设备室内型成套设备基本配置模型**长兴李家巷开发区*330502908000000315**330500320004**废旧
A15: 14 | B15: 湖州铁塔党委会纪要〔2024〕第 19 期 | C15: 330500311890 | D15: 动力及环境监控单元 | F15: 3731.76 | G15: 111.95 | H15: 3619.81 | I15: 1.00 | J15: 个 | L15: 主设备室内型成套设备双柜配置模型 | N15: 长兴紫金路西（浙水阳光南） | O15: 330522500000000216 | P15: 2017/6/16 | R15: 中通仓库 | S15: 无*主设备室内型成套设备基本配置模型**长兴紫金路西（浙水阳光南）*330502908000000331**330500311890**废旧
A16: 15 | B16: 湖州铁塔党委会纪要〔2024〕第 19 期 | C16: 330500004926 | D16: 嵌入式开关电源 | F16: 3996.78 | G16: 119.90 | H16: 3876.88 | I16: 1.00 | J16: 架 | L16: 嵌入式开关电源32A/3Px1（室外标准机柜用） | N16: 吴兴仁皇山科技局 | O16: 330502500000000038 | P16: 2015/11/13 | R16: 中通仓库 | S16: 无*嵌入式开关电源32A/3Px1（室外标准机柜用）**吴兴仁皇山科技局*330522908000000914**330500004926**废旧
A17: 16 | B17: 总经理办公会纪要〔2024〕第 24 期 | C17: 330500315702 | D17: 嵌入式开关电源 | F17: 4658.59 | G17: 139.76 | H17: 4518.83 | I17: 1.00 | J17: 架 | L17: 48V/300A高效系统(50A高效模块，共用电源系统，三相交流输入)100A | N17: 安吉天荒坪颜家 | O17: 330523908000000633 | P17: 20171102 | R17: 中通仓库 | S17: 无*48V/300A高效系统(50A高效模块，共用电源系统，三相交流输入)100A**安吉天荒坪颜家*330521908000000663**330500315702**废旧
A18: 17 | B18: 总经理办公会纪要〔2024〕第 24 期 | C18: 330500334909 | D18: 动力及环境监控单元 | F18: 2585.14 | G18: 704.40 | H18: 1880.74 | I18: 1.00 | J18: 个 | L18: 主设备室内型成套设备双柜配置模型 | N18: 湖州南浔灯塔村基站 | O18: 330503908000000366 | P18: 20190905 | R18: 中通仓库 | S18: 无*主设备室内型成套设备基本配置模型**湖州南浔灯塔村基站*330502908000000654**330500334909**废旧
A19: 18 | B19: 总经理办公会纪要〔2024〕第 24 期 | C19: 330500328552 | D19: 动力及环境监控单元 | F19: 2592.76 | G19: 496.96 | H19: 2095.80 | I19: 1.00 | J19: 个 | L19: 主设备室内型成套设备双柜配置模型 | N19: 湖州南浔灯塔村基站 | O19: 330503908000000366 | P19: 20190310 | R19: 中通仓库 | S19: 无*主设备室内型成套设备基本配置模型**湖州南浔灯塔村基站*330522908000000091**330500328552**废旧
A20: 19 | B20: 总经理办公会纪要〔2024〕第 24 期 | C20: 330500330658 | D20: 动力及环境监控单元 | F20: 2572.46 | G20: 527.68 | H20: 2044.78 | I20: 1.00 | J20: 个 | L20: 主设备室内型成套设备双柜配置模型 | N20: 湖州南浔千金南窑桥基站 | O20: 330503908000000265 | P20: 20190403 | R20: 中通仓库 | S20: 无*主设备室内型成套设备基本配置模型**湖州南浔千金南窑桥基站*330502908000000473**330500330658**废旧
A21: 20 | B21: 总经理办公会纪要〔2024〕第 24 期 | C21: 330500329605 | D21: 动力及环境监控单元 | F21: 2592.76 | G21: 496.96 | H21: 2095.80 | I21: 1.00 | J21: 个 | L21: 主设备室内型成套设备双柜配置模型 | N21: 湖州南浔英雄村基站 | O21: 330503908000000269 | P21: 20190327 | R21: 中通仓库 | S21: 无*主设备室内型成套设备基本配置模型**湖州南浔英雄村基站*330521500000000142**330500329605**废旧
A22: 21 | B22: 湖州铁塔党委会纪要〔2024〕第 19 期 | C22: 330500311002 | D22: 动力及环境监控单元 | F22: 3715.09 | G22: 111.45 | H22: 3603.64 | I22: 1.00 | J22: 个 | L22: 主设备室内型成套设备双柜配置模型 | N22: 德清新市韶村加油站 | O22: 330521500000000142 | P22: 2017/5/27 | R22: 中通仓库 | S22: 无*动力及环境监控单元-基础配置**德清新市韶村加油站*330503908000000269**330500311002**废旧
A23: 22 | B23: 总经理办公会纪要〔2024〕第 39 期 | C23: 330500313829 | D23: 动力及环境监控单元 | F23: 3604.32 | G23: 108.13 | H23: 3496.19 | I23: 1.00 | J23: 个 | L23: 主设备室内型成套设备双柜配置模型 | N23: 屯圩村 | O23: 330503908000000573 | P23: 2017/8/19 | R23: 中通仓库 | S23: 无*主设备室内型成套设备双柜配置模型**屯圩村*330502908000000239**330500313829**废旧
A24: 23 | B24: 总经理办公会纪要〔2024〕第 39 期 | C24: 330500319867 | D24: 动力及环境监控单元 | F24: 4832.96 | G24: 144.99 | H24: 4687.97 | I24: 1.00 | J24: 个 | L24: 主设备室内型成套设备双柜配置模型 | N24: 南浔世纪名楼 | O24: 330503500000001441 | P24: 2018/6/21 | R24: 中通仓库 | S24: 无*主设备室内型成套设备双柜配置模型**南浔世纪名楼*330502908000000112**330500319867**废旧
A25: 24 | B25: 总经理办公会纪要〔2024〕第 24 期 | C25: 330500317779 | D25: 动力及环境监控单元 | F25: 3658.12 | G25: 109.74 | H25: 3548.38 | I25: 1.00 | J25: 个 | L25: 主设备室内型成套设备双柜配置模型 | N25: 长兴李家巷鲍家村 | O25: 330522908000000170 | P25: 20180109 | R25: 中通仓库 | S25: 无*主设备室内型成套设备基本配置模型**长兴李家巷鲍家村*330521908000000533**330500317779**废旧
A26: 25 | B26: 湖州铁塔党委会纪要〔2024〕第 19 期 | C26: 330500123067 | D26: 普通空调柜式 | F26: 3539.41 | G26: 106.18 | H26: 3433.23 | I26: 1.00 | J26: 个 | K26: 3P | L26: 3P 三相柜式（单冷） | N26: 湖州南浔万家兜基站 | O26: 330503908000000382 | P26: 2015/10/31 | Q26: 无铜管 | R26: 中通仓库 | S26: 无*3P三相柜式（单冷）*备注：无铜管*湖州南浔万家兜基站*330521908000000659**330500123067**废旧
A27: 26 | B27: 总经理办公会纪要〔2024〕第 39 期 | C27: 330500105223 | D27: 组合式开关电源 | F27: 9554.67 | G27: 286.64 | H27: 9268.03 | I27: 1.00 | J27: 个 | L27: ZXDU68 | N27: 私营城方上1 | O27: 330521908000000682 | P27: 2015/10/31 | R27: 中通仓库 | S27: 无*ZXDU68**私营城方上1*330521908000000678**330500105223**废旧
A28: 27 | B28: 湖州铁塔党委会纪要〔2024〕第 19 期 | C28: 330500306861 | D28: 普通空调柜式 | F28: 6843.87 | G28: 205.32 | H28: 6638.55 | I28: 1.00 | J28: 台 | K28: 3P | L28: 基站专用柜式分体7KW单冷三相空调 | N28: 南浔马腰泗州 | O28: 330503908000000659 | P28: 2016/12/26 | Q28: 无铜管 | R28: 中通仓库 | S28: 无*基站专用柜式分体7KW单冷三相空调*备注：无铜管*南浔马腰泗州*330521908000000149**330500306861**废旧
A29: 28 | B29: 湖州铁塔党委会纪要〔2024〕第 19 期 | C29: 330500314245 | D29: 普通空调柜式 | F29: 6914.55 | G29: 207.44 | H29: 6707.11 | I29: 1.00 | J29: 台 | K29: 3P | L29: 3P单冷三相整机 | N29: 南浔马腰泗州 | O29: 330503908000000659 | P29: 2017/9/6 | Q29: 无铜管 | R29: 中通仓库 | S29: 无*3P单冷三相整机*备注：无铜管*南浔马腰泗州*330521908000000620**330500314245**废旧
A30: 29 | B30: 湖州铁塔党委会纪要〔2024〕第 19 期 | C30: 330500303580 | D30: 普通空调柜式 | F30: 7045.05 | G30: 211.35 | H30: 6833.70 | I30: 1.00 | J30: 台 | K30: 3P | L30: KFR-75L-KFR-75W | N30: 南浔姚家桥商桥坝自然村 | O30: 330503500000000007 | P30: 2016/6/27 | Q30: 无铜管 | R30: 中通仓库 | S30: 无*KFR-75L-KFR-75W*备注：无铜管*南浔姚家桥商桥坝自然村*330521908000000362**330500303580**废旧
A31: 30 | B31: 湖州铁塔党委会纪要〔2024〕第 19 期 | C31: 330500309315 | D31: 普通空调柜式 | F31: 5795.35 | G31: 173.86 | H31: 5621.49 | I31: 1.00 | J31: 台 | K31: 3P | L31: KFR-75L-KFR-75W | N31: 向阳村村委 | O31: 33050301000012 | P31: 2015/5/26 | Q31: 有铜管 | R31: 中通仓库 | S31: 无*KFR-75L-KFR-75W*备注：有铜管*向阳村村委*330521908000000253**330500309315**废旧
A32: 31 | B32: 总经理办公会纪要〔2024〕第 24 期 | C32: 330500129819 | D32: 交流配电箱 | F32: 4706.21 | G32: 141.19 | H32: 4565.02 | I32: 1.00 | J32: 个 | L32: ZBX1--20 | N32: 德清新市镇西 | O32: 330521908000000746 | P32: 20151031 | R32: 中通仓库 | S32: 无*ZBX1--20**德清新市镇西*330521908000000678**330500129819**废旧
A33: 32 | B33: 总经理办公会纪要〔2024〕第 24 期 | C33: 330500317695 | D33: 交流配电箱 | F33: 2361.44 | G33: 70.84 | H33: 2290.60 | I33: 1.00 | J33: 个 | L33: 220V-63A | N33: 德清干山南堂新建 | O33: 330521500000000159 | P33: 20171031 | R33: 中通仓库 | S33: 无*220V-63A**德清干山南堂新建*330523908000000945**330500317695**废旧
A34: 33 | B34: 湖州铁塔党委会纪要〔2024〕第 19 期 | C34: 330500111815 | D34: 普通空调柜式 | F34: 821.50 | G34: 24.65 | H34: 796.85 | I34: 1.00 | J34: 台 | K34: 3P | L34: 三菱3PLF72W-L(S)A | N34: 初康 | O34: 330522908000000030 | P34: 2015/10/31 | Q34: 有铜管 | R34: 中通仓库 | S34: 无*三菱3PLF72W-L(S)A*备注：有铜管*初康*330523908000000343**330500111815**废旧
A35: 34 | B35: 湖州铁塔党委会纪要〔2024〕第 19 期 | C35: 330500128446 | D35: 交流配电箱 | F35: 2902.41 | G35: 87.07 | H35: 2815.34 | I35: 1.00 | J35: 个 | L35: DPJ-380-63B | N35: 吴兴道场道场村 | O35: 330502908000000315 | P35: 2015/10/31 | R35: 中通仓库 | S35: 无*DPJ-380-63B**吴兴道场道场村*330523908000000431**330500128446**废旧
A36: 35 | B36: 湖州铁塔党委会纪要〔2024〕第 19 期 | C36: 330500122118 | D36: 交流配电箱 | F36: 3128.96 | G36: 93.87 | H36: 3035.09 | I36: 1.00 | J36: 个 | L36: 220V-63A | N36: 吴兴东林保丰 | O36: 330502908000000331 | P36: 2015/10/31 | R36: 中通仓库 | S36: 无*220V-63A**吴兴东林保丰*无**330500122118**废旧
A37: 36 | B37: 湖州铁塔党委会纪要〔2024〕第 19 期 | C37: 330500111638 | D37: 普通空调柜式 | F37: 257.50 | G37: 7.73 | H37: 249.77 | I37: 1.00 | J37: 个 | K37: 3P | L37: 3匹空调 | N37: 长兴虹星桥谭家基站 | O37: 330522908000000914 | P37: 2015/10/31 | Q37: 有铜管 | R37: 中通仓库 | S37: 无*3匹空调*备注：有铜管*长兴虹星桥谭家基站*无**330500111638**废旧
A38: 37 | B38: 总经理办公会纪要〔2024〕第 39 期 | C38: 330500109463 | D38: 组合式开关电源 | F38: 468.60 | G38: 14.06 | H38: 454.54 | I38: 1.00 | J38: 个 | L38: MCS1800C-48v-30 | N38: 水利排涝站 | O38: 330521908000000663 | P38: 2015/10/31 | R38: 中通仓库 | S38: 无*MCS1800C-48v-30**水利排涝站*无**330500109463**废旧
A39: 38 | B39: 湖州铁塔党委会纪要〔2024〕第 19 期 | C39: 330500112617 | D39: 普通空调柜式 | F39: 15.00 | G39: 0.45 | H39: 14.55 | I39: 1.00 | J39: 个 | K39: 3P | L39: 3匹柜机 | N39: 湖州吴兴杨家埠天艺纺织基站 | O39: 330502908000000654 | P39: 2015/10/31 | Q39: 有铜管 | R39: 中通仓库 | S39: 无*3匹柜机*备注：有铜管*湖州吴兴杨家埠天艺纺织基站*无**330500112617**废旧
A40: 39 | B40: 湖州铁塔党委会纪要〔2024〕第 19 期 | C40: 330500111783 | D40: 普通空调柜式 | F40: 678.40 | G40: 20.35 | H40: 658.05 | I40: 1.00 | J40: 台 | K40: 3P | L40: 三菱3PLF72W-L(S)A | N40: 葡萄卡 | O40: 330522908000000091 | P40: 2015/10/31 | Q40: 有铜管 | R40: 中通仓库 | S40: 无*三菱3PLF72W-L(S)A*备注：有铜管*葡萄卡*无**330500111783**废旧
A41: 40 | B41: 湖州铁塔党委会纪要〔2024〕第 19 期 | C41: 330500105424 | D41: 组合式开关电源 | F41: 1563.00 | G41: 46.89 | H41: 1516.11 | I41: 1.00 | J41: 个 | L41: 48V-500A(模块50A)-150 | N41: 吴兴白雀太史湾 | O41: 330502908000000473 | P41: 2015/10/31 | R41: 中通仓库 | S41: 无*48V-500A(模块50A)-150**吴兴白雀太史湾*无**330500105424**废旧
A42: 41 | B42: 湖州铁塔党委会纪要〔2024〕第 19 期 | C42: 330500310998 | D42: 普通空调柜式 | F42: 6597.25 | G42: 197.92 | H42: 6399.33 | I42: 1.00 | J42: 台 | K42: 3P | L42: 基站专用柜式分体5KW单冷单相空调 | N42: 德清新市韶村加油站 | O42: 330521500000000142 | P42: 2017/5/27 | Q42: 有铜管 | R42: 中通仓库 | S42: 无*基站专用柜式分体5KW单冷单相空调*备注：有铜管*德清新市韶村加油站*无**330500310998**废旧
A43: 42 | B43: 总经理办公会纪要〔2024〕第 39 期 | C43: 330500316181 | D43: 普通空调柜式 | F43: 6925.77 | G43: 207.77 | H43: 6718.00 | I43: 1.00 | J43: 台 | K43: 3P | L43: 3P单冷三相整机 | N43: 湖州南浔英雄村基站 | O43: 330503908000000269 | P43: 2017/12/12 | Q43: 有铜管 | R43: 中通仓库 | S43: 无*3P单冷三相整机*备注：有铜管*湖州南浔英雄村基站*无**330500316181**废旧
A44: 43 | B44: 总经理办公会纪要〔2024〕第 39 期 | C44: 330500129741 | D44: 组合式开关电源 | F44: 1661.16 | G44: 49.83 | H44: 1611.33 | I44: 1.00 | J44: 个 | L44: ZXDU58 | N44: 吴兴信谊家具 | O44: 330502908000000239 | P44: 2015/10/31 | R44: 中通仓库 | S44: 无*ZXDU58**吴兴信谊家具*无**330500129741**废旧
A45: 44 | B45: 总经理办公会纪要〔2024〕第 39 期 | C45: 330500120058 | D45: 组合式开关电源 | F45: 6738.33 | G45: 202.15 | H45: 6536.18 | I45: 1.00 | J45: 个 | L45: ZXDU68-150A | N45: 奚家庄 | O45: 330502908000000112 | P45: 2015/10/31 | R45: 中通仓库 | S45: 无*ZXDU68-150A**奚家庄*无**330500120058**废旧
A46: 45 | B46: 总经理办公会纪要〔2024〕第 39 期 | C46: 330500110771 | D46: 组合式开关电源 | F46: 994.75 | G46: 29.84 | H46: 964.91 | I46: 1.00 | J46: 个 | L46: 48V-500A(模块50A)-150 | N46: 德清雷甸解放 | O46: 330521908000000533 | P46: 2015/10/31 | R46: 中通仓库 | S46: 无*48V-500A(模块50A)-150**德清雷甸解放*无**330500110771**废旧
A47: 46 | B47: 总经理办公会纪要〔2024〕第 39 期 | C47: 330500300879 | D47: 组合式开关电源 | F47: 13896.14 | G47: 416.88 | H47: 13479.26 | I47: 1.00 | J47: 个 | L47: 48V-400A(50A模块)-150 | N47: 德清秋北村委 | O47: 330521908000000659 | P47: 2015/10/31 | R47: 中通仓库 | S47: 无*48V-400A(50A模块)-150**德清秋北村委*无**330500300879**废旧
A48: 47 | B48: 总经理办公会纪要〔2024〕第 39 期 | C48: 330500101852 | D48: 组合式开关电源 | F48: 382.20 | G48: 11.47 | H48: 370.73 | I48: 1.00 | J48: 个 | L48: 48V-500A(模块50A)-150 | N48: 德清王母山方家墩 | O48: 330521908000000678 | P48: 2015/10/31 | R48: 中通仓库 | S48: 无*48V-500A(模块50A)-150**德清王母山方家墩*无**330500101852**废旧
A49: 48 | B49: 总经理办公会纪要〔2024〕第 39 期 | C49: 330500124023 | D49: 普通空调柜式 | F49: 4704.12 | G49: 141.12 | H49: 4563.00 | I49: 1.00 | J49: 个 | K49: 3P | L49: 基站专用柜式分体7KW单冷三相空调 | N49: 湖州市德清武康三桥新村基站 | O49: 330521908000000149 | P49: 2015/10/31 | Q49: 有铜管 | R49: 中通仓库 | S49: 无*基站专用柜式分体7KW单冷三相空调*备注：有铜管*湖州市德清武康三桥新村基站*无**330500124023**废旧
A50: 49 | B50: 总经理办公会纪要〔2024〕第 39 期 | C50: 330500314067 | D50: 普通空调柜式 | F50: 6884.96 | G50: 206.55 | H50: 6678.41 | I50: 1.00 | J50: 台 | K50: 3P | L50: 3P单冷三相整机 | N50: 中利达水泥厂 | O50: 330521908000000620 | P50: 2017/8/25 | Q50: 有铜管 | R50: 中通仓库 | S50: 无*3P单冷三相整机*备注：有铜管*中利达水泥厂*无**330500314067**废旧
A51: 50 | B51: 总经理办公会纪要〔2024〕第 39 期 | C51: 330500124308 | D51: 普通空调壁挂 | F51: 693.00 | G51: 20.79 | H51: 672.21 | I51: 1.00 | J51: 个 | K51: 2P | L51: 2P单冷 | N51: 安吉递铺缸窑岭基站 | O51: 330523908000000343 | P51: 2015/10/31 | Q51: 无铜管 | R51: 中通仓库 | S51: 无*2P*备注：无铜管*安吉递铺缸窑岭基站*无**330500124308**废旧
A52: 51 | B52: 总经理办公会纪要〔2024〕第 39 期 | C52: 330500342458 | D52: 电力电缆 | F52: 36001.14 | G52: 15600.46 | H52: 20400.68 | I52: 14.00 | J52: 米 | L52: 4x35方铝线 | N52: 德清乾元齐星河东基站 | O52: 330521908000000454 | P52: 2018/12/19 | R52: 中通仓库 | S52: 无*4x35方铝线*14米*德清乾元齐星河东基站*330521908000000454**330500362096**废旧
A53: 52 | B53: 总经理办公会纪要〔2024〕第 39 期 | C53: 330500363764 | D53: 电力电缆 | F53: 9877.61 | G53: 7814.31 | H53: 2063.30 | I53: 23 | J53: 米 | L53: 4x35方铝线 | N53: 德清三合下扬 | O53: 330521908000000463 | P53: 2022/7/27 | R53: 中通仓库 | S53: 无*4x35方铝线*23米*德清三合下扬*330521908000000463**无资产卡片**废旧
A54: 53 | B54: 总经理办公会纪要〔2024〕第 39 期 | C54: 330500004659 | D54: 电力电缆 | F54: 23600.17 | G54: 2440.68 | H54: 21159.49 | I54: 36 | J54: 米 | L54: 4x35方铝线 | N54: 德清雷甸独圩郎 | O54: 33050201000205 | P54: 2015/9/28 | R54: 中通仓库 | S54: 无*4x35方铝线*36米*德清雷甸独圩郎*33050201000205**无资产卡片**废旧
A55: 54 | B55: 总经理办公会纪要〔2024〕第 39 期 | C55: 330500334938 | D55: 电力电缆 | F55: 10651.39 | G55: 5409.78 | H55: 5241.61 | I55: 27 | J55: 米 | L55: 4x35方铝线 | N55: 南方家园 | O55: 330521908000000571 | P55: 2019/9/9 | R55: 中通仓库 | S55: 无*4x35方铝线*27米*南方家园*330521908000000571**无资产卡片**废旧
A56: 55 | C56: 无资产卡片 | D56: 电力电缆 | I56: 34 | J56: 米 | L56: 4x35方铝线 | N56: 德清武康狮山基站 | O56: 330521908000000368 | R56: 中通仓库 | S56: 无*4x35方铝线*34米*德清武康狮山基站*330521908000000368**无资产卡片**废旧
A57: 56 | C57: 无资产卡片 | D57: 电力电缆 | I57: 66 | J57: 米 | L57: 4x35方铝线 | N57: 湖州德清钟管沈家墩基站 | O57: 330521908000000436 | R57: 中通仓库 | S57: 无*4x35方铝线*66米*湖州德清钟管沈家墩基站*330521908000000436**无资产卡片**废旧
A58: 57 | C58: 无资产卡片 | D58: 电力电缆 | I58: 36 | J58: 米 | L58: 4x35方铝线 | N58: 德清新安城头村基站 | O58: 330521908000000256 | R58: 中通仓库 | S58: 无*4x35方铝线*36米*德清新安城头村基站*330521908000000256**无资产卡片**废旧
A59: 58 | C59: 无资产卡片 | D59: 电力电缆 | I59: 24 | J59: 米 | L59: 4x35方铝线 | N59: 德清三合金边山基站 | O59: 330521908000000503 | R59: 中通仓库 | S59: 无*4x35方铝线*24米*德清三合金边山基站*330521908000000503**无资产卡片**废旧
A60: 59 | C60: 无资产卡片 | D60: 电力电缆 | I60: 110 | J60: 米 | L60: 4x35方铝线 | N60: 湖州市德清县乾元镇斗南高铁直放站 | O60: 330521908000000293 | R60: 中通仓库 | S60: 无*4x35方铝线*110米*湖州市德清县乾元镇斗南高铁直放站*330521908000000293**无资产卡片**废旧
A61: 60 | C61: 无资产卡片 | D61: 电力电缆 | I61: 10 | J61: 米 | L61: 4x35方铝线 | N61: 德清钟管升华基站 | O61: 330521908000000419 | R61: 中通仓库 | S61: 无*4x35方铝线*10米*德清钟管升华基站*330521908000000419**无资产卡片**废旧
A62: 61 | C62: 无资产卡片 | D62: 机柜空调 | I62: 1.00 | J62: 台 | K62: 1.5P | L62: 机柜空调 | N62: 安吉天荒坪北路蛮石桥 | O62: 330503908000000659 | Q62: 无铜管 | R62: 中通仓库 | S62: 无*1.5P*备注：无铜管*安吉天荒坪北路蛮石桥*330503908000000659**无资产卡片**废旧
A63: 62 | C63: 无资产卡片 | D63: 机柜空调 | I63: 1.00 | J63: 台 | K63: 1.5P | L63: 机柜空调 | N63: 安吉高禹下黄塘 | O63: 330503908000000659 | Q63: 无铜管 | R63: 中通仓库 | S63: 无*1.5P*备注：无铜管*安吉高禹下黄塘*330503908000000659**无资产卡片**废旧

Sheet 温州
A1: 序号 | B1: 报废批复文号 | C1: 资产编号 | D1: 资产名称 | E1: 资产类别名称 | F1: 资产原值 （元，不含税） | G1: 资产净值 （元，不含税） | H1: 累计折旧 | I1: 资产数量 | J1: 计量单位 （个/吨/米等） | K1: 规格型号 | L1: 生产厂家 | M1: 站点名称 | N1: 站点编码 | O1: 提供人 | P1: 备注
A2: 1 | B2: 温州铁塔党委会纪要〔2020〕第 7 期 | C2: 330300133444 | D2: FSU | E2: FSU | F2: 1693.02 | G2: 50.79 | H2: 1642.23 | I2: 1.00 | J2: 个 | K2: / | L2: 无 | M2: 苍南灵溪商城商厦 | N2: 330327908000001102 | O2: 蔡煌湖
A3: 2 | B3: 温州铁塔党委会纪要〔2020〕第 7 期 | C3: 330300146718 | D3: FSU | E3: FSU | F3: 1345.67 | G3: 40.37 | H3: 1305.3 | I3: 1.00 | J3: 个 | K3: / | L3: 无 | M3: 温州绿色乐园 | N3: 330304908000000138 | O3: 蔡煌湖
A4: 3 | B4: 温州铁塔党委会纪要〔2020〕第 7 期 | C4: 330300148259 | D4: FSU | E4: FSU | F4: 1170.27 | G4: 35.11 | H4: 1135.16 | I4: 1.00 | J4: 个 | K4: / | L4: 无 | M4: 平阳鳌江实验小学-2 | N4: 330326908000000706 | O4: 蔡煌湖
A5: 4 | B5: 总经理办公会纪要〔2023〕第 9 期 | C5: 330300371312 | D5: 机柜 | E5: 机柜 | F5: 7316.21 | G5: 219.49 | H5: 7096.72 | I5: 1.00 | J5: 个 | K5: / | L5: 无 | M5: 温州鹿城岙底白脚坳 | N5: 330302908000001001 | O5: 王智淳
A6: 5 | B6: 总经理办公会纪要〔2023〕第 9 期 | C6: 330300124236 | D6: 嵌入式开关电源 | E6: 嵌入式开关电源 | F6: 2490.44 | G6: 74.71 | H6: 2415.73 | I6: 1.00 | J6: 架 | K6: 嵌入式 | L6: 中恒 | M6: 温州职工中等卫校 | N6: 330302908000000263 | O6: 王智淳
A7: 6 | B7: 总经理办公会纪要〔2023〕第 9 期 | C7: 330300161028 | D7: 机柜 | E7: 机柜 | F7: 14118.51 | G7: 423.56 | H7: 13694.95 | I7: 1.00 | J7: 个 | K7: / | L7: 无 | M7: 温州鹿城世贸中心 | N7: 330302908000000784 | O7: 王智淳
A8: 7 | B8: 总经理办公会纪要〔2023〕第 9 期 | C8: 330300140205 | D8: 机柜散件 | E8: 机柜散件 | F8: 1037.12 | G8: 31.11 | H8: 1006.01 | I8: 1.00 | J8: 个 | K8: / | L8: 无 | M8: 温州雪山饭店 | N8: 330304908000000172 | O8: 王智淳
A9: 8 | B9: 总经理办公会纪要〔2023〕第 21 期 | C9: 330300157901 | D9: 组合式开关电源 | E9: 组合式开关电源 | F9: 5072.6 | G9: 152.18 | H9: 4920.42 | I9: 1.00 | J9: 架 | K9: 组合式 | L9: 中恒电 | M9: 瑞安官渎TD | N9: 330381908000000791 | O9: 王智淳 | P9: 少配件
A10: 9 | B10: 总经理办公会纪要〔2023〕第 26 期 | C10: 330300107931 | D10: 交流配电箱 | E10: 交流配电箱 | F10: 2372.36 | G10: 569.72 | H10: 1802.64 | I10: 1.00 | J10: 个 | K10: / | L10: 无 | M10: 永嘉下寮芬益 | N10: 330324908000001033 | O10: 蔡煌湖
A11: 10 | B11: 生产经营会纪要〔2023〕第3期 | C11: 330300162105 | D11: 嵌入式开关电源 | E11: 嵌入式开关电源 | F11: 1677.4 | G11: 50.32 | H11: 1627.08 | I11: 1.00 | J11: 架 | K11: 嵌入式 | L11: 无 | M11: 泰顺罗阳岭下 | N11: 330329908000000666 | O11: 蔡煌湖
A12: 11 | B12: 生产经营会纪要〔2023〕第3期 | C12: 330300329662 | D12: 交流配电箱 | E12: 交流配电箱 | F12: 3679.34 | G12: 110.38 | H12: 3568.96 | I12: 1.00 | J12: 个 | K12: / | L12: 甬发 | M12: 文成岙底 | N12: 33032800000063 | O12: 蔡煌湖
A13: 12 | B13: 总经理办公会纪要〔2024〕第12期 | C13: 330300352647 | D13: 嵌入式开关电源 | E13: 嵌入式开关电源 | F13: 5879.14 | G13: 176.37 | H13: 5702.77 | I13: 1.00 | J13: 架 | K13: 嵌入式 | L13: 中恒 | M13: 瑞安仙降新安东 | N13: 33038101000160 | O13: 王智淳 | P13: 无黄色标签少配件
A14: 13 | B14: 温州铁塔党委会纪要(2024)第13期 | C14: 330300140164 | D14: 组合式开关电源 | E14: 组合式开关电源 | F14: 9,192.88 | G14: 275.79 | H14: 8,917.09 | I14: 1.00 | J14: 架 | K14: 组合式 | L14: 中恒 | M14: 平阳水头开发区 | N14: 330326908000000055 | O14: 王智淳
A15: 14 | B15: 温州铁塔党委会纪要(2024)第13期 | C15: 330300302587 | D15: 铝线 | E15: 铝线 | F15: 1645.05 | G15: 301.95 | H15: 1343.1 | I15: 1.00 | J15: 根 | K15: / | L15: 亨通 | M15: 温州龙湾沙城自营厅 | N15: 330303908000000580 | O15: 王智淳 | P15: 15米
A16: 15 | B16: 温州铁塔党委会纪要〔2024〕第17期 | C16: 330300367209 | D16: FSU | E16: FSU | F16: 2903.63 | G16: 87.11 | H16: 2816.52 | I16: 1.00 | J16: 个 | K16: / | L16: 中兴 | M16: 乐清双峰老鼠嘴村 | N16: 33038200000151 | O16: 蔡煌湖 | P16: 无配件
A17: 16 | B17: 温州铁塔党委会纪要〔2024〕第17期 | C17: 330300362091 | D17: 整流模块 | E17: 整流模块 | F17: 2114.26 | G17: 63.43 | H17: 2050.83 | I17: 1.00 | J17: 个 | K17: / | L17: 中恒 | M17: 温州永中镇标路 | N17: 330303908000000867 | O17: 蔡煌湖
A18: 17 | B18: 温州铁塔党委会纪要〔2024〕第17期 | C18: 330300362092 | D18: 整流模块 | E18: 整流模块 | F18: 2114.26 | G18: 63.43 | H18: 2050.83 | I18: 1.00 | J18: 个 | K18: / | L18: 中恒 | M18: 温州永中镇标路 | N18: 330303908000000867 | O18: 蔡煌湖
A19: 18 | B19: 温州铁塔党委会纪要〔2024〕第17期 | C19: 330300351027 | D19: 嵌入式开关电源 | E19: 嵌入式开关电源 | F19: 6284.76 | G19: 188.54 | H19: 6096.22 | I19: 1.00 | J19: 架 | K19: 嵌入式 | L19: 中恒 | M19: 温州龙湾龙湾恒力弹簧 | N19: 330303908000000250 | O19: 王智淳 | P19: 少配件
A20: 19 | B20: 温州铁塔党委会纪要〔2024〕第17期 | C20: 330300373812 | D20: 嵌入式开关电源 | E20: 嵌入式开关电源 | F20: 7579.71 | G20: 227.39 | H20: 7352.32 | I20: 1.00 | J20: 架 | K20: 嵌入式 | L20: 中恒 | M20: 瑞安蜘蛛王南 | N20: 33038101000159 | O20: 王智淳 | P20: 配一个监控器，一个模块
A21: 20 | B21: 温州铁塔党委会纪要〔2024〕第17期 | C21: 330300349631 | D21: 嵌入式开关电源 | E21: 嵌入式开关电源 | F21: 6168.27 | G21: 185.05 | H21: 5983.22 | I21: 1.00 | J21: 架 | K21: 嵌入式 | L21: 中恒 | M21: 平阳水头詹江村 | N21: 33032601000083 | O21: 王智淳 | P21: 少配件
A22: 21 | B22: 总经理办公会纪要〔2024〕第25期 | C22: 330300441298 | D22: 嵌入式开关电源 | E22: 嵌入式开关电源 | F22: 6270.69 | G22: 2729.87 | H22: 3540.82 | I22: 1.00 | J22: 架 | K22: 嵌入式 | L22: 华为 | M22: 温州瓯海娄桥大西洋购物中心宏站 | N22: 330304500000001950 | O22: 王智淳 | P22: 少配件
A23: 22 | B23: 总经理办公会纪要〔2024〕第25期 | C23: 330300335710 | D23: 嵌入式开关电源 | E23: 嵌入式开关电源 | F23: 7298.23 | G23: 218.95 | H23: 7079.28 | I23: 1.00 | J23: 架 | K23: 嵌入式 | L23: 中达 | M23: 龙湾高速大岙段 | N23: 330303500000000066 | O23: 王智淳 | P23: 少配件
A24: 23 | B24: 总经理办公会纪要〔2024〕第25期 | C24: 330300334788 | D24: 嵌入式开关电源 | E24: 嵌入式开关电源 | F24: 4671.09 | G24: 140.13 | H24: 4530.96 | I24: 1.00 | J24: 架 | K24: 嵌入式 | L24: 中兴 | M24: 瑞安湖岭雪尖山 | N24: 330381500000000083 | O24: 王智淳 | P24: 少配件
A25: 24 | B25: 总经理办公会纪要〔2024〕第25期 | C25: 330300404230 | D25: FSU | E25: FSU | F25: 2659.68 | G25: 545.64 | H25: 2114.04 | I25: 1.00 | J25: 个 | K25: / | L25: 大华 | M25: 瓯海东二条路与东四路交叉口 | N25: 33030401000133 | O25: 王智淳 | P25: 无配件
A26: 25 | B26: 总经理办公会纪要〔2024〕第25期 | C26: 330300382064 | D26: FSU | E26: FSU | F26: 2883.67 | G26: 86.51 | H26: 2797.16 | I26: 1.00 | J26: 个 | K26: / | L26: 邦讯 | M26: 瓯海郭溪陶弯 | N26: 330304500000000182 | O26: 王智淳 | P26: 无配件
A27: 26 | B27: 总经理办公会纪要〔2024〕第25期 | C27: 330300389264 | D27: 嵌入式开关电源 | E27: 嵌入式开关电源 | F27: 8373.23 | G27: 594.92 | H27: 7778.31 | I27: 1.00 | J27: 架 | K27: 嵌入式 | L27: 中达 | M27: 瑞安陶山棠梨埭-2 | N27: 330381908000000891 | O27: 王智淳 | P27: 少配件
A28: 27 | B28: 总经理办公会纪要〔2024〕第25期 | C28: 330300361168 | D28: 组合式开关电源 | E28: 组合式开关电源 | F28: 6607.03 | G28: 198.21 | H28: 6408.82 | I28: 1.00 | J28: 架 | K28: 组合式 | L28: 中达 | M28: 瑞安市仙降绕城高速大桥北 | N28: 330381500000000338 | O28: 王智淳 | P28: 少配件
A29: 28 | B29: 总经理办公会纪要〔2024〕第25期 | C29: 330300383223 | D29: FSU | E29: FSU | F29: 2958.25 | G29: 88.75 | H29: 2869.5 | I29: 1.00 | J29: 个 | K29: / | L29: 高新兴 | M29: 乐清白象板塘沙洪路 | N29: 330382500000000219 | O29: 王智淳 | P29: 无配件
A30: 29 | B30: 总经理办公会纪要〔2024〕第25期 | C30: 330300312180 | D30: 嵌入式开关电源 | E30: 嵌入式开关电源 | F30: 6256.08 | G30: 187.68 | H30: 6068.4 | I30: 1.00 | J30: 架 | K30: 嵌入式 | L30: 中恒 | M30: 温州瓯江口新区19 | N30: 330303500000000050 | O30: 王智淳 | P30: 少配件
A31: 30 | B31: 总经理办公会纪要〔2024〕第25期 | C31: 330300370045 | D31: 嵌入式开关电源 | E31: 嵌入式开关电源 | F31: 3739.46 | G31: 112.18 | H31: 3627.28 | I31: 1.00 | J31: 架 | K31: 嵌入式 | L31: 中恒 | M31: 龙湾五溪村搬迁 | N31: 330303500000000202 | O31: 王智淳 | P31: 少配件
A32: 31 | B32: 总经理办公会纪要〔2024〕第25期 | C32: 330300399358 | D32: FSU | E32: FSU | F32: 868.35 | G32: 131.3 | H32: 737.05 | I32: 1.00 | J32: 个 | K32: / | L32: 中兴 | M32: 永嘉桥头公园路 | N32: 330324908000000198 | O32: 王智淳 | P32: 无配件
A33: 32 | B33: 总经理办公会纪要〔2024〕第25期 | C33: 330300368467 | D33: FSU | E33: FSU | F33: 2894.55 | G33: 86.84 | H33: 2807.71 | I33: 1.00 | J33: 个 | K33: / | L33: 无 | M33: 瑞安新纪元学校 | N33: 33038101000171 | O33: 王智淳 | P33: 无配件
A34: 33 | B34: 总经理办公会纪要〔2024〕第25期 | C34: 330300365895 | D34: FSU | E34: FSU | F34: 2837.54 | G34: 85.13 | H34: 2752.41 | I34: 1.00 | J34: 个 | K34: / | L34: 高新兴 | M34: 乐清白象东河 | N34: 330382908000000385 | O34: 王智淳 | P34: 无配件
A35: 34 | B35: 温州铁塔党委会纪要〔2024〕第25期 | C35: 330300385748 | D35: 嵌入式开关电源 | E35: 嵌入式开关电源 | F35: 7719.98 | G35: 335.61 | H35: 7384.37 | I35: 1.00 | J35: 架 | K35: 嵌入式 | L35: 中达 | M35: 瑞安潘岱街道瑞湾村 | N35: 330381500000001854 | O35: 蔡煌湖
A36: 35 | B36: / | C36: 330300148658ZLMK01 | D36: 整流模块 | E36: 整流模块 | F36: / | G36: / | H36: / | I36: 1.00 | J36: 个 | K36: / | L36: 无 | M36: 温州瓯海郭溪殿上 | N36: 330304908000001388 | O36: 王智淳
A37: 36 | B37: / | C37: 330300148658ZLMK02 | D37: 整流模块 | E37: 整流模块 | F37: / | G37: / | H37: / | I37: 1.00 | J37: 个 | K37: / | L37: 无 | M37: 温州瓯海郭溪殿上 | N37: 330304908000001388 | O37: 王智淳
A38: 37 | B38: / | C38: 330300148658ZLMK03 | D38: 整流模块 | E38: 整流模块 | F38: / | G38: / | H38: / | I38: 1.00 | J38: 个 | K38: / | L38: 无 | M38: 温州瓯海郭溪殿上 | N38: 330304908000001388 | O38: 王智淳
A39: 38 | B39: / | C39: 330300148658ZLMK04 | D39: 整流模块 | E39: 整流模块 | F39: / | G39: / | H39: / | I39: 1.00 | J39: 个 | K39: / | L39: 无 | M39: 温州瓯海郭溪殿上 | N39: 330304908000001388 | O39: 王智淳
A40: 39 | B40: / | C40: 330300148658ZLMK05 | D40: 整流模块 | E40: 整流模块 | F40: / | G40: / | H40: / | I40: 1.00 | J40: 个 | K40: / | L40: 无 | M40: 温州瓯海郭溪殿上 | N40: 330304908000001388 | O40: 王智淳
A41: 40 | B41: / | C41: 330300148658ZLMK06 | D41: 整流模块 | E41: 整流模块 | F41: / | G41: / | H41: / | I41: 1.00 | J41: 个 | K41: / | L41: 无 | M41: 温州瓯海郭溪殿上 | N41: 330304908000001388 | O41: 王智淳
A42: 41 | B42: / | C42: 330300148658JKMK01 | D42: 监控模块 | E42: 监控模块 | F42: / | G42: / | H42: / | I42: 1.00 | J42: 个 | K42: / | L42: 无 | M42: 温州瓯海郭溪殿上 | N42: 330304908000001388 | O42: 王智淳
A43: 42 | B43: / | C43: 330300371285ZLMK01 | D43: 整流模块 | E43: 整流模块 | F43: / | G43: / | H43: / | I43: 1.00 | J43: 个 | K43: / | L43: 无 | M43: 吕家绛二搬迁 | N43: 33030401000184 | O43: 蔡煌湖
A44: 43 | B44: / | C44: 330300371285ZLMK02 | D44: 整流模块 | E44: 整流模块 | F44: / | G44: / | H44: / | I44: 1.00 | J44: 个 | K44: / | L44: 无 | M44: 吕家绛二搬迁 | N44: 33030401000184 | O44: 蔡煌湖
A45: 44 | B45: / | C45: 330300371285ZLMK03 | D45: 整流模块 | E45: 整流模块 | F45: / | G45: / | H45: / | I45: 1.00 | J45: 个 | K45: / | L45: 无 | M45: 吕家绛二搬迁 | N45: 33030401000184 | O45: 蔡煌湖
A46: 45 | B46: / | C46: 330300371285ZLMK04 | D46: 整流模块 | E46: 整流模块 | F46: / | G46: / | H46: / | I46: 1.00 | J46: 个 | K46: / | L46: 无 | M46: 吕家绛二搬迁 | N46: 33030401000184 | O46: 蔡煌湖
A47: 46 | B47: / | C47: 330300332475ZLMK01 | D47: 整流模块 | E47: 整流模块 | F47: / | G47: / | H47: / | I47: 1.00 | J47: 个 | K47: / | L47: 无 | M47: 瑞安阁巷新区中 | N47: 33038100000093 | O47: 王智淳
A48: 47 | B48: / | C48: 330300332475ZLMK02 | D48: 整流模块 | E48: 整流模块 | F48: / | G48: / | H48: / | I48: 1.00 | J48: 个 | K48: / | L48: 无 | M48: 瑞安阁巷新区中 | N48: 33038100000093 | O48: 王智淳
A49: 48 | B49: / | C49: 330300332475ZLMK03 | D49: 整流模块 | E49: 整流模块 | F49: / | G49: / | H49: / | I49: 1.00 | J49: 个 | K49: / | L49: 无 | M49: 瑞安阁巷新区中 | N49: 33038100000093 | O49: 王智淳
A50: 49 | B50: / | C50: 330300332475JKMK01 | D50: 监控模块 | E50: 监控模块 | F50: / | G50: / | H50: / | I50: 1.00 | J50: 个 | K50: / | L50: 无 | M50: 瑞安阁巷新区中 | N50: 33038100000093 | O50: 王智淳
A51: 50 | B51: / | C51: D00000187780JKMK01 | D51: 整流模块 | E51: 整流模块 | F51: / | G51: / | H51: / | I51: 1.00 | J51: 个 | K51: / | L51: 无 | M51: 苍南巴槽卫生所 | N51: 330327906000012438 | O51: 蔡煌湖
A52: 51 | B52: / | C52: D00000187780ZLMK01 | D52: 整流模块 | E52: 整流模块 | F52: / | G52: / | H52: / | I52: 1.00 | J52: 个 | K52: / | L52: 无 | M52: 苍南巴槽卫生所 | N52: 330327906000012438 | O52: 蔡煌湖
A53: 52 | B53: / | C53: D00000187780ZLMK02 | D53: 整流模块 | E53: 整流模块 | F53: / | G53: / | H53: / | I53: 1.00 | J53: 个 | K53: / | L53: 无 | M53: 苍南巴槽卫生所 | N53: 330327906000012438 | O53: 蔡煌湖
A54: 53 | B54: / | C54: 330300140090ZLMK01 | D54: 整流模块 | E54: 整流模块 | F54: / | G54: / | H54: / | I54: 1.00 | J54: 个 | K54: / | L54: 无 | M54: 苍南龙港东城路-2 | N54: 330327908000000678 | O54: 蔡煌湖
A55: 54 | B55: / | C55: 330300140090ZLMK02 | D55: 整流模块 | E55: 整流模块 | F55: / | G55: / | H55: / | I55: 1.00 | J55: 个 | K55: / | L55: 无 | M55: 苍南龙港东城路-2 | N55: 330327908000000678 | O55: 蔡煌湖
A56: 55 | B56: / | C56: 330300142318ZLMK01 | D56: 整流模块 | E56: 整流模块 | F56: / | G56: / | H56: / | I56: 1.00 | J56: 个 | K56: / | L56: 无 | M56: 乐清柳市垟心 | N56: 330382908000000376 | O56: 蔡煌湖
A57: 56 | B57: / | C57: 330300142318ZLMK02 | D57: 整流模块 | E57: 整流模块 | F57: / | G57: / | H57: / | I57: 1.00 | J57: 个 | K57: / | L57: 无 | M57: 乐清柳市垟心 | N57: 330382908000000376 | O57: 蔡煌湖
A58: 57 | B58: / | C58: 330300142318ZLMK03 | D58: 整流模块 | E58: 整流模块 | F58: / | G58: / | H58: / | I58: 1.00 | J58: 个 | K58: / | L58: 无 | M58: 乐清柳市垟心 | N58: 330382908000000376 | O58: 蔡煌湖
A59: 58 | B59: / | C59: 330300142318ZLMK04 | D59: 整流模块 | E59: 整流模块 | F59: / | G59: / | H59: / | I59: 1.00 | J59: 个 | K59: / | L59: 无 | M59: 乐清柳市垟心 | N59: 330382908000000376 | O59: 蔡煌湖
A60: 59 | B60: / | C60: 330300142318ZLMK05 | D60: 整流模块 | E60: 整流模块 | F60: / | G60: / | H60: / | I60: 1.00 | J60: 个 | K60: / | L60: 无 | M60: 乐清柳市垟心 | N60: 330382908000000376 | O60: 蔡煌湖
A61: 60 | B61: / | C61: 330300103291ZLMK01 | D61: 整流模块 | E61: 整流模块 | F61: / | G61: / | H61: / | I61: 1.00 | J61: 个 | K61: / | L61: 无 | M61: 乐清四都洋岙 | N61: 330382908000001420 | O61: 蔡煌湖
A62: 61 | B62: / | C62: 330300103291ZLMK02 | D62: 整流模块 | E62: 整流模块 | F62: / | G62: / | H62: / | I62: 1.00 | J62: 个 | K62: / | L62: 无 | M62: 乐清四都洋岙 | N62: 330382908000001420 | O62: 蔡煌湖
A63: 62 | B63: / | C63: 330300103291ZLMK03 | D63: 整流模块 | E63: 整流模块 | F63: / | G63: / | H63: / | I63: 1.00 | J63: 个 | K63: / | L63: 无 | M63: 乐清四都洋岙 | N63: 330382908000001420 | O63: 蔡煌湖
A64: 63 | B64: / | C64: 330300350872ZLMK01 | D64: 整流模块 | E64: 整流模块 | F64: / | G64: / | H64: / | I64: 1.00 | J64: 个 | K64: / | L64: 无 | M64: 乐清仙溪蔡家岭-2 | N64: 330382908000000660 | O64: 蔡煌湖
A65: 64 | B65: / | C65: 330300350872ZLMK02 | D65: 整流模块 | E65: 整流模块 | F65: / | G65: / | H65: / | I65: 1.00 | J65: 个 | K65: / | L65: 无 | M65: 乐清仙溪蔡家岭-2 | N65: 330382908000000660 | O65: 蔡煌湖
A66: 65 | B66: / | C66: 330300139941ZLMK01 | D66: 整流模块 | E66: 整流模块 | F66: / | G66: / | H66: / | I66: 1.00 | J66: 个 | K66: / | L66: 无 | M66: 乐清仙溪大岭头 | N66: 330382908000001288 | O66: 蔡煌湖
A67: 66 | B67: / | C67: 330300139941ZLMK02 | D67: 整流模块 | E67: 整流模块 | F67: / | G67: / | H67: / | I67: 1.00 | J67: 个 | K67: / | L67: 无 | M67: 乐清仙溪大岭头 | N67: 330382908000001288 | O67: 蔡煌湖
A68: 67 | B68: / | C68: 330300357231ZLMK01 | D68: 整流模块 | E68: 整流模块 | F68: / | G68: / | H68: / | I68: 1.00 | J68: 个 | K68: / | L68: 无 | M68: 鹿城七都老涂南路2-8号 | N68: 33030201000096 | O68: 蔡煌湖
A69: 68 | B69: / | C69: 330300357231ZLMK02 | D69: 整流模块 | E69: 整流模块 | F69: / | G69: / | H69: / | I69: 1.00 | J69: 个 | K69: / | L69: 无 | M69: 鹿城七都老涂南路2-8号 | N69: 33030201000096 | O69: 蔡煌湖
A70: 69 | B70: / | C70: 330300164640ZLMK01 | D70: 整流模块 | E70: 整流模块 | F70: / | G70: / | H70: / | I70: 1.00 | J70: 个 | K70: / | L70: 无 | M70: 温州鹿城廊桥宾馆 | N70: 330302908000000876 | O70: 蔡煌湖
A71: 70 | B71: / | C71: 330300164640ZLMK02 | D71: 整流模块 | E71: 整流模块 | F71: / | G71: / | H71: / | I71: 1.00 | J71: 个 | K71: / | L71: 无 | M71: 温州鹿城廊桥宾馆 | N71: 330302908000000876 | O71: 蔡煌湖
A72: 71 | B72: / | C72: 330300108390ZLMK01 | D72: 整流模块 | E72: 整流模块 | F72: / | G72: / | H72: / | I72: 1.00 | J72: 个 | K72: / | L72: 无 | M72: 温州鹿城温州市图书馆 | N72: 330302908000001098 | O72: 蔡煌湖
A73: 72 | B73: / | C73: 330300108390ZLMK02 | D73: 整流模块 | E73: 整流模块 | F73: / | G73: / | H73: / | I73: 1.00 | J73: 个 | K73: / | L73: 无 | M73: 温州鹿城温州市图书馆 | N73: 330302908000001098 | O73: 蔡煌湖
A74: 73 | B74: / | C74: 330300164110ZLMK01 | D74: 整流模块 | E74: 整流模块 | F74: / | G74: / | H74: / | I74: 1.00 | J74: 个 | K74: / | L74: 无 | M74: 温州双屿正岙村 | N74: 330302908000000339 | O74: 蔡煌湖
A75: 74 | B75: / | C75: 330300164110ZLMK02 | D75: 整流模块 | E75: 整流模块 | F75: / | G75: / | H75: / | I75: 1.00 | J75: 个 | K75: / | L75: 无 | M75: 温州双屿正岙村 | N75: 330302908000000339 | O75: 蔡煌湖
A76: 75 | B76: / | C76: 330300162303ZLMK01 | D76: 整流模块 | E76: 整流模块 | F76: / | G76: / | H76: / | I76: 1.00 | J76: 个 | K76: / | L76: 无 | M76: 温州穗丰-2 | N76: 330304908000000010 | O76: 蔡煌湖
A77: 76 | B77: / | C77: 330300162303ZLMK02 | D77: 整流模块 | E77: 整流模块 | F77: / | G77: / | H77: / | I77: 1.00 | J77: 个 | K77: / | L77: 无 | M77: 温州穗丰-2 | N77: 330304908000000010 | O77: 蔡煌湖
A78: 77 | B78: / | C78: 330300162303ZLMK03 | D78: 整流模块 | E78: 整流模块 | F78: / | G78: / | H78: / | I78: 1.00 | J78: 个 | K78: / | L78: 无 | M78: 温州穗丰-2 | N78: 330304908000000010 | O78: 蔡煌湖
A79: 78 | B79: / | C79: 330300162303ZLMK04 | D79: 整流模块 | E79: 整流模块 | F79: / | G79: / | H79: / | I79: 1.00 | J79: 个 | K79: / | L79: 无 | M79: 温州穗丰-2 | N79: 330304908000000010 | O79: 蔡煌湖
A80: 79 | B80: / | C80: 330300159122ZLMK01 | D80: 整流模块 | E80: 整流模块 | F80: / | G80: / | H80: / | I80: 1.00 | J80: 个 | K80: / | L80: 无 | M80: 温州特荣鞋业 | N80: 330302908000000283 | O80: 蔡煌湖
A81: 80 | B81: / | C81: 330300159122ZLMK02 | D81: 整流模块 | E81: 整流模块 | F81: / | G81: / | H81: / | I81: 1.00 | J81: 个 | K81: / | L81: 无 | M81: 温州特荣鞋业 | N81: 330302908000000283 | O81: 蔡煌湖
A82: 81 | B82: / | C82: 330300164200ZLMK01 | D82: 整流模块 | E82: 整流模块 | F82: / | G82: / | H82: / | I82: 1.00 | J82: 个 | K82: / | L82: 无 | M82: 永嘉瓯北下村 | N82: 330324908000000373 | O82: 蔡煌湖
A83: 82 | B83: / | C83: 330300164200ZLMK02 | D83: 整流模块 | E83: 整流模块 | F83: / | G83: / | H83: / | I83: 1.00 | J83: 个 | K83: / | L83: 无 | M83: 永嘉瓯北下村 | N83: 330324908000000373 | O83: 蔡煌湖
A84: 83 | B84: / | C84: 330300164200ZLMK03 | D84: 整流模块 | E84: 整流模块 | F84: / | G84: / | H84: / | I84: 1.00 | J84: 个 | K84: / | L84: 无 | M84: 永嘉瓯北下村 | N84: 330324908000000373 | O84: 蔡煌湖
A85: 84 | B85: / | C85: 330300164200ZLMK04 | D85: 整流模块 | E85: 整流模块 | F85: / | G85: / | H85: / | I85: 1.00 | J85: 个 | K85: / | L85: 无 | M85: 永嘉瓯北下村 | N85: 330324908000000373 | O85: 蔡煌湖
A86: 85 | B86: / | C86: 330300107779ZLMK01 | D86: 整流模块 | E86: 整流模块 | F86: / | G86: / | H86: / | I86: 1.00 | J86: 个 | K86: / | L86: 中恒 | M86: 瑞安官渎工业区 | N86: 330381908000001224 | O86: 蔡煌湖
A87: 86 | B87: / | C87: 330300140090JKMK01 | D87: 监控模块 | E87: 监控模块 | F87: / | G87: / | H87: / | I87: 1.00 | J87: 个 | K87: / | L87: 无 | M87: 苍南龙港东城路-2 | N87: 330327908000000678 | O87: 蔡煌湖
A88: 87 | B88: / | C88: 330300142318JKMK01 | D88: 监控模块 | E88: 监控模块 | F88: / | G88: / | H88: / | I88: 1.00 | J88: 个 | K88: / | L88: 无 | M88: 乐清柳市垟心 | N88: 330382908000000376 | O88: 蔡煌湖
A89: 88 | B89: / | C89: 330300103291JKMK01 | D89: 监控模块 | E89: 监控模块 | F89: / | G89: / | H89: / | I89: 1.00 | J89: 个 | K89: / | L89: 无 | M89: 乐清四都洋岙 | N89: 330382908000001420 | O89: 蔡煌湖
A90: 89 | B90: / | C90: 330300350872JKMK01 | D90: 监控模块 | E90: 监控模块 | F90: / | G90: / | H90: / | I90: 1.00 | J90: 个 | K90: / | L90: 无 | M90: 乐清仙溪蔡家岭-2 | N90: 330382908000000660 | O90: 蔡煌湖
A91: 90 | B91: / | C91: 330300139941JKMK01 | D91: 监控模块 | E91: 监控模块 | F91: / | G91: / | H91: / | I91: 1.00 | J91: 个 | K91: / | L91: 无 | M91: 乐清仙溪大岭头 | N91: 330382908000001288 | O91: 蔡煌湖
A92: 91 | B92: / | C92: 330300357231JKMK01 | D92: 监控模块 | E92: 监控模块 | F92: / | G92: / | H92: / | I92: 1.00 | J92: 个 | K92: / | L92: 无 | M92: 鹿城七都老涂南路2-8号 | N92: 33030201000096 | O92: 蔡煌湖
A93: 92 | B93: / | C93: 330300164640JKMK01 | D93: 监控模块 | E93: 监控模块 | F93: / | G93: / | H93: / | I93: 1.00 | J93: 个 | K93: / | L93: 无 | M93: 温州鹿城廊桥宾馆 | N93: 330302908000000876 | O93: 蔡煌湖
A94: 93 | B94: / | C94: 330300108390JKMK01 | D94: 监控模块 | E94: 监控模块 | F94: / | G94: / | H94: / | I94: 1.00 | J94: 个 | K94: / | L94: 无 | M94: 温州鹿城温州市图书馆 | N94: 330302908000001098 | O94: 蔡煌湖
A95: 94 | B95: / | C95: 330300164110JKMK01 | D95: 监控模块 | E95: 监控模块 | F95: / | G95: / | H95: / | I95: 1.00 | J95: 个 | K95: / | L95: 无 | M95: 温州双屿正岙村 | N95: 330302908000000339 | O95: 蔡煌湖
A96: 95 | B96: / | C96: 330300162303JKMK01 | D96: 监控模块 | E96: 监控模块 | F96: / | G96: / | H96: / | I96: 1 | J96: 个 | K96: / | L96: 无 | M96: 温州穗丰-2 | N96: 330304908000000010 | O96: 蔡煌湖
A97: 96 | B97: / | C97: 330300159122JKMK01 | D97: 监控模块 | E97: 监控模块 | F97: / | G97: / | H97: / | I97: 1 | J97: 个 | K97: / | L97: 无 | M97: 温州特荣鞋业 | N97: 330302908000000283 | O97: 蔡煌湖
A98: 97 | B98: / | C98: 330300164200JKMK01 | D98: 监控模块 | E98: 监控模块 | F98: / | G98: / | H98: / | I98: 1.00 | J98: 个 | K98: / | L98: 无 | M98: 永嘉瓯北下村 | N98: 330324908000000373 | O98: 蔡煌湖
A99: 98 | B99: / | C99: 330300107779JKMK01 | D99: 监控模块 | E99: 监控模块 | F99: / | G99: / | H99: / | I99: 1.00 | J99: 个 | K99: / | L99: 中恒 | M99: 瑞安官渎工业区 | N99: 330381908000001224 | O99: 蔡煌湖
A100: 99 | B100: / | C100: 330300371164ZLMK01 | D100: 整流模块 | E100: 整流模块 | F100: / | G100: / | H100: / | I100: 1 | J100: 个 | K100: / | L100: 无 | M100: 鹿城黄龙康城3组团路对面山腰 | N100: 33030200000022 | O100: 蔡煌湖
A101: 100 | B101: / | C101: 330300371164ZLMK02 | D101: 整流模块 | E101: 整流模块 | F101: / | G101: / | H101: / | I101: 1.00 | J101: 个 | K101: / | L101: 无 | M101: 鹿城黄龙康城3组团路对面山腰 | N101: 33030200000022 | O101: 蔡煌湖
A102: 101 | B102: / | C102: 330300371164ZLMK03 | D102: 整流模块 | E102: 整流模块 | F102: / | G102: / | H102: / | I102: 1 | J102: 个 | K102: / | L102: 无 | M102: 鹿城黄龙康城3组团路对面山腰 | N102: 33030200000022 | O102: 蔡煌湖
A103: 102 | B103: / | C103: 330300136837ZLMK01 | D103: 整流模块 | E103: 整流模块 | F103: / | G103: / | H103: / | I103: 1.00 | J103: 个 | K103: / | L103: 无 | M103: 永嘉乌牛东蒙工业区 | N103: 330324908000000682 | O103: 蔡煌湖
A104: 103 | B104: / | C104: 330300136837ZLMK02 | D104: 整流模块 | E104: 整流模块 | F104: / | G104: / | H104: / | I104: 1.00 | J104: 个 | K104: / | L104: 无 | M104: 永嘉乌牛东蒙工业区 | N104: 330324908000000682 | O104: 蔡煌湖
A105: 104 | B105: / | C105: 330300136837ZLMK03 | D105: 整流模块 | E105: 整流模块 | F105: / | G105: / | H105: / | I105: 1.00 | J105: 个 | K105: / | L105: 无 | M105: 永嘉乌牛东蒙工业区 | N105: 330324908000000682 | O105: 蔡煌湖
A106: 105 | B106: / | C106: 330300136837ZLMK04 | D106: 整流模块 | E106: 整流模块 | F106: / | G106: / | H106: / | I106: 1.00 | J106: 个 | K106: / | L106: 无 | M106: 永嘉乌牛东蒙工业区 | N106: 330324908000000682 | O106: 蔡煌湖
A107: 106 | B107: / | C107: 330300371164JKMK01 | D107: 监控模块 | E107: 监控模块 | F107: / | G107: / | H107: / | I107: 1.00 | J107: 个 | K107: / | L107: 无 | M107: 鹿城黄龙康城3组团路对面山腰 | N107: 33030200000022 | O107: 蔡煌湖
A108: 107 | B108: / | C108: 330300136837JKMK01 | D108: 监控模块 | E108: 监控模块 | F108: / | G108: / | H108: / | I108: 1.00 | J108: 个 | K108: / | L108: 无 | M108: 永嘉乌牛东蒙工业区 | N108: 330324908000000682 | O108: 蔡煌湖
A109: 108 | B109: / | C109: 330300308264ZLMK01 | D109: 整流模块 | E109: 整流模块 | F109: / | G109: / | H109: / | I109: 1.00 | J109: 个 | K109: / | L109: 无 | M109: 泰顺罗阳水厂 | N109: 330328908000000654 | O109: 蔡煌湖
A110: 109 | B110: / | C110: 330300308264ZLMK02 | D110: 整流模块 | E110: 整流模块 | F110: / | G110: / | H110: / | I110: 1.00 | J110: 个 | K110: / | L110: 无 | M110: 泰顺罗阳水厂 | N110: 330328908000000654 | O110: 蔡煌湖
A111: 110 | B111: / | C111: 330300308264ZLMK03 | D111: 整流模块 | E111: 整流模块 | F111: / | G111: / | H111: / | I111: 1.00 | J111: 个 | K111: / | L111: 无 | M111: 泰顺罗阳水厂 | N111: 330328908000000654 | O111: 蔡煌湖
A112: 111 | B112: / | C112: 330300140964ZLMK01 | D112: 整流模块 | E112: 整流模块 | F112: / | G112: / | H112: / | I112: 1.00 | J112: 个 | K112: / | L112: 无 | M112: 泰顺泗溪吴坑 | N112: 330329908000000482 | O112: 蔡煌湖
A113: 112 | B113: / | C113: 330300140964ZLMK02 | D113: 整流模块 | E113: 整流模块 | F113: / | G113: / | H113: / | I113: 1.00 | J113: 个 | K113: / | L113: 无 | M113: 泰顺泗溪吴坑 | N113: 330329908000000482 | O113: 蔡煌湖
A114: 113 | B114: / | C114: 330300140964ZLMK03 | D114: 整流模块 | E114: 整流模块 | F114: / | G114: / | H114: / | I114: 1.00 | J114: 个 | K114: / | L114: 无 | M114: 泰顺泗溪吴坑 | N114: 330329908000000482 | O114: 蔡煌湖
A115: 114 | B115: / | C115: 330300349987ZLMK01 | D115: 整流模块 | E115: 整流模块 | F115: / | G115: / | H115: / | I115: 1.00 | J115: 个 | K115: / | L115: 无 | M115: 文成南田镇头 | N115: 330328908000000549 | O115: 蔡煌湖
A116: 115 | B116: / | C116: 330300349987ZLMK02 | D116: 整流模块 | E116: 整流模块 | F116: / | G116: / | H116: / | I116: 1.00 | J116: 个 | K116: / | L116: 无 | M116: 文成南田镇头 | N116: 330328908000000549 | O116: 蔡煌湖
A117: 116 | B117: / | C117: 330300132005ZLMK01 | D117: 整流模块 | E117: 整流模块 | F117: / | G117: / | H117: / | I117: 1.00 | J117: 个 | K117: / | L117: 无 | M117: 文成上林乡新林村 | N117: 330328908000000224 | O117: 蔡煌湖
A118: 117 | B118: / | C118: 330300132005ZLMK02 | D118: 整流模块 | E118: 整流模块 | F118: / | G118: / | H118: / | I118: 1.00 | J118: 个 | K118: / | L118: 无 | M118: 文成上林乡新林村 | N118: 330328908000000224 | O118: 蔡煌湖
A119: 118 | B119: / | C119: 330300308264JKMK01 | D119: 监控模块 | E119: 监控模块 | F119: / | G119: / | H119: / | I119: 1.00 | J119: 个 | K119: / | L119: 无 | M119: 泰顺罗阳水厂 | N119: 330328908000000654 | O119: 蔡煌湖
A120: 119 | B120: / | C120: 330300140964JKMK01 | D120: 监控模块 | E120: 监控模块 | F120: / | G120: / | H120: / | I120: 1.00 | J120: 个 | K120: / | L120: 无 | M120: 泰顺泗溪吴坑 | N120: 330329908000000482 | O120: 蔡煌湖
A121: 120 | B121: / | C121: 330300349987JKMK01 | D121: 监控模块 | E121: 监控模块 | F121: / | G121: / | H121: / | I121: 1.00 | J121: 个 | K121: / | L121: 无 | M121: 文成南田镇头 | N121: 330328908000000549 | O121: 蔡煌湖
A122: 121 | B122: / | C122: 330300132005JKMK01 | D122: 监控模块 | E122: 监控模块 | F122: / | G122: / | H122: / | I122: 1.00 | J122: 个 | K122: / | L122: 无 | M122: 文成上林乡新林村 | N122: 330328908000000224 | O122: 蔡煌湖
A123: 122 | B123: / | C123: 330300118571ZLMK01 | D123: 整流模块 | E123: 整流模块 | F123: / | G123: / | H123: / | I123: 1.00 | J123: 个 | K123: / | L123: 无 | M123: 乐清建强工业区 | N123: 330382908000001339 | O123: 王智淳
A124: 123 | B124: / | C124: 330300118571ZLMK02 | D124: 整流模块 | E124: 整流模块 | F124: / | G124: / | H124: / | I124: 1.00 | J124: 个 | K124: / | L124: 无 | M124: 乐清建强工业区 | N124: 330382908000001339 | O124: 王智淳
A125: 124 | B125: / | C125: 330300118571ZLMK03 | D125: 整流模块 | E125: 整流模块 | F125: / | G125: / | H125: / | I125: 1.00 | J125: 个 | K125: / | L125: 无 | M125: 乐清建强工业区 | N125: 330382908000001339 | O125: 王智淳
A126: 125 | B126: / | C126: 330300118571ZLMK04 | D126: 整流模块 | E126: 整流模块 | F126: / | G126: / | H126: / | I126: 1.00 | J126: 个 | K126: / | L126: 无 | M126: 乐清建强工业区 | N126: 330382908000001339 | O126: 王智淳
A127: 126 | B127: / | C127: 330300118571ZLMK05 | D127: 整流模块 | E127: 整流模块 | F127: / | G127: / | H127: / | I127: 1.00 | J127: 个 | K127: / | L127: 无 | M127: 乐清建强工业区 | N127: 330382908000001339 | O127: 王智淳
A128: 127 | B128: / | C128: 330300118571ZLMK06 | D128: 整流模块 | E128: 整流模块 | F128: / | G128: / | H128: / | I128: 1.00 | J128: 个 | K128: / | L128: 无 | M128: 乐清建强工业区 | N128: 330382908000001339 | O128: 王智淳
A129: 128 | B129: / | C129: 330300118571ZLMK07 | D129: 整流模块 | E129: 整流模块 | F129: / | G129: / | H129: / | I129: 1.00 | J129: 个 | K129: / | L129: 无 | M129: 乐清建强工业区 | N129: 330382908000001339 | O129: 王智淳
A130: 129 | B130: / | C130: 330300118571JKMK01 | D130: 监控模块 | E130: 监控模块 | F130: / | G130: / | H130: / | I130: 1.00 | J130: 个 | K130: / | L130: 无 | M130: 乐清建强工业区 | N130: 330382908000001339 | O130: 王智淳
A131: 130 | B131: / | C131: 330300116811ZLMK01 | D131: 整流模块 | E131: 整流模块 | F131: / | G131: / | H131: / | I131: 1.00 | J131: 个 | K131: / | L131: 无 | M131: 温州九山河通锦园 | N131: 330302908000000272 | O131: 王智淳
A132: 131 | B132: / | C132: 330300116811ZLMK02 | D132: 整流模块 | E132: 整流模块 | F132: / | G132: / | H132: / | I132: 1.00 | J132: 个 | K132: / | L132: 无 | M132: 温州九山河通锦园 | N132: 330302908000000272 | O132: 王智淳
A133: 132 | B133: / | C133: 330300116811ZLMK03 | D133: 整流模块 | E133: 整流模块 | F133: / | G133: / | H133: / | I133: 1.00 | J133: 个 | K133: / | L133: 无 | M133: 温州九山河通锦园 | N133: 330302908000000272 | O133: 王智淳
A134: 133 | B134: / | C134: 330300116811JKMK01 | D134: 监控模块 | E134: 监控模块 | F134: / | G134: / | H134: / | I134: 1.00 | J134: 个 | K134: / | L134: 无 | M134: 温州九山河通锦园 | N134: 330302908000000272 | O134: 王智淳
A135: 134 | B135: / | C135: 330300151307ZLMK01 | D135: 整流模块 | E135: 整流模块 | F135: / | G135: / | H135: / | I135: 1.00 | J135: 个 | K135: / | L135: 无 | M135: 温州浙南农贸市场 | N135: 330302908000000220 | O135: 王智淳
A136: 135 | B136: / | C136: 330300151307ZLMK02 | D136: 整流模块 | E136: 整流模块 | F136: / | G136: / | H136: / | I136: 1.00 | J136: 个 | K136: / | L136: 无 | M136: 温州浙南农贸市场 | N136: 330302908000000220 | O136: 王智淳
A137: 136 | B137: / | C137: 330300151307ZLMK03 | D137: 整流模块 | E137: 整流模块 | F137: / | G137: / | H137: / | I137: 1.00 | J137: 个 | K137: / | L137: 无 | M137: 温州浙南农贸市场 | N137: 330302908000000220 | O137: 王智淳
A138: 137 | B138: / | C138: 330300151307ZLMK04 | D138: 整流模块 | E138: 整流模块 | F138: / | G138: / | H138: / | I138: 1.00 | J138: 个 | K138: / | L138: 无 | M138: 温州浙南农贸市场 | N138: 330302908000000220 | O138: 王智淳
A139: 138 | B139: / | C139: 330300151307JKMK01 | D139: 监控模块 | E139: 监控模块 | F139: / | G139: / | H139: / | I139: 1.00 | J139: 个 | K139: / | L139: 无 | M139: 温州浙南农贸市场 | N139: 330302908000000220 | O139: 王智淳
A140: 139 | B140: / | C140: 330300328403ZLMK01 | D140: 整流模块 | E140: 整流模块 | F140: / | G140: / | H140: / | I140: 1.00 | J140: 个 | K140: / | L140: 无 | M140: 瑞安阁巷新区北 | N140: 33038100000091 | O140: 王智淳
A141: 140 | B141: / | C141: 330300328403ZLMK02 | D141: 整流模块 | E141: 整流模块 | F141: / | G141: / | H141: / | I141: 1.00 | J141: 个 | K141: / | L141: 无 | M141: 瑞安阁巷新区北 | N141: 33038100000091 | O141: 王智淳
A142: 141 | B142: / | C142: 330300328403ZLMK03 | D142: 整流模块 | E142: 整流模块 | F142: / | G142: / | H142: / | I142: 1.00 | J142: 个 | K142: / | L142: 无 | M142: 瑞安阁巷新区北 | N142: 33038100000091 | O142: 王智淳
A143: 142 | B143: / | C143: 330300328403JKMK01 | D143: 监控模块 | E143: 监控模块 | F143: / | G143: / | H143: / | I143: 1.00 | J143: 个 | K143: / | L143: 无 | M143: 瑞安阁巷新区北 | N143: 33038100000091 | O143: 王智淳
A144: 143 | B144: / | C144: 330300139944ZLMK01 | D144: 整流模块 | E144: 整流模块 | F144: / | G144: / | H144: / | I144: 1.00 | J144: 个 | K144: / | L144: 施威特克 | M144: 瑞安芳庄蒋山 | N144: 330381908000000250 | O144: 蔡煌湖
A145: 144 | B145: / | C145: 330300169469ZLMK01 | D145: 整流模块 | E145: 整流模块 | F145: / | G145: / | H145: / | I145: 1.00 | J145: 个 | K145: / | L145: 施威特克 | M145: 瑞安芳庄章坑 | N145: 330381908000000639 | O145: 蔡煌湖
A146: 145 | B146: / | C146: 330300382378ZLMK01 | D146: 整流模块 | E146: 整流模块 | F146: / | G146: / | H146: / | I146: 1.00 | J146: 个 | K146: / | L146: 无 | M146: 苍南望里乌石岭-3 | N146: 330327908000000025 | O146: 蔡煌湖
A147: 146 | B147: / | C147: 330300369148ZLMK01 | D147: 整流模块 | E147: 整流模块 | F147: / | G147: / | H147: / | I147: 1.00 | J147: 个 | K147: / | L147: 中达 | M147: 瑞安高楼文湾 | N147: 330381500000000375 | O147: 蔡煌湖
A148: 147 | B148: / | C148: 330300139944JKMK01 | D148: 监控模块 | E148: 监控模块 | F148: / | G148: / | H148: / | I148: 1.00 | J148: 个 | K148: / | L148: 施威特克 | M148: 瑞安芳庄蒋山 | N148: 330381908000000250 | O148: 蔡煌湖
A149: 148 | B149: / | C149: 330300169469JKMK01 | D149: 监控模块 | E149: 监控模块 | F149: / | G149: / | H149: / | I149: 1.00 | J149: 个 | K149: / | L149: 施威特克 | M149: 瑞安芳庄章坑 | N149: 330381908000000639 | O149: 蔡煌湖
A150: 149 | B150: / | C150: 330300382378JKMK01 | D150: 监控模块 | E150: 监控模块 | F150: / | G150: / | H150: / | I150: 1.00 | J150: 个 | K150: / | L150: 无 | M150: 苍南望里乌石岭-3 | N150: 330327908000000025 | O150: 蔡煌湖
A151: 150 | B151: / | C151: 330300369148JKMK01 | D151: 监控模块 | E151: 监控模块 | F151: / | G151: / | H151: / | I151: 1.00 | J151: 个 | K151: / | L151: 中达 | M151: 瑞安高楼文湾 | N151: 330381500000000375 | O151: 蔡煌湖
A152: 151 | B152: / | C152: 330300330315ZLMK01 | D152: 整流模块 | E152: 整流模块 | F152: / | G152: / | H152: / | I152: 1.00 | J152: 个 | K152: / | L152: 无 | M152: 黄龙下寅 | N152: 33030201000066 | O152: 蔡煌湖
A153: 152 | B153: / | C153: 330300362448ZLMK01 | D153: 整流模块 | E153: 整流模块 | F153: / | G153: / | H153: / | I153: 1.00 | J153: 个 | K153: / | L153: 中恒 | M153: 瑞安阁巷新区贝尔阀门 | N153: 330381500000000426 | O153: 蔡煌湖
A154: 153 | B154: / | C154: 330300158783ZLMK01 | D154: 整流模块 | E154: 整流模块 | F154: / | G154: / | H154: / | I154: 1.00 | J154: 个 | K154: / | L154: 中恒 | M154: 瑞安林溪大坪-2 | N154: 330381908000000990 | O154: 蔡煌湖
A155: 154 | B155: / | C155: 330300330315JKMK01 | D155: 监控模块 | E155: 监控模块 | F155: / | G155: / | H155: / | I155: 1.00 | J155: 个 | K155: / | L155: 无 | M155: 黄龙下寅 | N155: 33030201000066 | O155: 蔡煌湖
A156: 155 | B156: / | C156: 330300362448JKMK01 | D156: 监控模块 | E156: 监控模块 | F156: / | G156: / | H156: / | I156: 1.00 | J156: 个 | K156: / | L156: 中恒 | M156: 瑞安阁巷新区贝尔阀门 | N156: 330381500000000426 | O156: 蔡煌湖
A157: 156 | B157: / | C157: 330300158783JKMK01 | D157: 监控模块 | E157: 监控模块 | F157: / | G157: / | H157: / | I157: 1.00 | J157: 个 | K157: / | L157: 中恒 | M157: 瑞安林溪大坪-2 | N157: 330381908000000990 | O157: 蔡煌湖
A158: 157 | B158: / | C158: 无资产编码 | D158: 铝线 | E158: 铝线 | F158: / | G158: / | H158: / | I158: 2.00 | J158: 根 | K158: / | L158: 无 | M158: 平阳平阳兰花桥新区北 | N158: 330326908000000564 | O158: 王智淳
A159: 158 | B159: / | C159: 无资产编码 | D159: 铝线 | E159: 铝线 | F159: / | G159: / | H159: / | I159: 2.00 | J159: 根 | K159: / | L159: 无 | M159: 文成县峃口镇城东村 | N159: 330328500000000029 | O159: 王智淳
A160: 159 | B160: / | C160: 无资产编码 | D160: 铝线 | E160: 铝线 | F160: / | G160: / | H160: / | I160: 2.00 | J160: 根 | K160: / | L160: 无 | M160: 泰顺洲岭溪头 | N160: 330329908000000152 | O160: 王智淳
A161: 160 | B161: / | C161: 无资产编码 | D161: 铝线 | E161: 铝线 | F161: / | G161: / | H161: / | I161: 2.00 | J161: 根 | K161: / | L161: 无 | M161: 永嘉鹤盛鹤阳 | N161: 330324908000000204 | O161: 王智淳
A162: 161 | B162: / | C162: 无资产编码 | D162: 铝线 | E162: 铝线 | F162: / | G162: / | H162: / | I162: 4.00 | J162: 根 | K162: / | L162: 无 | M162: 平阳梅源-3 | N162: 330326908000000237 | O162: 王智淳
A163: 162 | B163: / | C163: 无资产编码 | D163: 铝线 | E163: 铝线 | F163: / | G163: / | H163: / | I163: 2.00 | J163: 根 | K163: / | L163: 无 | M163: 温州仙岩双和盛鞋业 | N163: 330304908000000091 | O163: 王智淳
A164: 163 | B164: / | C164: 无资产编码 | D164: 铝线 | E164: 铝线 | F164: / | G164: / | H164: / | I164: 2.00 | J164: 根 | K164: / | L164: 无 | M164: 苍南灵溪建兴东路D-2 | N164: 330327908000000740 | O164: 王智淳
A165: 164 | B165: / | C165: 无资产编码 | D165: 铝线 | E165: 铝线 | F165: / | G165: / | H165: / | I165: 2.00 | J165: 根 | K165: / | L165: 无 | M165: 苍南苍南望里南 | N165: 330327908000001026 | O165: 王智淳
A166: 165 | B166: / | C166: 无资产编码 | D166: 铝线 | E166: 铝线 | F166: / | G166: / | H166: / | I166: 2.00 | J166: 根 | K166: / | L166: 无 | M166: 瑞安塘下韩田搬迁 | N166: 330381500000001990 | O166: 王智淳
A167: 166 | B167: / | C167: 无资产编码 | D167: 铝线 | E167: 铝线 | F167: / | G167: / | H167: / | I167: 2.00 | J167: 根 | K167: / | L167: 无 | M167: 瑞安韩田尖山村 | N167: 330381500000000270 | O167: 王智淳
A168: 167 | B168: / | C168: 无资产编码 | D168: 整流模块 | E168: 整流模块 | F168: / | G168: / | H168: / | I168: 1.00 | J168: 个 | K168: / | L168: 无 | M168: 苍南龙港龙翔路（苍南龙港南城贝勒拉远） | N168: 330327908000000126 | O168: 王智淳
A169: 168 | B169: / | C169: 无资产编码 | D169: 监控模块 | E169: 监控模块 | F169: / | G169: / | H169: / | I169: 1.00 | J169: 个 | K169: / | L169: 无 | M169: 苍南龙港龙翔路（苍南龙港南城贝勒拉远） | N169: 330327908000000126 | O169: 王智淳
A170: 169 | B170: / | C170: 无资产编码 | D170: 走线架 | E170: 走线架 | F170: / | G170: / | H170: / | I170: 3.00 | J170: 个 | K170: / | L170: 无 | M170: 温州瓯海郭溪殿上 | N170: 330304908000001388 | O170: 王智淳
A171: 170 | B171: / | C171: 无资产编码 | D171: 铝线 | E171: 铝线 | F171: / | G171: / | H171: / | I171: 2.00 | J171: 根 | K171: / | L171: 无 | M171: 温州瓯海郭溪殿上 | N171: 330304908000001388 | O171: 王智淳
A172: 171 | B172: / | C172: 无资产编码 | D172: 走线架 | E172: 走线架 | F172: / | G172: / | H172: / | I172: 2.00 | J172: 个 | K172: / | L172: 无 | M172: 瑞安阁巷新区中 | N172: 33038100000093 | O172: 王智淳
A173: 172 | B173: / | C173: 无资产编码 | D173: 走线架 | E173: 走线架 | F173: / | G173: / | H173: / | I173: 3.00 | J173: 个 | K173: / | L173: 无 | M173: 平阳梅源-2 | N173: 330326908000001017 | O173: 王智淳
A174: 173 | B174: / | C174: 无资产编码 | D174: 铝线 | E174: 铝线 | F174: / | G174: / | H174: / | I174: 2.00 | J174: 根 | K174: / | L174: 无 | M174: 平阳梅源-2 | N174: 330326908000001017 | O174: 王智淳
A175: 174 | B175: / | C175: 无资产编码 | D175: 走线架 | E175: 走线架 | F175: / | G175: / | H175: / | I175: 3.00 | J175: 个 | K175: / | L175: 无 | M175: 乐清建强工业区 | N175: 330382908000001339 | O175: 王智淳
A176: 175 | B176: / | C176: 无资产编码 | D176: 铜线 | E176: 铜线 | F176: / | G176: / | H176: / | I176: 5.00 | J176: 米 | K176: / | L176: 无 | M176: 乐清建强工业区 | N176: 330382908000001339 | O176: 王智淳
A177: 176 | B177: / | C177: 无资产编码 | D177: 走线架 | E177: 走线架 | F177: / | G177: / | H177: / | I177: 2.00 | J177: 个 | K177: / | L177: 无 | M177: 温州浙南农贸市场 | N177: 330302908000000220 | O177: 王智淳
A178: 177 | B178: / | C178: 无资产编码 | D178: 铝线 | E178: 铝线 | F178: / | G178: / | H178: / | I178: 2.00 | J178: 根 | K178: / | L178: 无 | M178: 温州浙南农贸市场 | N178: 330302908000000220 | O178: 王智淳
A179: 178 | B179: / | C179: 无资产编码 | D179: 走线架 | E179: 走线架 | F179: / | G179: / | H179: / | I179: 3.00 | J179: 个 | K179: / | L179: 无 | M179: 瑞安阁巷新区北 | N179: 33038100000091 | O179: 王智淳
A180: 179 | B180: / | C180: 无资产编码 | D180: 铝线 | E180: 铝线 | F180: / | G180: / | H180: / | I180: 4.00 | J180: 根 | K180: / | L180: 无 | M180: 平阳鳌江实验小学 | N180: 330326908000000706 | O180: 王智淳
A181: 180 | B181: / | C181: 无资产编码 | D181: 铜线 | E181: 铜线 | F181: / | G181: / | H181: / | I181: 4.00 | J181: 米 | K181: / | L181: 无 | M181: 平阳鳌江实验小学 | N181: 330326908000000706 | O181: 王智淳
A182: 181 | B182: / | C182: 无资产编码 | D182: 铜线 | E182: 铜线 | F182: / | G182: / | H182: / | I182: 1.50 | J182: 米 | K182: / | L182: 无 | M182: 苍南灵溪叶岭脚村 | N182: 330327500000000296 | O182: 王智淳
A183: 182 | B183: / | C183: 无资产编码 | D183: 铝线 | E183: 铝线 | F183: / | G183: / | H183: / | I183: 2.00 | J183: 根 | K183: / | L183: 无 | M183: 温州绿色乐园 | N183: 330304908000000138 | O183: 王智淳
A184: 183 | B184: / | C184: 无资产编码 | D184: 铝线 | E184: 铝线 | F184: / | G184: / | H184: / | I184: 35.00 | J184: 千克 | K184: / | L184: 无 | M184: 永嘉瓯北创新 | N184: 330324908000001023 | O184: 蔡煌湖
